BodyName,ServiceAreaCategorisation,ServiceDivisionCategorisation,ExpensesType,Date,TransactionNumber,Amount,CapitalorRevenue,SupplierName,MerchantCategory
Peterborough City Council,Corporate Items,Corporate Services,Services,01/05/2019,30198094,10194,Revenue,Pinsent Masons,Legal Costs
Peterborough City Council,Adults,Finance,Third Party Payments,01/05/2019,30217607,3600,Revenue,Anchor Homes,Third Party Payments - Contract
Peterborough City Council,Adults,Finance,Third Party Payments,01/05/2019,30217608,7200,Revenue,Anchor Homes,Third Party Payments - Contract
Peterborough City Council,Adults,Finance,Third Party Payments,01/05/2019,30217610,7200,Revenue,Anchor Homes,Third Party Payments - Contract
Peterborough City Council,Adults,Finance,Third Party Payments,01/05/2019,30220173,3600,Revenue,Anchor Homes,Third Party Payments - Contract
Peterborough City Council,Commissioning and Commercial Operations,Access to Resources & Specialist Commissioning,Services,01/05/2019,30220412,661.42,Revenue,Sixteen Plus Limited,Boarding Out Fees
Peterborough City Council,Adults,Independent Sector Placements,Services,01/05/2019,30221098,1280.66,Revenue,Hales Group Ltd,Home Care
Peterborough City Council,Children's & Safeguarding,Commissioning - CSC,Services,01/05/2019,30221751,1022,Revenue,K2 CARE LTD,Purchased Social Care Services
Peterborough City Council,Other - Exclude,Other,"Other Grants, reimbursements and contributions",01/05/2019,30222980,3662.83,Revenue,Thorney Parish Council,Grant Payment
Peterborough City Council,Other - Exclude,Other,"Other Grants, reimbursements and contributions",01/05/2019,30222985,28236.24,Revenue,Barnack Parish Council,Grant Payment
Peterborough City Council,Education,Financing - Resources,Services,01/05/2019,30223018,1054.5,Revenue,Sense,Education Expenses
Peterborough City Council,Adults,Independent Sector Placements,Services,01/05/2019,30223123,557.18,Revenue,Park Vista Care Home,Residential Care
Peterborough City Council,Adults,Independent Sector Placements,Services,01/05/2019,30223124,842.86,Revenue,Park Vista Care Home,Residential Care
Peterborough City Council,Adults,Independent Sector Placements,Services,01/05/2019,30223125,567.72,Revenue,Park Vista Care Home,Residential Care
Peterborough City Council,Education,School Standards & Effectiveness,Services,01/05/2019,30223248,900,Revenue,Cambridgeshire County Council,Training
Peterborough City Council,Education,HTS & CSC Transport,Contract Hire and Operating Leases,01/05/2019,30223250,4687.5,Revenue,Cambridgeshire County Council,Hired Transport
Peterborough City Council,Commissioning and Commercial Operations,Access to Resources & Specialist Commissioning,Services,01/05/2019,30223298,12383.74,Revenue,Ethelbert Childrens Services,Boarding Out Fees
Peterborough City Council,Commissioning and Commercial Operations,Access to Resources & Specialist Commissioning,Services,01/05/2019,30223300,12141.43,Revenue,Ethelbert Childrens Services,Boarding Out Fees
Peterborough City Council,Adults,Independent Sector Placements,Services,01/05/2019,30223367,1630,Revenue,ABBEYGATE REST HOME,Residential Care
Peterborough City Council,Adults,Independent Sector Placements,Services,01/05/2019,30223369,2300,Revenue,Goldcare Homes t/a The Tudors Care Home,Residential Care
Peterborough City Council,Adults,Independent Sector Placements,Services,01/05/2019,30223371,1517.28,Revenue,Goldcare Homes t/a The Tudors Care Home,Residential Care
Peterborough City Council,Adults,Independent Sector Placements,Services,01/05/2019,30223373,1914.68,Revenue,Goldcare Homes t/a The Tudors Care Home,Residential Care
Peterborough City Council,Adults,Independent Sector Placements,Services,01/05/2019,30223376,1776.24,Revenue,Goldcare Homes t/a The Tudors Care Home,Residential Care
Peterborough City Council,Adults,Independent Sector Placements,Services,01/05/2019,30223377,982.12,Revenue,Goldcare Homes t/a The Tudors Care Home,Residential Care
Peterborough City Council,Adults,Independent Sector Placements,Services,01/05/2019,30223378,1703.04,Revenue,Goldcare Homes t/a The Tudors Care Home,Residential Care
Peterborough City Council,Legal Services,Legal Services,Services,01/05/2019,30223381,550,Revenue,"Bramwell, Mr Christopher",Legal Costs
Peterborough City Council,Corporate Property,Strategic Projects,Agency Staff,01/05/2019,30223484,1102.17,Revenue,Penna Plc,External Temporary Staff
Peterborough City Council,Financial Services,Finance,Agency Staff,01/05/2019,30223486,16909,Revenue,Penna Plc,External Temporary Staff
Peterborough City Council,Corporate Items,Corporate Services,Agency Staff,01/05/2019,30223487,23856,Revenue,Penna Plc,External Temporary Staff
Peterborough City Council,Peterborough Highway Services,Network and Traffic Management,Services,01/05/2019,30223493,747.24,Revenue,JPIMedia Publishing Ltd,Advertising
Peterborough City Council,Peterborough Highway Services,Network and Traffic Management,Services,01/05/2019,30223494,689.68,Revenue,JPIMedia Publishing Ltd,Advertising
Peterborough City Council,Communities,Housing,Repair & Maintenance of Buildings,01/05/2019,30223799,725.9,Revenue,Rawheat Heating & Plumbing Eng.,Premises Repairs
Peterborough City Council,Communities,Cultural Services,Services,01/05/2019,30223843,603.17,Revenue,Vivacity Culture and Leisure,Consultants Fees
Peterborough City Council,Education,HTS & CSC Transport,Contract Hire and Operating Leases,01/05/2019,30223908,664.2,Revenue,Mayfair Cars Northampton Ltd,Hired Transport
Peterborough City Council,Legal Services,Legal Services,Agency Staff,01/05/2019,30223974,2014.5,Revenue,Venn Group Ltd,External Temporary Staff
Peterborough City Council,Legal Services,Legal Services,Agency Staff,01/05/2019,30223975,539.24,Revenue,Venn Group Ltd,External Temporary Staff
Peterborough City Council,Legal Services,Legal Services,Agency Staff,01/05/2019,30223976,2062.5,Revenue,Venn Group Ltd,External Temporary Staff
Peterborough City Council,Peterborough Highway Services,Highway & Drainage Control,Agency Staff,01/05/2019,30224012,1638,Revenue,Matchtech,External Temporary Staff
Peterborough City Council,Adults,Home Services Delivery Model,Services,01/05/2019,30224029,684.25,Revenue,Nightingale Services,Contractors
Peterborough City Council,"Cemeteries, Cremation & Registrars",Bereavement Service,Repair & Maintenance of Buildings,01/05/2019,30224033,4122,Revenue,A M Strickland Builders,Premises Repairs
Peterborough City Council,"Cemeteries, Cremation & Registrars",Bereavement Service,Repair & Maintenance of Buildings,01/05/2019,30224034,1947.8,Revenue,A M Strickland Builders,Premises Repairs
Peterborough City Council,Corporate,Corporate,Non Revenue,01/05/2019,30224036,3510,Capital,Garfield Builders Ltd,Building And Site Works
Peterborough City Council,Adults,Independent Sector Placements,Services,01/05/2019,30224051,4755.6,Revenue,Mencap,Residential Care
Peterborough City Council,Adults,Independent Sector Placements,Services,01/05/2019,30224052,4924.6,Revenue,Mencap,Residential Care
Peterborough City Council,Adults,Independent Sector Placements,Services,01/05/2019,30224053,4443,Revenue,Mencap,Residential Care
Peterborough City Council,Peterborough Highway Services,Highway Services - HoS,Services,01/05/2019,30224068,615,Revenue,Adept,Subscriptions
Peterborough City Council,Legal Services,Legal Services,Services,01/05/2019,30224081,1050,Revenue,Weightmans LLP,Legal Costs
Peterborough City Council,Adults,Independent Sector Placements,Services,01/05/2019,30224284,1900.92,Revenue,Voyage 1 Limited,Residential Care
Peterborough City Council,Adults,Independent Sector Placements,Services,01/05/2019,30224285,4575.2,Revenue,Voyage 1 Limited,Residential Care
Peterborough City Council,Adults,Independent Sector Placements,Services,01/05/2019,30224286,5065.4,Revenue,Voyage 1 Limited,Residential Care
Peterborough City Council,Adults,Independent Sector Placements,Services,01/05/2019,30224287,5559.4,Revenue,Voyage 1 Limited,Residential Care
Peterborough City Council,Adults,Independent Sector Placements,Services,01/05/2019,30224288,4703.48,Revenue,Voyage 1 Limited,Residential Care
Peterborough City Council,Adults,Independent Sector Placements,Services,01/05/2019,30224291,1931.2,Revenue,Voyage 1 Limited,Home Care
Peterborough City Council,Adults,Independent Sector Placements,Services,01/05/2019,30224292,994,Revenue,Voyage 1 Limited,Home Care
Peterborough City Council,Adults,Independent Sector Placements,Services,01/05/2019,30224293,2442.4,Revenue,Voyage 1 Limited,Home Care
Peterborough City Council,Adults,Independent Sector Placements,Services,01/05/2019,30224294,1136,Revenue,Voyage 1 Limited,Home Care
Peterborough City Council,Adults,Independent Sector Placements,Services,01/05/2019,30224295,1192.8,Revenue,Voyage 1 Limited,Home Care
Peterborough City Council,Adults,Independent Sector Placements,Services,01/05/2019,30224297,738.4,Revenue,Voyage 1 Limited,Home Care
Peterborough City Council,Adults,Independent Sector Placements,Services,01/05/2019,30224301,1192.8,Revenue,Voyage 1 Limited,Home Care
Peterborough City Council,Adults,Independent Sector Placements,Services,01/05/2019,30224302,1192.8,Revenue,Voyage 1 Limited,Home Care
Peterborough City Council,Adults,Independent Sector Placements,Services,01/05/2019,30224303,1192.8,Revenue,Voyage 1 Limited,Home Care
Peterborough City Council,Adults,Independent Sector Placements,Services,01/05/2019,30224305,568,Revenue,Voyage 1 Limited,Home Care
Peterborough City Council,Adults,Independent Sector Placements,Services,01/05/2019,30224306,4559,Revenue,Voyage 1 Limited,Home Care
Peterborough City Council,Adults,Independent Sector Placements,Services,01/05/2019,30224307,1136,Revenue,Voyage 1 Limited,Home Care
Peterborough City Council,Adults,Independent Sector Placements,Services,01/05/2019,30224308,4291.04,Revenue,Voyage 1 Limited,Home Care
Peterborough City Council,Adults,Independent Sector Placements,Services,01/05/2019,30224309,1192.8,Revenue,Voyage 1 Limited,Home Care
Peterborough City Council,Adults,Independent Sector Placements,Services,01/05/2019,30224310,1192.8,Revenue,Voyage 1 Limited,Home Care
Peterborough City Council,Adults,Independent Sector Placements,Services,01/05/2019,30224311,4160.6,Revenue,Voyage 1 Limited,Home Care
Peterborough City Council,Adults,Independent Sector Placements,Services,01/05/2019,30224312,5285,Revenue,Voyage 1 Limited,Home Care
Peterborough City Council,Adults,Independent Sector Placements,Services,01/05/2019,30224313,4559,Revenue,Voyage 1 Limited,Home Care
Peterborough City Council,Adults,Independent Sector Placements,Services,01/05/2019,30224314,4382.88,Revenue,Voyage 1 Limited,Home Care
Peterborough City Council,Adults,Independent Sector Placements,Services,01/05/2019,30224315,1902.8,Revenue,Voyage 1 Limited,Home Care
Peterborough City Council,Adults,Independent Sector Placements,Services,01/05/2019,30224316,3743.92,Revenue,Voyage 1 Limited,Home Care
Peterborough City Council,Adults,Independent Sector Placements,Services,01/05/2019,30224317,5615.32,Revenue,Voyage 1 Limited,Home Care
Peterborough City Council,Adults,Independent Sector Placements,Services,01/05/2019,30224318,4198.72,Revenue,Voyage 1 Limited,Home Care
Peterborough City Council,Adults,Independent Sector Placements,Services,01/05/2019,30224321,8349.6,Revenue,Voyage 1 Limited,Home Care
Peterborough City Council,Adults,Independent Sector Placements,Services,01/05/2019,30224322,7666.4,Revenue,Voyage 1 Limited,Home Care
Peterborough City Council,Corporate Property,Office Accomodation,Cleaning & Domestic Supplies,01/05/2019,30224357,543.4,Revenue,PHS Group Plc,Hygiene Supplies
Peterborough City Council,Corporate Property,Office Accomodation,Cleaning & Domestic Supplies,01/05/2019,30224361,1150.5,Revenue,PHS Group Plc,Hygiene Supplies
Peterborough City Council,Corporate Property,Office Accomodation,Cleaning & Domestic Supplies,01/05/2019,30224362,528.01,Revenue,PHS Group Plc,Hygiene Supplies
Peterborough City Council,Corporate Property,Office Accomodation,Cleaning & Domestic Supplies,01/05/2019,30224369,582.4,Revenue,PHS Group Plc,Hygiene Supplies
Peterborough City Council,Adults,Therapy/Reablement/Community Equipment,Agency Staff,01/05/2019,30224392,1489.34,Revenue,Tripod Partners Ltd,External Temporary Staff
Peterborough City Council,Commissioning and Commercial Operations,Clare Lodge,Agency Staff,01/05/2019,30224410,912,Revenue,Wrixon Care Services,External Temporary Staff
Peterborough City Council,Adults,Independent Sector Placements,Services,01/05/2019,30224415,3431.12,Revenue,HEREWARD CARE SERVICES LIMITED,Residential Care
Peterborough City Council,Adults,Independent Sector Placements,Services,01/05/2019,30224417,4491.36,Revenue,HEREWARD CARE SERVICES LIMITED,Residential Care
Peterborough City Council,Adults,Independent Sector Placements,Services,01/05/2019,30224418,2677.32,Revenue,HEREWARD CARE SERVICES LIMITED,Residential Care
Peterborough City Council,Adults,Independent Sector Placements,Services,01/05/2019,30224420,2167.6,Revenue,HEREWARD CARE SERVICES LIMITED,Residential Care
Peterborough City Council,Adults,Independent Sector Placements,Services,01/05/2019,30224579,10416,Revenue,Consummate Care Limited,Home Care
Peterborough City Council,Education,Special Educational Needs / Inclusion,Agency Staff,01/05/2019,30224632,4240,Revenue,Permanent Futures Ltd,External Temporary Staff
Peterborough City Council,Corporate,Corporate,Non Revenue,01/05/2019,30224635,4000,Balance Sheet,ASB Aspire,Insurance Claims
Peterborough City Council,Legal Services,Legal Services,Services,01/05/2019,30224644,700,Revenue,"Elliott, Ms Margot",Legal Costs
Peterborough City Council,Legal Services,Legal Services,Services,01/05/2019,30224645,1200,Revenue,"Elliott, Ms Margot",Legal Costs
Peterborough City Council,Legal Services,Legal Services,Services,01/05/2019,30224656,720,Revenue,Mr Paul Hollow,Legal Costs
Peterborough City Council,Adults,Independent Sector Placements,Services,01/05/2019,30224694,1150,Revenue,Park Vista Care Home,Residential Care
Peterborough City Council,Corporate,Corporate,Non Revenue,01/05/2019,30224729,1250,Capital,Spotless {Cleaning Services},Grant Payment
Peterborough City Council,ICT,ICT,Services,01/05/2019,30224731,83065,Revenue,Servelec Education Limited,Computer Software
Peterborough City Council,Communities,Cohesion,Rents,01/05/2019,30224733,1296,Revenue,Inbox,Hire of Premises
Peterborough City Council,"Cemeteries, Cremation & Registrars",Bereavement Service,Services,01/05/2019,30224744,1630,Revenue,Anglia Co-operative Funerals,Contract Funerals
Peterborough City Council,Adults,Independent Sector Placements,Services,01/05/2019,30224855,2286.2,Revenue,Alysia Caring Ltd T/a Cherry Blossom care Home,Residential Care
Peterborough City Council,Adults,Independent Sector Placements,Services,01/05/2019,30224856,2104.4,Revenue,Alysia Caring Ltd T/a Cherry Blossom care Home,Residential Care
Peterborough City Council,Adults,Independent Sector Placements,Services,01/05/2019,30224857,1880.04,Revenue,Alysia Caring Ltd T/a Cherry Blossom care Home,Residential Care
Peterborough City Council,Adults,Independent Sector Placements,Services,01/05/2019,30224858,2556.52,Revenue,Alysia Caring Ltd T/a Cherry Blossom care Home,Residential Care
Peterborough City Council,Adults,Independent Sector Placements,Services,01/05/2019,30224859,3100,Revenue,Alysia Caring Ltd T/a Cherry Blossom care Home,Residential Care
Peterborough City Council,Adults,Independent Sector Placements,Services,01/05/2019,30224860,1883.32,Revenue,Alysia Caring Ltd T/a Cherry Blossom care Home,Residential Care
Peterborough City Council,Adults,Independent Sector Placements,Services,01/05/2019,30224861,1827.4,Revenue,Alysia Caring Ltd T/a Cherry Blossom care Home,Residential Care
Peterborough City Council,Adults,Independent Sector Placements,Services,01/05/2019,30224862,2930.04,Revenue,Alysia Caring Ltd T/a Cherry Blossom care Home,Residential Care
Peterborough City Council,Adults,Independent Sector Placements,Services,01/05/2019,30224863,1847.6,Revenue,Alysia Caring Ltd T/a Cherry Blossom care Home,Residential Care
Peterborough City Council,Adults,Independent Sector Placements,Services,01/05/2019,30224872,589.44,Revenue,Alysia Caring Ltd T/a Cherry Blossom care Home,Residential Care
Peterborough City Council,Adults,Independent Sector Placements,Services,01/05/2019,30224873,1743.64,Revenue,Alysia Caring Ltd T/a Cherry Blossom care Home,Residential Care
Peterborough City Council,Adults,Independent Sector Placements,Services,01/05/2019,30224874,1827,Revenue,Alysia Caring Ltd T/a Cherry Blossom care Home,Residential Care
Peterborough City Council,Adults,Independent Sector Placements,Services,01/05/2019,30224875,825.88,Revenue,Alysia Caring Ltd T/a Cherry Blossom care Home,Residential Care
Peterborough City Council,Adults,Independent Sector Placements,Services,01/05/2019,30224876,1255.32,Revenue,Alysia Caring Ltd T/a Cherry Blossom care Home,Residential Care
Peterborough City Council,Adults,Independent Sector Placements,Services,01/05/2019,30224877,3007.36,Revenue,Alysia Caring Ltd T/a Cherry Blossom care Home,Residential Care
Peterborough City Council,Adults,Independent Sector Placements,Services,01/05/2019,30224880,2192.4,Revenue,Alysia Caring Ltd T/a Cherry Blossom care Home,Residential Care
Peterborough City Council,Adults,Independent Sector Placements,Services,01/05/2019,30224882,1141.24,Revenue,Alysia Caring Ltd T/a Cherry Blossom care Home,Residential Care
Peterborough City Council,Adults,Independent Sector Placements,Services,01/05/2019,30224883,2128,Revenue,Alysia Caring Ltd T/a Cherry Blossom care Home,Residential Care
Peterborough City Council,Adults,Independent Sector Placements,Services,01/05/2019,30224885,1743.64,Revenue,Alysia Caring Ltd T/a Cherry Blossom care Home,Residential Care
Peterborough City Council,Corporate,Corporate,Non Revenue,01/05/2019,30224888,600,Balance Sheet,Redacted Personal Data,Insurance Claims
Peterborough City Council,ICT,ICT,Services,01/05/2019,30224889,-54206,Revenue,Servelec Education Limited,Computer Software
Peterborough City Council,Education,Special Educational Needs / Inclusion,Services,01/05/2019,30224939,810.26,Revenue,Ewing Foundation,Hired Services
Peterborough City Council,Adults,Block Contracts,Third Party Payments,01/05/2019,30225022,60548.12,Revenue,HEREWARD CARE SERVICES LIMITED,Third Party Payments - Contract
Peterborough City Council,ICT,ICT,Services,01/05/2019,30225027,6500,Revenue,Acclaim Safety Systems Ltd,Subscriptions
Peterborough City Council,Peterborough Highway Services,Transport & Infrastructure Commissioning,Third Party Payments,01/05/2019,30225042,1136.5,Revenue,Royal Voluntary Service,Grant-Third Party
Peterborough City Council,Commissioning and Commercial Operations,Commissioning,Services,01/05/2019,30225062,2639.8,Revenue,BDP Social Care Ltd,Hired Services
Peterborough City Council,Children's & Safeguarding,Early Help ASC/CSC,Services,01/05/2019,30225063,1776.5,Revenue,BDP Social Care Ltd,Hired Services
Peterborough City Council,Legal Services,Legal Services,Agency Staff,01/05/2019,30225119,1237.5,Revenue,Spinks Notary,External Temporary Staff
Peterborough City Council,Peterborough Serco Strategic Partnership,PSSP Retained Services,Services,01/05/2019,30225123,19412.44,Revenue,Konica Minolta Bus.Sol. East Ltd,Photocopying
Peterborough City Council,ICT,ICT,Agency Staff,01/05/2019,30225148,683.71,Revenue,Reed Specialist Recruitment Limited,External Temporary Staff
Peterborough City Council,Peterborough Highway Services,Highway Services - HoS,Agency Staff,01/05/2019,30225152,853.36,Revenue,Reed Specialist Recruitment Limited,External Temporary Staff
Peterborough City Council,Development and Construction,Planning Compliance,Agency Staff,01/05/2019,30225153,1246.88,Revenue,Reed Specialist Recruitment Limited,External Temporary Staff
Peterborough City Council,Development and Construction,Development Management,Agency Staff,01/05/2019,30225162,1182.91,Revenue,Reed Specialist Recruitment Limited,External Temporary Staff
Peterborough City Council,Communities,Performance & Information,Agency Staff,01/05/2019,30225173,1271.6,Revenue,Reed Specialist Recruitment Limited,External Temporary Staff
Peterborough City Council,Financial Services,Finance,Agency Staff,01/05/2019,30225179,744.93,Revenue,Reed Specialist Recruitment Limited,External Temporary Staff
Peterborough City Council,"Cemeteries, Cremation & Registrars",Bereavement Service,Services,01/05/2019,30225243,1630,Revenue,Anglia Co-operative Funerals,Contract Funerals
Peterborough City Council,Children's & Safeguarding,Children's Social Care,Services,01/05/2019,30225270,1621.2,Revenue,Maze Independent Care Ltd,Purchased Social Care Services
Peterborough City Council,Adults,Therapy/Reablement/Community Equipment,"Tools, Equipment, Furniture & Materials",01/05/2019,30225312,827.63,Revenue,Action on Hearing Loss (Equipment),Occupational Therapy Equipment
Peterborough City Council,Commissioning and Commercial Operations,Access to Resources & Specialist Commissioning,Services,01/05/2019,30225372,10928.7,Revenue,Acorn Homes UK Ltd,Boarding Out Fees
Peterborough City Council,Commissioning and Commercial Operations,Access to Resources & Specialist Commissioning,Services,01/05/2019,30225424,8400,Revenue,A & T Home Limited,Boarding Out Fees
Peterborough City Council,Adults,Home Services Delivery Model,Services,01/05/2019,30225431,986,Revenue,Rawheat Heating & Plumbing Eng.,Contractors
Peterborough City Council,Constitutional Services,Democratic Services,Services,01/05/2019,30225442,500,Revenue,Frontline Consulting Associates,Subscriptions
Peterborough City Council,Education,PFI,Services,01/05/2019,30225443,742906.8,Revenue,IIC by Education (P'boro) Ltd,Contract Services
Peterborough City Council,"Cemeteries, Cremation & Registrars",Bereavement Service,Repair & Maintenance of Buildings,01/05/2019,30225488,1150,Revenue,Chris Groome Decorating Ltd,Premises Maintenance
Peterborough City Council,Corporate,Corporate,Non Revenue,01/05/2019,30225491,25266,Capital,SS Testing Ltd,Building And Site Works
Peterborough City Council,Adults,Independent Sector Placements,Services,01/05/2019,30225505,1816.64,Revenue,Avery House (Peterborough) t/a Brighterkind,Residential Care
Peterborough City Council,Adults,Independent Sector Placements,Services,01/05/2019,30225506,1237.64,Revenue,Avery House (Peterborough) t/a Brighterkind,Residential Care
Peterborough City Council,Adults,Independent Sector Placements,Services,01/05/2019,30225507,-1000,Revenue,Avery House (Peterborough) t/a Brighterkind,Residential Care
Peterborough City Council,Adults,Independent Sector Placements,Services,01/05/2019,30225534,2300,Revenue,Goldcare Homes t/a The Tudors Care Home,Residential Care
Peterborough City Council,Public Health,PH Commissioning,Third Party Payments,01/05/2019,30225565,2310,Revenue,Cambridgeshire Community Services,Third Party Payments - Contract
Peterborough City Council,Corporate,Corporate,Non Revenue,01/05/2019,30225573,680,Capital,M J Greaves,Building And Site Works
Peterborough City Council,Corporate,Corporate,Non Revenue,01/05/2019,30225599,900,Capital,M J Greaves,Building And Site Works
Peterborough City Council,Corporate,Corporate,Non Revenue,01/05/2019,30225601,715,Capital,M J Greaves,Building And Site Works
Peterborough City Council,"Waste, Cleansing and Open Spaces",Waste Management,Services,01/05/2019,30225651,757.5,Revenue,CardDispenser UK Ltd,Printing
Peterborough City Council,Adults,Mental Capacity Act & DoLs,Services,01/05/2019,30225677,1136,Revenue,Raj Medical Consultancy Limited,Hired Services
Peterborough City Council,Commissioning and Commercial Operations,Access to Resources & Specialist Commissioning,Services,01/05/2019,30225682,4730,Revenue,MJ Childrens Services,Boarding Out Fees
Peterborough City Council,Adults,Independent Sector Placements,Services,01/05/2019,30225713,5760.29,Revenue,Action on Hearing Loss (Care Fees),Residential Care
Peterborough City Council,Peterborough Highway Services,Highway & Drainage Control,Agency Staff,01/05/2019,30225745,1018.71,Revenue,Reed Specialist Recruitment Limited,External Temporary Staff
Peterborough City Council,Peterborough Highway Services,Highway & Drainage Control,Agency Staff,01/05/2019,30225747,1247.68,Revenue,Reed Specialist Recruitment Limited,External Temporary Staff
Peterborough City Council,ICT,ICT,Agency Staff,01/05/2019,30225753,1814.88,Revenue,Reed Specialist Recruitment Limited,External Temporary Staff
Peterborough City Council,Financial Services,Finance,Agency Staff,01/05/2019,30225754,542.3,Revenue,Reed Specialist Recruitment Limited,External Temporary Staff
Peterborough City Council,Adults,Independent Sector Placements,Services,01/05/2019,30225802,1095.9,Revenue,STAR RESIDENTIAL HOME LTD,Residential Care
Peterborough City Council,Legal Services,Legal Services,Agency Staff,01/05/2019,30225829,1508.15,Revenue,Reed Specialist Recruitment Limited,External Temporary Staff
Peterborough City Council,Legal Services,Legal Services,Agency Staff,01/05/2019,30225831,1836.34,Revenue,Reed Specialist Recruitment Limited,External Temporary Staff
Peterborough City Council,Adults,OP/PD/SI,"Tools, Equipment, Furniture & Materials",01/05/2019,30225835,97462.02,Revenue,NRS Healthcare,Occupational Therapy Equipment
Peterborough City Council,ICT,ICT,Services,01/05/2019,30225847,4947.54,Revenue,Capita Business Services Ltd,Computer Software
Peterborough City Council,Development and Construction,Building Control,Agency Staff,01/05/2019,30225851,1075.05,Revenue,Reed Specialist Recruitment Limited,External Temporary Staff
Peterborough City Council,Resilience & Health & Safety,Resilience & Health & Safety,Agency Staff,01/05/2019,30225855,688.31,Revenue,Reed Specialist Recruitment Limited,External Temporary Staff
Peterborough City Council,Development and Construction,Development Management,Agency Staff,01/05/2019,30225856,781.8,Revenue,Reed Specialist Recruitment Limited,External Temporary Staff
Peterborough City Council,Legal Services,Legal Services,Agency Staff,01/05/2019,30225858,719,Revenue,Reed Specialist Recruitment Limited,External Temporary Staff
Peterborough City Council,Adults,Mental Capacity Act & DoLs,Services,01/05/2019,30225862,2039,Revenue,SS Psychiatric Services Ltd,Hired Services
Peterborough City Council,Peterborough Highway Services,Highway & Drainage Control,Agency Staff,01/05/2019,30225889,1018.71,Revenue,Reed Specialist Recruitment Limited,External Temporary Staff
Peterborough City Council,Regulatory Services,Regulatory Services,Agency Staff,01/05/2019,30225890,1074.17,Revenue,Reed Specialist Recruitment Limited,External Temporary Staff
Peterborough City Council,Financial Services,Finance,Agency Staff,01/05/2019,30225899,654.82,Revenue,Reed Specialist Recruitment Limited,External Temporary Staff
Peterborough City Council,Adults,Independent Sector Placements,Services,01/05/2019,30225924,2616.2,Revenue,Excellence Care Ltd,Home Care
Peterborough City Council,Adults,Independent Sector Placements,Services,01/05/2019,30225926,2086.44,Revenue,Chigwell Homes Ltd t/a Marcris House,Residential Care
Peterborough City Council,Commissioning and Commercial Operations,Access to Resources & Specialist Commissioning,Services,01/05/2019,30225927,4246.5,Revenue,By The Bridge,Boarding Out Fees
Peterborough City Council,Commissioning and Commercial Operations,Access to Resources & Specialist Commissioning,Services,01/05/2019,30225928,4331.4,Revenue,By The Bridge,Boarding Out Fees
Peterborough City Council,Commissioning and Commercial Operations,Access to Resources & Specialist Commissioning,Services,01/05/2019,30225929,3814.2,Revenue,Byrne House Ltd,Boarding Out Fees
Peterborough City Council,Commissioning and Commercial Operations,Access to Resources & Specialist Commissioning,Services,01/05/2019,30225930,3814.2,Revenue,Byrne House Ltd,Boarding Out Fees
Peterborough City Council,Marketing & Communications,Marketing & Communications,Services,01/05/2019,30225932,9596,Revenue,Warners Midlands Plc,Printing
Peterborough City Council,Corporate Property,Commercial Propety,Rents,01/05/2019,30225934,545,Revenue,Redacted Personal Data ,Rent
Peterborough City Council,Commissioning and Commercial Operations,Access to Resources & Specialist Commissioning,Services,01/05/2019,30225937,18981.3,Revenue,Cambian Childcare Ltd,Boarding Out Fees
Peterborough City Council,Commissioning and Commercial Operations,Access to Resources & Specialist Commissioning,Services,01/05/2019,30225938,3428.7,Revenue,Cambian Childcare Ltd,Boarding Out Fees
Peterborough City Council,Communities,Targeted Youth Service,Services,01/05/2019,30225940,1080,Revenue,The Award Scheme Ltd,Licences
Peterborough City Council,Commissioning and Commercial Operations,Access to Resources & Specialist Commissioning,Services,01/05/2019,30225941,3814.2,Revenue,Byrne House Ltd,Boarding Out Fees
Peterborough City Council,Commissioning and Commercial Operations,Access to Resources & Specialist Commissioning,Services,01/05/2019,30225942,4530,Revenue,Ethelbert Childrens Services,Boarding Out Fees
Peterborough City Council,"Waste, Cleansing and Open Spaces",Waste & Operational Svs Mgmt,Third Party Payments,01/05/2019,30225947,720,Revenue,Peterborough BMX Club,Third Party Payments - Contract
Peterborough City Council,Adults,Mental Capacity Act & DoLs,Services,01/05/2019,30225948,1327,Revenue,Raj Medical Consultancy Limited,Hired Services
Peterborough City Council,Development and Construction,Planning Compliance,Agency Staff,01/05/2019,30225953,947.64,Revenue,Reed Specialist Recruitment Limited,External Temporary Staff
Peterborough City Council,Children's & Safeguarding,Children's Social Care,Contract Hire and Operating Leases,01/05/2019,30225956,-4642.24,Revenue,Northumbria Healthcare NHS Foundation Trust,Leasing Charges
Peterborough City Council,Children's & Safeguarding,Children's Social Care,Contract Hire and Operating Leases,01/05/2019,30225957,4733.01,Revenue,Northumbria Healthcare NHS Foundation Trust,Leasing Charges
Peterborough City Council,Development and Construction,Development Management,Agency Staff,01/05/2019,30225958,939.18,Revenue,Reed Specialist Recruitment Limited,External Temporary Staff
Peterborough City Council,ICT,ICT,Agency Staff,01/05/2019,30225959,716.9,Revenue,Reed Specialist Recruitment Limited,External Temporary Staff
Peterborough City Council,ICT,ICT,Agency Staff,01/05/2019,30225960,1814.88,Revenue,Reed Specialist Recruitment Limited,External Temporary Staff
Peterborough City Council,Children's & Safeguarding,Children's Social Care,Relocation,01/05/2019,30225961,6019.78,Revenue,Tripod Partners Ltd,Relocation Expenses
Peterborough City Council,Children's & Safeguarding,Children's Social Care,Relocation,01/05/2019,30225964,1567.29,Revenue,Tripod Partners Ltd,Relocation Expenses
Peterborough City Council,Children's & Safeguarding,Children's Social Care,Relocation,01/05/2019,30225969,6182.38,Revenue,Tripod Partners Ltd,Relocation Expenses
Peterborough City Council,Peterborough Highway Services,Highway Services - HoS,Agency Staff,01/05/2019,30225998,6106.65,Revenue,AECOM I & E Ltd,External Temporary Staff
Peterborough City Council,Children's & Safeguarding,Children's Social Care,Third Party Payments,01/05/2019,30226006,33172.51,Revenue,"The Bedfordshire, Northamptonshire, Cambridgeshire and Hertfordshire Community Rehabilitation Company Limited T/A BeNCH CRC",Third Party Payments - Contract
Peterborough City Council,City Centre Management,"Markets, Tourism & Events",Energy Costs,01/05/2019,30226040,1001.69,Revenue,EDF Energy Networks Ltd,Electricity
Peterborough City Council,Parking Services,Parking Services,Energy Costs,01/05/2019,30226040,4006.77,Revenue,EDF Energy Networks Ltd,Electricity
Peterborough City Council,Children's & Safeguarding,Children's Social Care,Relocation,01/05/2019,30226042,10674.15,Revenue,Tripod Partners Ltd,Relocation Expenses
Peterborough City Council,Constitutional Services,Elections,Contract Hire and Operating Leases,01/05/2019,30226101,3973.01,Revenue,Northumbria Healthcare NHS Foundation Trust,Leasing Charges
Peterborough City Council,Communities,Housing,Services,01/05/2019,30226102,2975,Revenue,Singh and Sons Property Management Ltd,Temporary Accommodation Costs
Peterborough City Council,Communities,Housing,Services,01/05/2019,30226103,3150,Revenue,Singh and Sons Property Management Ltd,Temporary Accommodation Costs
Peterborough City Council,Communities,Housing,Services,01/05/2019,30226104,3160,Revenue,Singh and Sons Property Management Ltd,Temporary Accommodation Costs
Peterborough City Council,Communities,Housing,Services,01/05/2019,30226105,2275,Revenue,Singh and Sons Property Management Ltd,Temporary Accommodation Costs
Peterborough City Council,Commissioning and Commercial Operations,Access to Resources & Specialist Commissioning,Services,01/05/2019,30226128,3642.6,Revenue,Eastern Family Services,Boarding Out Fees
Peterborough City Council,Communities,Cohesion,Agency Staff,01/05/2019,30226148,757.44,Revenue,Reed Specialist Recruitment Limited,External Temporary Staff
Peterborough City Council,Communities,Housing,Services,01/05/2019,30226151,12717,Revenue,Eastfield Guesthouse,Temporary Accommodation Costs
Peterborough City Council,Adults,Independent Sector Placements,Services,01/05/2019,8000141816,1294.51,Revenue,Hales Group Ltd,Home Care
Peterborough City Council,Adults,Independent Sector Placements,Services,01/05/2019,8000141866,1247.13,Revenue,Hales Group Ltd,Home Care
Peterborough City Council,Adults,Independent Sector Placements,Services,01/05/2019,8000142008,547.5,Revenue,PRESTIGE NURSING LIMITED,Home Care
Peterborough City Council,Adults,Independent Sector Placements,Services,01/05/2019,8000142009,10536,Revenue,PRESTIGE NURSING LIMITED,Home Care
Peterborough City Council,Corporate,Corporate,Non Revenue,02/05/2019,30226308,532014.45,Balance Sheet,Teachers Pensions,Pensions
Peterborough City Council,Adults,Finance,Third Party Payments,03/05/2019,30220174,1200,Revenue,Anchor Homes,Third Party Payments - Contract
Peterborough City Council,Adults,Finance,Third Party Payments,03/05/2019,30220176,1200,Revenue,Anchor Homes,Third Party Payments - Contract
Peterborough City Council,Adults,Finance,Third Party Payments,03/05/2019,30220179,600,Revenue,Anchor Homes,Third Party Payments - Contract
Peterborough City Council,Communities,Cohesion,Third Party Payments,03/05/2019,30221841,9000,Revenue,IQRA Academy,Grant-Third Party
Peterborough City Council,Commissioning and Commercial Operations,Access to Resources & Specialist Commissioning,Services,03/05/2019,30222687,15434.4,Revenue,Cambian Childcare Ltd,Boarding Out Fees
Peterborough City Council,Commissioning and Commercial Operations,Access to Resources & Specialist Commissioning,Services,03/05/2019,30222695,3428.7,Revenue,Cambian Childcare Ltd,Boarding Out Fees
Peterborough City Council,Commissioning and Commercial Operations,Access to Resources & Specialist Commissioning,Services,03/05/2019,30222696,15642.9,Revenue,Cambian Childcare Ltd,Boarding Out Fees
Peterborough City Council,Commissioning and Commercial Operations,Access to Resources & Specialist Commissioning,Services,03/05/2019,30222697,21214.2,Revenue,Cambian Childcare Ltd,Boarding Out Fees
Peterborough City Council,Other - Exclude,Other,"Other Grants, reimbursements and contributions",03/05/2019,30223206,4636.1,Revenue,Bretton Parish Council,Grant Payment
Peterborough City Council,Other - Exclude,Other,"Other Grants, reimbursements and contributions",03/05/2019,30223208,2433.61,Revenue,Peakirk Parish Council,Grant Payment
Peterborough City Council,Children's & Safeguarding,Children's Social Care,Public Transport,03/05/2019,30223325,5290.1,Revenue,R S P LTD,Public Transport
Peterborough City Council,Adults,Independent Sector Placements,Services,03/05/2019,30223379,5354.44,Revenue,Accomplish Group Limited (Orchard Hill),Residential Care
Peterborough City Council,Corporate Property,Commercial Propety,Services,03/05/2019,30223574,2326,Revenue,NPS Peterborough Ltd,Consultants Fees
Peterborough City Council,Corporate,Corporate,Non Revenue,03/05/2019,30223851,4968.4,Capital,Rawheat Heating & Plumbing Eng.,Building And Site Works
Peterborough City Council,"Cemeteries, Cremation & Registrars",Bereavement Service,Repair & Maintenance of Buildings,03/05/2019,30224035,10616.71,Revenue,A M Strickland Builders,Premises Maintenance
Peterborough City Council,Children's & Safeguarding,Early Help ASC/CSC,Agency Staff,03/05/2019,30224262,584.22,Revenue,Reed Specialist Recruitment Limited,External Temporary Staff
Peterborough City Council,Corporate Property,Office Accomodation,Cleaning & Domestic Supplies,03/05/2019,30224382,3779.09,Revenue,PHS Group Plc,Hygiene Supplies
Peterborough City Council,Commissioning and Commercial Operations,Clare Lodge,Agency Staff,03/05/2019,30224414,1104,Revenue,Wrixon Care Services,External Temporary Staff
Peterborough City Council,Commissioning and Commercial Operations,Clare Lodge,Agency Staff,03/05/2019,30224416,624,Revenue,Wrixon Care Services,External Temporary Staff
Peterborough City Council,Commissioning and Commercial Operations,Clare Lodge,Agency Staff,03/05/2019,30224421,2048,Revenue,Wrixon Care Services,External Temporary Staff
Peterborough City Council,Adults,Independent Sector Placements,Services,03/05/2019,30224563,5674.64,Revenue,Enham Trust,Residential Care
Peterborough City Council,Adults,Independent Sector Placements,Services,03/05/2019,30224564,1590.68,Revenue,Goldcare Homes t/a The Tudors Care Home,Residential Care
Peterborough City Council,Adults,Independent Sector Placements,Services,03/05/2019,30224572,1507.6,Revenue,Goldcare Homes t/a The Tudors Care Home,Residential Care
Peterborough City Council,Adults,Independent Sector Placements,Services,03/05/2019,30224575,1424.76,Revenue,Goldcare Homes t/a The Tudors Care Home,Residential Care
Peterborough City Council,Legal Services,Legal Services,Services,03/05/2019,30224652,787.5,Revenue,Miss Ellena Forman,Legal Costs
Peterborough City Council,Adults,Independent Sector Placements,Contract Hire and Operating Leases,03/05/2019,30224663,718.76,Revenue,Peterborough Cars,Hired Transport
Peterborough City Council,Adults,Independent Sector Placements,Contract Hire and Operating Leases,03/05/2019,30224665,735,Revenue,Peterborough Cars,Hired Transport
Peterborough City Council,Adults,Independent Sector Placements,Services,03/05/2019,30224668,831.05,Revenue,Peterborough Care  The Maltings,Residential Care
Peterborough City Council,Adults,Independent Sector Placements,Services,03/05/2019,30224670,2457.8,Revenue,Peterborough Care  The Maltings,Residential Care
Peterborough City Council,Adults,Independent Sector Placements,Services,03/05/2019,30224672,1800,Revenue,FIELD HOUSE (EYE) LTD,Residential Care
Peterborough City Council,Communities,Housing,Services,03/05/2019,30224686,7780.68,Revenue,DA Rosalia Hotel,Temporary Accommodation Costs
Peterborough City Council,Peterborough Serco Strategic Partnership,Peterborough Serco Strategic Partnership,Services,03/05/2019,30224743,6600,Revenue,Airey Consultancy Services Ltd,Consultants Fees
Peterborough City Council,Commissioning and Commercial Operations,Clare Lodge,Agency Staff,03/05/2019,30224765,1327.5,Revenue,Mana Resourcing Ltd,Supply Teachers
Peterborough City Council,Peterborough Highway Services,Network and Traffic Management,Services,03/05/2019,30224820,3425,Revenue,Yotta Ltd,Professional Services
Peterborough City Council,Corporate,Corporate,Non Revenue,03/05/2019,30225057,2750,Capital,8/5 Electrical Ltd,Building And Site Works
Peterborough City Council,Regulatory Services,Regulatory Services,Services,03/05/2019,30225116,1295,Revenue,Paul Stainton Media Ltd,Training
Peterborough City Council,Peterborough Highway Services,Asset & Contract Performance,Services,03/05/2019,30225118,11965,Revenue,Building Software Limited,Surveys
Peterborough City Council,Commissioning and Commercial Operations,Commissioning Team,Agency Staff,03/05/2019,30225137,2243.6,Revenue,Reed Specialist Recruitment Limited,External Temporary Staff
Peterborough City Council,Children's & Safeguarding,Early Help ASC/CSC,Agency Staff,03/05/2019,30225151,668.3,Revenue,Reed Specialist Recruitment Limited,External Temporary Staff
Peterborough City Council,Commissioning and Commercial Operations,Clare Lodge,Agency Staff,03/05/2019,30225165,589.43,Revenue,Reed Specialist Recruitment Limited,External Temporary Staff
Peterborough City Council,Peterborough Highway Services,Highway Services - HoS,Agency Staff,03/05/2019,30225166,1235.8,Revenue,Reed Specialist Recruitment Limited,External Temporary Staff
Peterborough City Council,"Waste, Cleansing and Open Spaces",Waste Management,Services,03/05/2019,30225168,13539.42,Revenue,Material Change Composting Ltd,Recycling
Peterborough City Council,Peterborough Highway Services,Highway & Drainage Control,Agency Staff,03/05/2019,30225171,1690.5,Revenue,Matchtech,External Temporary Staff
Peterborough City Council,Children's & Safeguarding,Early Help ASC/CSC,Agency Staff,03/05/2019,30225177,720.44,Revenue,Reed Specialist Recruitment Limited,External Temporary Staff
Peterborough City Council,Westcombe Engineering,Westcombe Engineering,"Tools, Equipment, Furniture & Materials",03/05/2019,30225185,767,Revenue,M O 8 Specialities Ltd,Materials
Peterborough City Council,City Centre Management,"Markets, Tourism & Events",Services,03/05/2019,30225235,500,Revenue,The Freetime Initiative Ltd,Advertising
Peterborough City Council,Corporate,Corporate,Non Revenue,03/05/2019,30225236,33738,Capital,IIC by Education (P'boro) Ltd,Professional/Legal Fees
Peterborough City Council,Children's & Safeguarding,External Education Placements,Services,03/05/2019,30225237,24166.67,Revenue,Knossington Grange School Ltd,Boarding Out Fees
Peterborough City Council,Communities,Housing,Services,03/05/2019,30225293,13108.02,Revenue,Eastfield Guesthouse,Temporary Accommodation Costs
Peterborough City Council,Communities,Housing,Services,03/05/2019,30225295,8713.35,Revenue,Eastfield Guesthouse,Temporary Accommodation Costs
Peterborough City Council,Adults,Therapy/Reablement/Community Equipment,"Tools, Equipment, Furniture & Materials",03/05/2019,30225373,694.12,Revenue,Action on Hearing Loss (Equipment),Occupational Therapy Equipment
Peterborough City Council,Corporate Property,Office Accomodation,Repair & Maintenance of Buildings,03/05/2019,30225469,1415.5,Revenue,Derry Building Services Ltd,Premises Maintenance
Peterborough City Council,Westcombe Engineering,Westcombe Engineering,"Tools, Equipment, Furniture & Materials",03/05/2019,30225550,766.26,Revenue,Barron Clark Castings Ltd,Materials
Peterborough City Council,Commissioning and Commercial Operations,Access to Resources & Specialist Commissioning,Services,03/05/2019,30225580,12000,Revenue,Horizon Care & Education Group,Boarding Out Fees
Peterborough City Council,Commissioning and Commercial Operations,Access to Resources & Specialist Commissioning,Services,03/05/2019,30225608,20707.2,Revenue,Positive Steps (Care Services) Ltd,Boarding Out Fees
Peterborough City Council,Corporate Property,Office Accomodation,Services,03/05/2019,30225644,1040,Revenue,CardDispenser UK Ltd,Security
Peterborough City Council,Corporate,Corporate,Non Revenue,03/05/2019,30225680,848.62,Capital,Rawheat Heating & Plumbing Eng.,Building And Site Works
Peterborough City Council,Children's & Safeguarding,Early Help ASC/CSC,Agency Staff,03/05/2019,30225857,575.8,Revenue,Reed Specialist Recruitment Limited,External Temporary Staff
Peterborough City Council,Adults,Mental Capacity Act & DoLs,Services,03/05/2019,30225864,744.8,Revenue,SS Psychiatric Services Ltd,Hired Services
Peterborough City Council,Commissioning and Commercial Operations,Commissioning Team,Agency Staff,03/05/2019,30225893,653.06,Revenue,Reed Specialist Recruitment Limited,External Temporary Staff
Peterborough City Council,Adults,Independent Sector Placements,Services,03/05/2019,30225925,2742.86,Revenue,FIELD HOUSE (EYE) LTD,Residential Care
Peterborough City Council,Development and Construction,Development Management,Agency Staff,03/05/2019,30225944,1365.01,Revenue,Reed Specialist Recruitment Limited,External Temporary Staff
Peterborough City Council,Children's & Safeguarding,Early Help ASC/CSC,Agency Staff,03/05/2019,30225972,735.58,Revenue,Reed Specialist Recruitment Limited,External Temporary Staff
Peterborough City Council,Commissioning and Commercial Operations,Access to Resources & Specialist Commissioning,Services,03/05/2019,30225976,3348,Revenue,Compass Fostering Central Limited,Boarding Out Fees
Peterborough City Council,Children's & Safeguarding,Children's Social Care,Agency Staff,03/05/2019,30226038,1672.82,Revenue,Reed Specialist Recruitment Limited,External Temporary Staff
Peterborough City Council,ICT,ICT,Services,03/05/2019,30226107,1049.75,Revenue,MLL Telecom Limited,Internet
Peterborough City Council,Adults,Mental Capacity Act & DoLs,Services,03/05/2019,30226174,1134,Revenue,Raj Medical Consultancy Limited,Hired Services
Peterborough City Council,Legal Services,Legal Services,Services,03/05/2019,30226177,1070.5,Revenue,Weightmans LLP,Legal Costs
Peterborough City Council,Peterborough Highway Services,Network and Traffic Management,Services,03/05/2019,30226191,546,Revenue,JPIMedia Publishing Ltd,Advertising
Peterborough City Council,Peterborough Highway Services,Network and Traffic Management,Services,03/05/2019,30226193,718.42,Revenue,JPIMedia Publishing Ltd,Advertising
Peterborough City Council,Peterborough Highway Services,Network and Traffic Management,Services,03/05/2019,30226195,718.42,Revenue,JPIMedia Publishing Ltd,Advertising
Peterborough City Council,Peterborough Highway Services,Network and Traffic Management,Services,03/05/2019,30226200,632.22,Revenue,JPIMedia Publishing Ltd,Advertising
Peterborough City Council,Peterborough Highway Services,Network and Traffic Management,Services,03/05/2019,30226201,1206.95,Revenue,JPIMedia Publishing Ltd,Advertising
Peterborough City Council,Peterborough Highway Services,Asset & Contract Performance,Services,03/05/2019,30226215,5000,Revenue,Leicestershire County Council,Subscriptions
Peterborough City Council,Commissioning and Commercial Operations,Access to Resources & Specialist Commissioning,Services,03/05/2019,30226245,2136.9,Revenue,Cambian Childcare Ltd,Boarding Out Fees
Peterborough City Council,Children's & Safeguarding,Early Help ASC/CSC,Agency Staff,03/05/2019,30226252,504.89,Revenue,Reed Specialist Recruitment Limited,External Temporary Staff
Peterborough City Council,Commissioning and Commercial Operations,Access to Resources & Specialist Commissioning,Services,03/05/2019,30226253,19500,Revenue,Hillcrest Children Serv(2)Ltd t/a Options BESD (1) Ltd,Boarding Out Fees
Peterborough City Council,Commissioning and Commercial Operations,Access to Resources & Specialist Commissioning,Services,03/05/2019,30226254,780.01,Revenue,Swiis Foster Care Ltd,Boarding Out Fees
Peterborough City Council,Development and Construction,Development Management,Agency Staff,03/05/2019,30226256,939.18,Revenue,Reed Specialist Recruitment Limited,External Temporary Staff
Peterborough City Council,Commissioning and Commercial Operations,Access to Resources & Specialist Commissioning,Services,03/05/2019,30226257,13236,Revenue,Positive Steps (Care Services) Ltd,Boarding Out Fees
Peterborough City Council,Peterborough Highway Services,Highway Services - HoS,Agency Staff,03/05/2019,30226261,1002,Revenue,Reed Specialist Recruitment Limited,External Temporary Staff
Peterborough City Council,Corporate Property,Office Accomodation,Services,03/05/2019,30226262,725,Revenue,DAL PEST SOLUTIONS LIMITED,Pest Control
Peterborough City Council,Adults,Finance,Third Party Payments,03/05/2019,30226265,1200,Revenue,Anchor Homes,Third Party Payments - Contract
Peterborough City Council,Children's & Safeguarding,External Education Placements,Services,03/05/2019,30226302,1974.92,Revenue,The Arnewood School,Out Of Area Education Costs
Peterborough City Council,Children's & Safeguarding,External Education Placements,Services,03/05/2019,30226303,1974.91,Revenue,The Arnewood School,Out Of Area Education Costs
Peterborough City Council,Adults,Home Services Delivery Model,Services,03/05/2019,30226400,1555.5,Revenue,Fletton Electrics Ltd,Contractors
Peterborough City Council,Regulatory Services,Regulatory Services,"Printing, Stationery & General Office Expenses",03/05/2019,30226417,791.28,Revenue,Allied Publicity Services (Manchester) Limited,Stationery
Peterborough City Council,Corporate,Corporate,Non Revenue,03/05/2019,30226421,1034.69,Capital,Agility Eco Services Limited,Grant Payment
Peterborough City Council,Adults,Mental Capacity Act & DoLs,Services,03/05/2019,30226424,2837,Revenue,Dr Nauman Khalil Ltd,Hired Services
Peterborough City Council,Commissioning and Commercial Operations,Access to Resources & Specialist Commissioning,Services,03/05/2019,30226430,915.6,Revenue,Axiom Housing Association Ltd,Boarding Out Fees
Peterborough City Council,Commissioning and Commercial Operations,Access to Resources & Specialist Commissioning,Services,03/05/2019,30226432,15451.41,Revenue,Ethelbert Childrens Services,Boarding Out Fees
Peterborough City Council,Commissioning and Commercial Operations,Access to Resources & Specialist Commissioning,Services,03/05/2019,30226452,100733.37,Revenue,Seashell Trust,Boarding Out Fees
Peterborough City Council,Children's & Safeguarding,Early Help ASC/CSC,Services,03/05/2019,30226493,30000,Revenue,YMCA Cambridge & Peterborough Ltd,Hired Services
Peterborough City Council,Development and Construction,Development Management,Agency Staff,03/05/2019,30226501,1365.01,Revenue,Reed Specialist Recruitment Limited,External Temporary Staff
Peterborough City Council,Children's & Safeguarding,Children's Social Care,Services,03/05/2019,30226505,3000,Revenue,Redacted Personal Data,Financial Assistance
Peterborough City Council,Communities,Housing,Services,03/05/2019,30226511,36141,Revenue,Stef & Philips Ltd,Temporary Accommodation Costs
Peterborough City Council,Communities,Cultural Services,Services,03/05/2019,30226518,500,Revenue,Peterborough Sings,Hired Services
Peterborough City Council,Communities,Cultural Services,Services,03/05/2019,30226519,2000,Revenue,Peterborough Sings,Hired Services
Peterborough City Council,Education,HTS & CSC Transport,Contract Hire and Operating Leases,03/05/2019,30226523,698.4,Revenue,Positive Steps (Care Services) Ltd,Hired Transport
Peterborough City Council,Corporate Property,Commercial Propety,Services,03/05/2019,30226527,5000,Revenue,Bee Lettings Ltd,Professional Services
Peterborough City Council,Legal Services,Legal Services,Services,03/05/2019,30226528,525,Revenue,"Dobson, Miss Lawren",Legal Costs
Peterborough City Council,HR,HR WFD & Training,Services,03/05/2019,30226614,5000,Revenue,WebBased Ltd,Training
Peterborough City Council,Children's & Safeguarding,Commissioning - CSC,Services,03/05/2019,8000142152,673.84,Revenue,Redacted Personal Data ,Financial Assistance
Peterborough City Council,Children's & Safeguarding,Commissioning - CSC,Services,03/05/2019,8000142152,766.34,Revenue,Redacted Personal Data ,Financial Assistance
Peterborough City Council,Children's & Safeguarding,Commissioning - CSC,Services,03/05/2019,8000142152,576.38,Revenue,Redacted Personal Data ,Financial Assistance
Peterborough City Council,Children's & Safeguarding,Commissioning - CSC,Services,03/05/2019,8000142152,866.92,Revenue,Redacted Personal Data ,Financial Assistance
Peterborough City Council,Children's & Safeguarding,Commissioning - CSC,Services,03/05/2019,8000142152,2022.82,Revenue,Redacted Personal Data ,Financial Assistance
Peterborough City Council,Children's & Safeguarding,Commissioning - CSC,Services,03/05/2019,8000142152,627.18,Revenue,Redacted Personal Data ,Financial Assistance
Peterborough City Council,Children's & Safeguarding,Commissioning - CSC,Services,03/05/2019,8000142152,748.76,Revenue,Redacted Personal Data ,Financial Assistance
Peterborough City Council,Children's & Safeguarding,Commissioning - CSC,Services,03/05/2019,8000142152,748.76,Revenue,Redacted Personal Data ,Financial Assistance
Peterborough City Council,Children's & Safeguarding,Commissioning - CSC,Services,03/05/2019,8000142152,1260,Revenue,Redacted Personal Data ,Financial Assistance
Peterborough City Council,Children's & Safeguarding,Commissioning - CSC,Services,03/05/2019,8000142152,550.4,Revenue,Redacted Personal Data ,Financial Assistance
Peterborough City Council,Children's & Safeguarding,Commissioning - CSC,Services,03/05/2019,8000142152,866.76,Revenue,Redacted Personal Data ,Financial Assistance
Peterborough City Council,Children's & Safeguarding,Commissioning - CSC,Services,03/05/2019,8000142152,606.46,Revenue,P'Boro Council For Voluntary Srvs (PCVS),Financial Assistance
Peterborough City Council,Children's & Safeguarding,Commissioning - CSC,Services,03/05/2019,8000142152,618.81,Revenue,Redacted Personal Data,Financial Assistance
Peterborough City Council,Adults,Independent Sector Placements,Services,08/05/2019,30216005,818.16,Revenue,Atlas Care Services Ltd,Home Care
Peterborough City Council,ICT,ICT,Services,08/05/2019,30216580,5573.37,Revenue,Intec For Business Ltd,Computer Software
Peterborough City Council,Legal Services,Legal Services,Agency Staff,08/05/2019,30224098,1912.5,Revenue,Venn Group Ltd,External Temporary Staff
Peterborough City Council,Legal Services,Legal Services,Agency Staff,08/05/2019,30224099,2142,Revenue,Venn Group Ltd,External Temporary Staff
Peterborough City Council,Legal Services,Legal Services,Agency Staff,08/05/2019,30224100,612.99,Revenue,Venn Group Ltd,External Temporary Staff
Peterborough City Council,Legal Services,Legal Services,Agency Staff,08/05/2019,30224101,2062.5,Revenue,Venn Group Ltd,External Temporary Staff
Peterborough City Council,Development and Construction,Development Management,Services,08/05/2019,30224113,613.88,Revenue,JPIMedia Publishing Ltd,Advertising
Peterborough City Council,Peterborough Highway Services,Network and Traffic Management,Services,08/05/2019,30224114,689.68,Revenue,JPIMedia Publishing Ltd,Advertising
Peterborough City Council,Adults,Independent Sector Placements,Services,08/05/2019,30224496,1137.48,Revenue,Oakhouse Home Care Cambs Ltd,Residential Care
Peterborough City Council,Adults,Independent Sector Placements,Services,08/05/2019,30224497,1205.68,Revenue,Oakhouse Home Care Cambs Ltd,Residential Care
Peterborough City Council,Adults,Independent Sector Placements,Services,08/05/2019,30224498,984.32,Revenue,Oakhouse Home Care Cambs Ltd,Residential Care
Peterborough City Council,Legal Services,Legal Services,Agency Staff,08/05/2019,30224634,1774.29,Revenue,Venn Group Ltd,External Temporary Staff
Peterborough City Council,Coroners Service,Coroners Service,Third Party Payments,08/05/2019,30224687,253747,Revenue,Cambridgeshire County Council,Third Party Payments - Contract
Peterborough City Council,Peterborough Highway Services,Network and Traffic Management,Services,08/05/2019,30224688,3624.18,Revenue,Cambridgeshire County Council,Real Time Passenger Information
Peterborough City Council,Peterborough Serco Strategic Partnership,PSSP Retained Services,Services,08/05/2019,30224738,1063.49,Revenue,Konica Minolta Bus.Sol. East Ltd,Photocopying
Peterborough City Council,Corporate,Corporate,Non Revenue,08/05/2019,30224739,1969.7,Capital,Movement 2 - Prism Medical UK,Grant Payment
Peterborough City Council,Westcombe Engineering,Westcombe Engineering,"Tools, Equipment, Furniture & Materials",08/05/2019,30224741,659.17,Revenue,Carillon Industrial Services Ltd,Tools
Peterborough City Council,Westcombe Engineering,Westcombe Engineering,"Tools, Equipment, Furniture & Materials",08/05/2019,30224766,612.2,Revenue,Parkside Steel (Stockholders) Ltd,Materials
Peterborough City Council,Adults,Therapy/Reablement/Community Equipment,Agency Staff,08/05/2019,30224768,1480,Revenue,Tripod Partners Ltd,External Temporary Staff
Peterborough City Council,Adults,Independent Sector Placements,Services,08/05/2019,30224777,513.4,Revenue,Voyage 1 Limited,Home Care
Peterborough City Council,Adults,Independent Sector Placements,Services,08/05/2019,30224778,9542.4,Revenue,Voyage 1 Limited,Home Care
Peterborough City Council,Adults,Independent Sector Placements,Services,08/05/2019,30224779,536.05,Revenue,Voyage 1 Limited,Home Care
Peterborough City Council,Communities,Cultural Services,Services,08/05/2019,30224841,1750,Revenue,Peterborough Centre for Young Musicians,Hired Services
Peterborough City Council,Adults,Independent Sector Placements,Services,08/05/2019,30224911,1685.72,Revenue,Athena (Ashlynn Grange),Residential Care
Peterborough City Council,Adults,Independent Sector Placements,Services,08/05/2019,30224912,815.23,Revenue,Athena (Ashlynn Grange),Residential Care
Peterborough City Council,Adults,Independent Sector Placements,Services,08/05/2019,30224915,1054.36,Revenue,Athena (Ashlynn Grange),Residential Care
Peterborough City Council,Adults,Independent Sector Placements,Services,08/05/2019,30224916,635.52,Revenue,Athena (Ashlynn Grange),Residential Care
Peterborough City Council,Adults,Independent Sector Placements,Services,08/05/2019,30224918,1188.4,Revenue,Athena (Ashlynn Grange),Residential Care
Peterborough City Council,Adults,Independent Sector Placements,Services,08/05/2019,30224919,2318.36,Revenue,Athena (Ashlynn Grange),Residential Care
Peterborough City Council,Adults,Independent Sector Placements,Services,08/05/2019,30224934,988.28,Revenue,Athena (Ashlynn Grange),Residential Care
Peterborough City Council,Adults,Independent Sector Placements,Services,08/05/2019,30224935,1685.72,Revenue,Athena (Ashlynn Grange),Residential Care
Peterborough City Council,Adults,Independent Sector Placements,Services,08/05/2019,30224941,1133.32,Revenue,Athena (Ashlynn Grange),Residential Care
Peterborough City Council,Adults,Independent Sector Placements,Services,08/05/2019,30224944,1685.72,Revenue,Athena (Ashlynn Grange),Residential Care
Peterborough City Council,Adults,Independent Sector Placements,Services,08/05/2019,30224947,1658.92,Revenue,Athena (Ashlynn Grange),Residential Care
Peterborough City Council,Adults,Independent Sector Placements,Services,08/05/2019,30224948,1115.2,Revenue,Athena (Ashlynn Grange),Residential Care
Peterborough City Council,Adults,Independent Sector Placements,Services,08/05/2019,30224950,1821.88,Revenue,Athena (Ashlynn Grange),Residential Care
Peterborough City Council,Adults,Independent Sector Placements,Services,08/05/2019,30224953,1685.72,Revenue,Athena (Ashlynn Grange),Residential Care
Peterborough City Council,Adults,Independent Sector Placements,Services,08/05/2019,30224956,2318.36,Revenue,Athena (Ashlynn Grange),Residential Care
Peterborough City Council,Adults,Independent Sector Placements,Services,08/05/2019,30224957,1133.32,Revenue,Athena (Ashlynn Grange),Residential Care
Peterborough City Council,Adults,Independent Sector Placements,Services,08/05/2019,30224958,1098.8,Revenue,Athena (Ashlynn Grange),Residential Care
Peterborough City Council,Adults,Independent Sector Placements,Services,08/05/2019,30224959,1649.48,Revenue,Athena (Ashlynn Grange),Residential Care
Peterborough City Council,Adults,Independent Sector Placements,Services,08/05/2019,30224960,737.72,Revenue,Athena (Ashlynn Grange),Residential Care
Peterborough City Council,Adults,Independent Sector Placements,Services,08/05/2019,30224961,1980,Revenue,Athena (Ashlynn Grange),Residential Care
Peterborough City Council,Corporate,Corporate,Non Revenue,08/05/2019,30224994,123960.6,Capital,IIC by Education (P'boro) Ltd,Building And Site Works
Peterborough City Council,Peterborough Highway Services,Transport & Infrastructure Commissioning,Services,08/05/2019,30225013,1310,Revenue,ITSO Ltd,Computer Software
Peterborough City Council,Adults,Independent Sector Placements,Services,08/05/2019,30225064,2505.2,Revenue,Athena (Ashlynn Grange),Residential Care
Peterborough City Council,Adults,Independent Sector Placements,Services,08/05/2019,30225065,936.72,Revenue,Athena (Ashlynn Grange),Residential Care
Peterborough City Council,Adults,Independent Sector Placements,Services,08/05/2019,30225066,1014.96,Revenue,Athena (Ashlynn Grange),Residential Care
Peterborough City Council,Adults,Independent Sector Placements,Services,08/05/2019,30225068,2318.36,Revenue,Athena (Ashlynn Grange),Residential Care
Peterborough City Council,Adults,Independent Sector Placements,Services,08/05/2019,30225069,920.92,Revenue,Athena (Ashlynn Grange),Residential Care
Peterborough City Council,Adults,Independent Sector Placements,Services,08/05/2019,30225072,1165.92,Revenue,Athena (Ashlynn Grange),Residential Care
Peterborough City Council,Adults,Independent Sector Placements,Services,08/05/2019,30225074,986,Revenue,Athena (Ashlynn Grange),Residential Care
Peterborough City Council,Adults,Independent Sector Placements,Services,08/05/2019,30225076,1032.88,Revenue,Athena (Ashlynn Grange),Residential Care
Peterborough City Council,Adults,Therapy/Reablement/Community Equipment,Agency Staff,08/05/2019,30225079,1503.62,Revenue,Tripod Partners Ltd,External Temporary Staff
Peterborough City Council,Adults,Independent Sector Placements,Services,08/05/2019,30225080,3400,Revenue,Athena (Ashlynn Grange),Residential Care
Peterborough City Council,Adults,Independent Sector Placements,Services,08/05/2019,30225082,1821.88,Revenue,Athena (Ashlynn Grange),Residential Care
Peterborough City Council,Adults,Independent Sector Placements,Services,08/05/2019,30225083,1070.72,Revenue,Athena (Ashlynn Grange),Residential Care
Peterborough City Council,Adults,Independent Sector Placements,Services,08/05/2019,30225085,1105.32,Revenue,Athena (Ashlynn Grange),Residential Care
Peterborough City Council,Adults,Independent Sector Placements,Services,08/05/2019,30225088,1821.88,Revenue,Athena (Ashlynn Grange),Residential Care
Peterborough City Council,Adults,Independent Sector Placements,Services,08/05/2019,30225090,1153.32,Revenue,Athena (Ashlynn Grange),Residential Care
Peterborough City Council,Adults,Independent Sector Placements,Services,08/05/2019,30225091,822.56,Revenue,Athena (Ashlynn Grange),Residential Care
Peterborough City Council,Adults,Independent Sector Placements,Services,08/05/2019,30225092,868,Revenue,Athena (Ashlynn Grange),Residential Care
Peterborough City Council,Commissioning and Commercial Operations,Clare Lodge,Agency Staff,08/05/2019,30225139,746.17,Revenue,Reed Specialist Recruitment Limited,External Temporary Staff
Peterborough City Council,Legal Services,Legal Services,Services,08/05/2019,30225188,550,Revenue,"Elliott, Ms Margot",Legal Costs
Peterborough City Council,Legal Services,Legal Services,Services,08/05/2019,30225189,1100,Revenue,"Martignetti, Mr Ian",Legal Costs
Peterborough City Council,Legal Services,Legal Services,Services,08/05/2019,30225190,637.5,Revenue,"Dobson, Miss Lawren",Legal Costs
Peterborough City Council,Legal Services,Legal Services,Services,08/05/2019,30225193,550,Revenue,"Hunt, Miss Alison",Legal Costs
Peterborough City Council,Legal Services,Legal Services,Services,08/05/2019,30225194,819,Revenue,Psychology Clinic of East Anglia,Expert Witnesses
Peterborough City Council,Legal Services,Legal Services,Services,08/05/2019,30225195,700,Revenue,"Elliott, Ms Margot",Legal Costs
Peterborough City Council,Legal Services,Legal Services,Services,08/05/2019,30225196,550,Revenue,"Elliott, Ms Margot",Legal Costs
Peterborough City Council,Legal Services,Legal Services,Services,08/05/2019,30225197,550,Revenue,"Hunt, Miss Alison",Legal Costs
Peterborough City Council,Adults,Independent Sector Placements,Services,08/05/2019,30225209,884.5,Revenue,RegionalCare,Home Care
Peterborough City Council,Adults,Independent Sector Placements,Services,08/05/2019,30225210,2030,Revenue,RegionalCare,Home Care
Peterborough City Council,Adults,Independent Sector Placements,Services,08/05/2019,30225212,862.75,Revenue,RegionalCare,Home Care
Peterborough City Council,Adults,Independent Sector Placements,Services,08/05/2019,30225213,609,Revenue,RegionalCare,Home Care
Peterborough City Council,Adults,Independent Sector Placements,Services,08/05/2019,30225214,572.75,Revenue,RegionalCare,Home Care
Peterborough City Council,Adults,Independent Sector Placements,Services,08/05/2019,30225218,2030,Revenue,RegionalCare,Home Care
Peterborough City Council,Adults,Independent Sector Placements,Services,08/05/2019,30225219,913.5,Revenue,RegionalCare,Home Care
Peterborough City Council,Adults,Independent Sector Placements,Services,08/05/2019,30225224,609,Revenue,RegionalCare,Home Care
Peterborough City Council,Adults,Independent Sector Placements,Services,08/05/2019,30225226,1004.13,Revenue,RegionalCare,Home Care
Peterborough City Council,Adults,Independent Sector Placements,Services,08/05/2019,30225227,870,Revenue,RegionalCare,Home Care
Peterborough City Council,Adults,Independent Sector Placements,Services,08/05/2019,30225229,1015,Revenue,RegionalCare,Home Care
Peterborough City Council,Adults,Independent Sector Placements,Services,08/05/2019,30225233,543.5,Revenue,RegionalCare,Home Care
Peterborough City Council,Adults,Independent Sector Placements,Services,08/05/2019,30225253,913.5,Revenue,RegionalCare,Home Care
Peterborough City Council,Adults,Independent Sector Placements,Services,08/05/2019,30225254,1877.75,Revenue,RegionalCare,Home Care
Peterborough City Council,Legal Services,Legal Services,Services,08/05/2019,30225269,550,Revenue,"Elliott, Ms Margot",Legal Costs
Peterborough City Council,Legal Services,Legal Services,Services,08/05/2019,30225298,1750,Revenue,"Elliott, Ms Margot",Legal Costs
Peterborough City Council,Commissioning and Commercial Operations,Access to Resources & Specialist Commissioning,Services,08/05/2019,30225303,30000,Revenue,Wilds Lodge School,Boarding Out Fees
Peterborough City Council,Commissioning and Commercial Operations,Access to Resources & Specialist Commissioning,Services,08/05/2019,30225304,30000,Revenue,Wilds Lodge School,Boarding Out Fees
Peterborough City Council,Commissioning and Commercial Operations,Access to Resources & Specialist Commissioning,Services,08/05/2019,30225305,33333.33,Revenue,Wilds Lodge School,Boarding Out Fees
Peterborough City Council,Director,Director,Services,08/05/2019,30225314,1500,Revenue,The Staff College,Subscriptions
Peterborough City Council,Adults,Independent Sector Placements,Services,08/05/2019,30225327,7699.8,Revenue,SOCIAL CARE SOLUTIONS LTD,Home Care
Peterborough City Council,Corporate Property,Commercial Propety,Services,08/05/2019,30225366,2340,Revenue,Michael D Boughton,Hired Services
Peterborough City Council,Westcombe Engineering,Westcombe Engineering,"Tools, Equipment, Furniture & Materials",08/05/2019,30225412,2345.06,Revenue,ANGLIA BEARING COMPANY LIMITED,Materials
Peterborough City Council,Adults,Home Services Delivery Model,Services,08/05/2019,30225432,850,Revenue,Rawheat Heating & Plumbing Eng.,Contractors
Peterborough City Council,Corporate,Corporate,Non Revenue,08/05/2019,30225476,22171.97,Capital,Cadent Gas Limited,Infrastructure
Peterborough City Council,Financial Services,Finance,Services,08/05/2019,30225558,5501.5,Revenue,Pinsent Masons,Legal Costs
Peterborough City Council,Director,Director,Services,08/05/2019,30225559,780,Revenue,The ADCS Ltd,Conferences
Peterborough City Council,Regulatory Services,Regulatory Services,"Tools, Equipment, Furniture & Materials",08/05/2019,30225571,2584.14,Revenue,VIP-System Ltd,Equipment
Peterborough City Council,Education,Special Educational Needs / Inclusion,Services,08/05/2019,30225614,1100,Revenue,Permanent Futures Ltd,Hired Services
Peterborough City Council,"Cemeteries, Cremation & Registrars",Bereavement Service,Services,08/05/2019,30225624,1779,Revenue,Anglia Co-operative Funerals,Contract Funerals
Peterborough City Council,"Cemeteries, Cremation & Registrars",Bereavement Service,Services,08/05/2019,30225625,1664.8,Revenue,Anglia Co-operative Funerals,Contract Funerals
Peterborough City Council,Corporate,Corporate,Non Revenue,08/05/2019,30225636,101810.38,Capital,R G Carter Cambridge Ltd,Building And Site Works
Peterborough City Council,Children's & Safeguarding,External Education Placements,Services,08/05/2019,30225673,5874.7,Revenue,London Borough of Brent,Education Expenses
Peterborough City Council,Adults,Independent Sector Placements,Services,08/05/2019,30225711,1685.72,Revenue,Athena (Ashlynn Grange),Residential Care
Peterborough City Council,Adults,Strategic Commissioning - Management,Agency Staff,08/05/2019,30225770,669.2,Revenue,Reed Specialist Recruitment Limited,External Temporary Staff
Peterborough City Council,Adults,Strategic Commissioning - Management,Agency Staff,08/05/2019,30225832,1181.44,Revenue,Reed Specialist Recruitment Limited,External Temporary Staff
Peterborough City Council,Commissioning and Commercial Operations,Clare Lodge,Agency Staff,08/05/2019,30225849,836.07,Revenue,Reed Specialist Recruitment Limited,External Temporary Staff
Peterborough City Council,Corporate,Corporate,Non Revenue,08/05/2019,30225951,5725.13,Capital,A.F.Construction Services Ltd,Grant Payment
Peterborough City Council,Adults,OP/PD/SI,"Tools, Equipment, Furniture & Materials",08/05/2019,30226039,2648.9,Revenue,NRS Healthcare,Occupational Therapy Equipment
Peterborough City Council,Adults,Independent Sector Placements,Services,08/05/2019,30226066,2976.12,Revenue,Fins Care Ltd t/a St Margarets Rest Home,Residential Care
Peterborough City Council,Adults,Independent Sector Placements,Services,08/05/2019,30226068,5945.64,Revenue,Fins Care Ltd t/a St Margarets Rest Home,Residential Care
Peterborough City Council,Adults,Independent Sector Placements,Services,08/05/2019,30226071,4224.36,Revenue,Fins Care Ltd t/a St Margarets Rest Home,Residential Care
Peterborough City Council,Adults,Independent Sector Placements,Services,08/05/2019,30226074,3583.08,Revenue,Fins Care Ltd t/a St Margarets Rest Home,Residential Care
Peterborough City Council,Adults,Independent Sector Placements,Services,08/05/2019,30226075,5945.64,Revenue,Fins Care Ltd t/a St Margarets Rest Home,Residential Care
Peterborough City Council,Adults,Independent Sector Placements,Services,08/05/2019,30226076,6540,Revenue,Fins Care Ltd t/a St Margarets Rest Home,Residential Care
Peterborough City Council,Adults,Independent Sector Placements,Services,08/05/2019,30226077,3294.36,Revenue,Fins Care Ltd t/a St Margarets Rest Home,Residential Care
Peterborough City Council,Adults,Independent Sector Placements,Services,08/05/2019,30226079,3808.44,Revenue,Fins Care Ltd t/a St Margarets Rest Home,Residential Care
Peterborough City Council,Adults,Independent Sector Placements,Services,08/05/2019,30226080,3005.4,Revenue,Fins Care Ltd t/a St Margarets Rest Home,Residential Care
Peterborough City Council,Adults,Independent Sector Placements,Services,08/05/2019,30226085,866.99,Revenue,Sahara Community Care Services Limited,Home Care
Peterborough City Council,Adults,Independent Sector Placements,Services,08/05/2019,30226089,1166.65,Revenue,Sahara Community Care Services Limited,Home Care
Peterborough City Council,Adults,Independent Sector Placements,Services,08/05/2019,30226090,1499.4,Revenue,Sahara Community Care Services Limited,Home Care
Peterborough City Council,Adults,Independent Sector Placements,Services,08/05/2019,30226108,900,Revenue,Pilgrim Havens,Residential Care
Peterborough City Council,Adults,Independent Sector Placements,Services,08/05/2019,30226109,511.9,Revenue,Anchor Homes,Residential Care
Peterborough City Council,Adults,Independent Sector Placements,Services,08/05/2019,30226112,1367.01,Revenue,HC-One Oval Limited,Residential Care
Peterborough City Council,Adults,Independent Sector Placements,Services,08/05/2019,30226113,3175,Revenue,HC-One Oval Limited,Residential Care
Peterborough City Council,Adults,Independent Sector Placements,Services,08/05/2019,30226114,2575,Revenue,HC-One Oval Limited,Residential Care
Peterborough City Council,Adults,Independent Sector Placements,Services,08/05/2019,30226131,3080,Revenue,Pilgrim Havens,Residential Care
Peterborough City Council,Adults,Independent Sector Placements,Services,08/05/2019,30226132,1023.84,Revenue,Pilgrim Havens,Residential Care
Peterborough City Council,Adults,Independent Sector Placements,Services,08/05/2019,30226133,1023.84,Revenue,Pilgrim Havens,Residential Care
Peterborough City Council,Adults,Independent Sector Placements,Services,08/05/2019,30226134,1567.48,Revenue,Pilgrim Havens,Residential Care
Peterborough City Council,Adults,Independent Sector Placements,Services,08/05/2019,30226137,1617.16,Revenue,Pilgrim Havens,Residential Care
Peterborough City Council,Adults,Independent Sector Placements,Services,08/05/2019,30226138,644.2,Revenue,Pilgrim Havens,Residential Care
Peterborough City Council,Adults,Independent Sector Placements,Services,08/05/2019,30226141,1023.84,Revenue,Pilgrim Havens,Residential Care
Peterborough City Council,Adults,Independent Sector Placements,Services,08/05/2019,30226142,883.96,Revenue,Pilgrim Havens,Residential Care
Peterborough City Council,Adults,Independent Sector Placements,Services,08/05/2019,30226165,635.04,Revenue,Carers Trust Cambridgeshire,Home Care
Peterborough City Council,Adults,Independent Sector Placements,Services,08/05/2019,30226169,529.2,Revenue,Carers Trust Cambridgeshire,Home Care
Peterborough City Council,Adults,Independent Sector Placements,Services,08/05/2019,30226184,544.32,Revenue,Carers Trust Cambridgeshire,Home Care
Peterborough City Council,Adults,Independent Sector Placements,Services,08/05/2019,30226187,544.32,Revenue,Carers Trust Cambridgeshire,Home Care
Peterborough City Council,Adults,Independent Sector Placements,Services,08/05/2019,30226197,995.69,Revenue,Hales Group Ltd,Home Care
Peterborough City Council,Adults,Independent Sector Placements,Services,08/05/2019,30226198,818.01,Revenue,Hales Group Ltd,Home Care
Peterborough City Council,Adults,Independent Sector Placements,Services,08/05/2019,30226244,1925.88,Revenue,Ashmere,Residential Care
Peterborough City Council,Education,Early Years & Quality Improvement,Services,08/05/2019,30226298,615,Revenue,Little Bubbles Nursery,Grant Payment
Peterborough City Council,Education,Early Years & Quality Improvement,Services,08/05/2019,30226299,615,Revenue,Peterborough Regional College,Grant Payment
Peterborough City Council,Education,Early Years & Quality Improvement,Services,08/05/2019,30226300,615,Revenue,St Michaels Playgroup,Grant Payment
Peterborough City Council,Education,Early Years & Quality Improvement,Services,08/05/2019,30226301,615,Revenue,St Michaels Playgroup,Grant Payment
Peterborough City Council,Education,School Standards & Effectiveness,Services,08/05/2019,30226304,1260,Revenue,Kepier Academy,Grant Payment
Peterborough City Council,Children's & Safeguarding,Children's Social Care,Services,08/05/2019,30226305,625,Revenue,Redacted Personal Data,Financial Assistance
Peterborough City Council,Adults,Independent Sector Placements,Services,08/05/2019,30226319,1994.2,Revenue,PHILIA LODGE REST HOME,Residential Care
Peterborough City Council,Adults,Independent Sector Placements,Services,08/05/2019,30226320,2648,Revenue,PHILIA LODGE REST HOME,Residential Care
Peterborough City Council,Adults,Independent Sector Placements,Services,08/05/2019,30226321,2648,Revenue,PHILIA LODGE REST HOME,Residential Care
Peterborough City Council,Adults,Independent Sector Placements,Services,08/05/2019,30226322,2648,Revenue,PHILIA LODGE REST HOME,Residential Care
Peterborough City Council,Adults,Independent Sector Placements,Services,08/05/2019,30226323,2648,Revenue,PHILIA LODGE REST HOME,Residential Care
Peterborough City Council,Adults,Independent Sector Placements,Services,08/05/2019,30226324,1822.2,Revenue,PHILIA LODGE REST HOME,Residential Care
Peterborough City Council,Adults,Independent Sector Placements,Services,08/05/2019,30226325,1208.2,Revenue,PHILIA LODGE REST HOME,Residential Care
Peterborough City Council,Adults,Independent Sector Placements,Services,08/05/2019,30226326,2648,Revenue,PHILIA LODGE REST HOME,Residential Care
Peterborough City Council,Children's & Safeguarding,External Education Placements,Services,08/05/2019,30226331,11552.1,Revenue,New Bridge School,Out Of Area Education Costs
Peterborough City Council,Adults,Independent Sector Placements,Services,08/05/2019,30226332,1757.8,Revenue,FIELD HOUSE (EYE) LTD,Residential Care
Peterborough City Council,Adults,Independent Sector Placements,Services,08/05/2019,30226333,562.28,Revenue,FIELD HOUSE (EYE) LTD,Residential Care
Peterborough City Council,Adults,Independent Sector Placements,Services,08/05/2019,30226334,1232.52,Revenue,FIELD HOUSE (EYE) LTD,Residential Care
Peterborough City Council,Adults,Independent Sector Placements,Services,08/05/2019,30226335,1747.6,Revenue,FIELD HOUSE (EYE) LTD,Residential Care
Peterborough City Council,Adults,Independent Sector Placements,Services,08/05/2019,30226337,1847.6,Revenue,FIELD HOUSE (EYE) LTD,Residential Care
Peterborough City Council,Adults,Independent Sector Placements,Services,08/05/2019,30226339,1315.08,Revenue,FIELD HOUSE (EYE) LTD,Residential Care
Peterborough City Council,Adults,Independent Sector Placements,Services,08/05/2019,30226340,1741.64,Revenue,FIELD HOUSE (EYE) LTD,Residential Care
Peterborough City Council,Adults,Independent Sector Placements,Services,08/05/2019,30226342,1747.6,Revenue,FIELD HOUSE (EYE) LTD,Residential Care
Peterborough City Council,Adults,Independent Sector Placements,Services,08/05/2019,30226344,2320,Revenue,FIELD HOUSE (EYE) LTD,Residential Care
Peterborough City Council,Adults,Independent Sector Placements,Services,08/05/2019,30226347,952.84,Revenue,FIELD HOUSE (EYE) LTD,Residential Care
Peterborough City Council,Adults,Independent Sector Placements,Services,08/05/2019,30226348,1576.64,Revenue,FIELD HOUSE (EYE) LTD,Residential Care
Peterborough City Council,Adults,Independent Sector Placements,Services,08/05/2019,30226349,1687.6,Revenue,FIELD HOUSE (EYE) LTD,Residential Care
Peterborough City Council,Adults,Independent Sector Placements,Services,08/05/2019,30226350,1604.28,Revenue,FIELD HOUSE (EYE) LTD,Residential Care
Peterborough City Council,Adults,Independent Sector Placements,Services,08/05/2019,30226351,1847.6,Revenue,FIELD HOUSE (EYE) LTD,Residential Care
Peterborough City Council,Adults,Independent Sector Placements,Services,08/05/2019,30226352,1110.44,Revenue,FIELD HOUSE (EYE) LTD,Residential Care
Peterborough City Council,Adults,Independent Sector Placements,Services,08/05/2019,30226353,1365.28,Revenue,FIELD HOUSE (EYE) LTD,Residential Care
Peterborough City Council,Adults,Independent Sector Placements,Services,08/05/2019,30226354,1720.84,Revenue,FIELD HOUSE (EYE) LTD,Residential Care
Peterborough City Council,Adults,Independent Sector Placements,Services,08/05/2019,30226355,2235.32,Revenue,STAR RESIDENTIAL HOME LTD,Residential Care
Peterborough City Council,Adults,Independent Sector Placements,Services,08/05/2019,30226356,2052.4,Revenue,STAR RESIDENTIAL HOME LTD,Residential Care
Peterborough City Council,Adults,Independent Sector Placements,Services,08/05/2019,30226357,2191.8,Revenue,STAR RESIDENTIAL HOME LTD,Residential Care
Peterborough City Council,Adults,Independent Sector Placements,Services,08/05/2019,30226358,2144.2,Revenue,STAR RESIDENTIAL HOME LTD,Residential Care
Peterborough City Council,Adults,Independent Sector Placements,Services,08/05/2019,30226359,1563.52,Revenue,STAR RESIDENTIAL HOME LTD,Residential Care
Peterborough City Council,Adults,Independent Sector Placements,Services,08/05/2019,30226360,2600.8,Revenue,STAR RESIDENTIAL HOME LTD,Residential Care
Peterborough City Council,Adults,Independent Sector Placements,Services,08/05/2019,30226361,1721.92,Revenue,STAR RESIDENTIAL HOME LTD,Residential Care
Peterborough City Council,Adults,Independent Sector Placements,Services,08/05/2019,30226362,2030.6,Revenue,STAR RESIDENTIAL HOME LTD,Residential Care
Peterborough City Council,Adults,Independent Sector Placements,Services,08/05/2019,30226363,2051.4,Revenue,STAR RESIDENTIAL HOME LTD,Residential Care
Peterborough City Council,Adults,Independent Sector Placements,Services,08/05/2019,30226364,1947.4,Revenue,STAR RESIDENTIAL HOME LTD,Residential Care
Peterborough City Council,Adults,Independent Sector Placements,Services,08/05/2019,30226365,2030.6,Revenue,STAR RESIDENTIAL HOME LTD,Residential Care
Peterborough City Council,Adults,Independent Sector Placements,Services,08/05/2019,30226366,1910.16,Revenue,STAR RESIDENTIAL HOME LTD,Residential Care
Peterborough City Council,Adults,Independent Sector Placements,Services,08/05/2019,30226367,3233.44,Revenue,STAR RESIDENTIAL HOME LTD,Residential Care
Peterborough City Council,Adults,Independent Sector Placements,Services,08/05/2019,30226368,1490.24,Revenue,STAR RESIDENTIAL HOME LTD,Residential Care
Peterborough City Council,Adults,Independent Sector Placements,Services,08/05/2019,30226370,3638.5,Revenue,Carers Trust Cambridgeshire,Home Care
Peterborough City Council,Adults,Independent Sector Placements,Services,08/05/2019,30226372,680.4,Revenue,Carers Trust Cambridgeshire,Home Care
Peterborough City Council,Adults,Independent Sector Placements,Services,08/05/2019,30226373,756,Revenue,Carers Trust Cambridgeshire,Home Care
Peterborough City Council,Corporate,Corporate,Non Revenue,08/05/2019,30226397,748,Capital,Rawheat Heating & Plumbing Eng.,Building And Site Works
Peterborough City Council,Adults,Independent Sector Placements,Services,08/05/2019,30226408,16281,Revenue,Alysia Caring Ltd T/a Cherry Blossom care Home,Residential Care
Peterborough City Council,Adults,Independent Sector Placements,Services,08/05/2019,30226416,9761.53,Revenue,Doncaster Deaf Trust,Education Expenses
Peterborough City Council,Corporate,Corporate,Non Revenue,08/05/2019,30226426,796,Balance Sheet,The Department for Work and Pensions,Insurance Claims
Peterborough City Council,Corporate,Corporate,Non Revenue,08/05/2019,30226428,2649.75,Balance Sheet,The Accountant General of the Senior Court,Insurance Claims
Peterborough City Council,Corporate Property,Commercial Propety,Rents,08/05/2019,30226429,635.19,Revenue,Homewise Property Limited,Rent
Peterborough City Council,Peterborough Highway Services,Transport & Infrastructure Commissioning,Energy Costs,08/05/2019,30226447,1423.85,Revenue,British Gas Business,Electricity
Peterborough City Council,Adults,Finance,Services,08/05/2019,30226453,3625,Revenue,Solutions 4 Health Ltd,Counselling
Peterborough City Council,Public Health,PH Commissioning,Third Party Payments,08/05/2019,30226455,62817.04,Revenue,Solutions 4 Health Ltd,Third Party Payments - Contract
Peterborough City Council,Westcombe Engineering,Westcombe Engineering,Contract Hire and Operating Leases,08/05/2019,30226468,2582.97,Revenue,Northgate Vehicle Hire Limited,Hired Transport
Peterborough City Council,"Waste, Cleansing and Open Spaces",Waste Management,Services,08/05/2019,30226474,8719.82,Revenue,Biffa Waste Services Ltd,Waste Disposal
Peterborough City Council,Adults,Independent Sector Placements,Services,08/05/2019,30226512,1023.47,Revenue,Park Vista Care Home,Residential Care
Peterborough City Council,ICT,ICT,Services,08/05/2019,30226525,12000,Revenue,Phoenix Software Ltd,Computer Software
Peterborough City Council,Communities,Cohesion,Rents,08/05/2019,30226531,625,Revenue,Rightroom Lettings Ltd,Rent
Peterborough City Council,Communities,Cohesion,Rents,08/05/2019,30226533,750,Revenue,Redacted Personal Data ,Rent
Peterborough City Council,Communities,Cohesion,Rents,08/05/2019,30226540,575,Revenue,Record Property Solutions,Rent
Peterborough City Council,Communities,Cohesion,Rents,08/05/2019,30226543,625,Revenue,Record Property Solutions,Rent
Peterborough City Council,Communities,Cohesion,Rents,08/05/2019,30226544,800,Revenue,Rightroom Lettings Ltd,Rent
Peterborough City Council,Communities,Cohesion,Rents,08/05/2019,30226550,800,Revenue,Hope Into Action,Rent
Peterborough City Council,Communities,Cohesion,Rents,08/05/2019,30226560,575,Revenue,Redacted Personal Data ,Rent
Peterborough City Council,Communities,Cohesion,Rents,08/05/2019,30226561,750,Revenue,Redacted Personal Data ,Rent
Peterborough City Council,Communities,Cohesion,Rents,08/05/2019,30226562,625,Revenue,Record Property Solutions,Rent
Peterborough City Council,Corporate,Corporate,Non Revenue,08/05/2019,30226565,551.32,Balance Sheet,Redacted Personal Data,Insurance Claims
Peterborough City Council,Children's & Safeguarding,External Education Placements,Services,08/05/2019,30226611,4956.13,Revenue,Kent County Council,Education Expenses
Peterborough City Council,Commissioning and Commercial Operations,Commissioning,Water Services,08/05/2019,30226612,1580.5,Revenue,Anglian Water Business National,Water
Peterborough City Council,Corporate Property,Commercial Propety,Water Services,08/05/2019,30226612,1124.17,Revenue,Anglian Water Business National,Water
Peterborough City Council,Communities,Cultural Services,Water Services,08/05/2019,30226612,3955.71,Revenue,Anglian Water Business National,Water
Peterborough City Council,Communities,Cultural Services,Water Services,08/05/2019,30226612,4018.63,Revenue,Anglian Water Business National,Water
Peterborough City Council,Communities,Cultural Services,Water Services,08/05/2019,30226612,4092.19,Revenue,Anglian Water Business National,Water
Peterborough City Council,"Waste, Cleansing and Open Spaces",Waste & Operational Svs Mgmt,Water Services,08/05/2019,30226612,1154.14,Revenue,Anglian Water Business National,Water
Peterborough City Council,Communities,Cultural Services,Energy Costs,08/05/2019,30226615,3912.32,Revenue,EDF Energy Networks Ltd,Electricity
Peterborough City Council,Communities,Community Capacity,Energy Costs,08/05/2019,30226615,1153.15,Revenue,EDF Energy Networks Ltd,Electricity
Peterborough City Council,Communities,Targeted Youth Service,Energy Costs,08/05/2019,30226619,973.9,Revenue,British Gas Business,Electricity
Peterborough City Council,Communities,Targeted Youth Service,Energy Costs,08/05/2019,30226619,-922.09,Revenue,British Gas Business,Electricity
Peterborough City Council,Adults,Independent Sector Placements,Services,08/05/2019,30226629,20478.21,Revenue,The Regard Partnership Limited,Residential Care
Peterborough City Council,Adults,Independent Sector Placements,Services,08/05/2019,30226631,500,Revenue,Spotless {Cleaning Services},Home Care
Peterborough City Council,Children's & Safeguarding,Child Health,Cleaning & Domestic Supplies,08/05/2019,30226633,802.2,Revenue,Ken Booth & Co Ltd,Cleaning Materials
Peterborough City Council,Commissioning and Commercial Operations,Permanency Service,Services,08/05/2019,30226645,1872,Revenue,Ofsted,Subscriptions
Peterborough City Council,Commissioning and Commercial Operations,Permanency Service,Services,08/05/2019,30226646,2925,Revenue,Ofsted,Subscriptions
Peterborough City Council,Commissioning and Commercial Operations,Commissioning Team,Agency Staff,08/05/2019,30226662,1794.88,Revenue,Reed Specialist Recruitment Limited,External Temporary Staff
Peterborough City Council,Legal Services,Legal Services,Services,08/05/2019,30226664,858.16,Revenue,The Psychological Service,Expert Witnesses
Peterborough City Council,Adults,OP/PD/SI,Third Party Payments,08/05/2019,30226668,35000,Revenue,Dial Peterborough,Third Party Payments - Contract
Peterborough City Council,Corporate,Corporate,Non Revenue,08/05/2019,30226673,950,Capital,Gladstone Connect Ltd,Grant Payment
Peterborough City Council,"Waste, Cleansing and Open Spaces",Waste & Operational Svs Mgmt,Water Services,08/05/2019,30226697,1054.25,Revenue,Anglian Water Business National,Water
Peterborough City Council,Peterborough Highway Services,Highway Services - HoS,Agency Staff,08/05/2019,30226738,862.48,Revenue,Reed Specialist Recruitment Limited,External Temporary Staff
Peterborough City Council,Legal Services,Legal Services,Agency Staff,08/05/2019,30226744,787.47,Revenue,Reed Specialist Recruitment Limited,External Temporary Staff
Peterborough City Council,Development and Construction,Development Management,Agency Staff,08/05/2019,30226745,1365.01,Revenue,Reed Specialist Recruitment Limited,External Temporary Staff
Peterborough City Council,Legal Services,Legal Services,Agency Staff,08/05/2019,30226746,1674.31,Revenue,Reed Specialist Recruitment Limited,External Temporary Staff
Peterborough City Council,Corporate,Corporate,Non Revenue,08/05/2019,30226749,1233.64,Balance Sheet,The Prudential Assurance Company Ltd,Pensions
Peterborough City Council,Corporate,Corporate,Non Revenue,08/05/2019,30226750,5302.77,Balance Sheet,The Prudential Assurance Company Ltd,Pensions
Peterborough City Council,Education,Service Director Education,Employee Costs,08/05/2019,30226751,26250.2,Revenue,Teachers Pensions,Pensions
Peterborough City Council,Adults,Independent Sector Placements,Services,08/05/2019,30226752,631.75,Revenue,Dolphin Homes Limited,Residential Care
Peterborough City Council,Adults,Independent Sector Placements,Services,08/05/2019,30226753,8844.52,Revenue,Dolphin Homes Limited,Residential Care
Peterborough City Council,Peterborough Serco Strategic Partnership,PSSP Retained Services,Services,08/05/2019,30226756,2713.84,Revenue,Whistl UK Ltd,Postage
Peterborough City Council,Adults,Independent Sector Placements,Services,08/05/2019,30226758,9792.15,Revenue,Dolphin Homes Limited,Residential Care
Peterborough City Council,Education,Special Educational Needs / Inclusion,Services,08/05/2019,30226759,1270,Revenue,"Hattee, Mrs Caroline",Occupational Health
Peterborough City Council,Legal Services,Legal Services,Agency Staff,08/05/2019,30226761,1508.15,Revenue,Reed Specialist Recruitment Limited,External Temporary Staff
Peterborough City Council,Development and Construction,Development Management,Agency Staff,08/05/2019,30226763,910.98,Revenue,Reed Specialist Recruitment Limited,External Temporary Staff
Peterborough City Council,Legal Services,Legal Services,Agency Staff,08/05/2019,30226765,1158.39,Revenue,Reed Specialist Recruitment Limited,External Temporary Staff
Peterborough City Council,Legal Services,Legal Services,Agency Staff,08/05/2019,30226769,905.61,Revenue,Reed Specialist Recruitment Limited,External Temporary Staff
Peterborough City Council,Peterborough Highway Services,Highway & Drainage Control,Agency Staff,08/05/2019,30226772,844.58,Revenue,Reed Specialist Recruitment Limited,External Temporary Staff
Peterborough City Council,Legal Services,Legal Services,Services,08/05/2019,30226780,550,Revenue,"Bramwell, Mr Christopher",Legal Costs
Peterborough City Council,Commissioning and Commercial Operations,Clare Lodge,Agency Staff,08/05/2019,30226813,501.96,Revenue,Reed Specialist Recruitment Limited,External Temporary Staff
Peterborough City Council,City Centre Management,"Markets, Tourism & Events",Services,08/05/2019,30226818,895,Revenue,Nabma,Subscriptions
Peterborough City Council,Communities,Performance & Information,Agency Staff,08/05/2019,30226820,1017.28,Revenue,Reed Specialist Recruitment Limited,External Temporary Staff
Peterborough City Council,Peterborough Highway Services,Highway & Drainage Control,Agency Staff,08/05/2019,30226824,1202.4,Revenue,Reed Specialist Recruitment Limited,External Temporary Staff
Peterborough City Council,ICT,ICT,Agency Staff,08/05/2019,30226826,562.06,Revenue,Reed Specialist Recruitment Limited,External Temporary Staff
Peterborough City Council,Financial Services,Finance,Agency Staff,08/05/2019,30226836,720.9,Revenue,Reed Specialist Recruitment Limited,External Temporary Staff
Peterborough City Council,Adults,Independent Sector Placements,Services,08/05/2019,30226844,1265.84,Revenue,Park Vista Care Home,Residential Care
Peterborough City Council,Adults,Independent Sector Placements,Services,08/05/2019,30226846,2449.52,Revenue,Peterborough Care  The Maltings,Residential Care
Peterborough City Council,Peterborough Highway Services,Highway & Drainage Control,Agency Staff,08/05/2019,30226850,1118.91,Revenue,Reed Specialist Recruitment Limited,External Temporary Staff
Peterborough City Council,Adults,Independent Sector Placements,Services,08/05/2019,30226851,2249.91,Revenue,Peterborough Care  The Maltings,Residential Care
Peterborough City Council,Adults,Independent Sector Placements,Services,08/05/2019,30226852,2457.8,Revenue,Peterborough Care  The Maltings,Residential Care
Peterborough City Council,Adults,Independent Sector Placements,Services,08/05/2019,30226853,2457.8,Revenue,Peterborough Care  The Maltings,Residential Care
Peterborough City Council,Financial Services,Finance,Agency Staff,08/05/2019,30226858,515.62,Revenue,Reed Specialist Recruitment Limited,External Temporary Staff
Peterborough City Council,Education,Early Years & Quality Improvement,Services,08/05/2019,30226867,13411.01,Revenue,Discovery Pre School,Grant Payment
Peterborough City Council,Education,Early Years & Quality Improvement,Services,08/05/2019,30226869,1757.34,Revenue,Redacted Personal Data,Grant Payment
Peterborough City Council,Education,Early Years & Quality Improvement,Services,08/05/2019,30226871,21295.98,Revenue,Bees At The Hive Pre-school,Grant Payment
Peterborough City Council,Education,Early Years & Quality Improvement,Services,08/05/2019,30226876,49929.2,Revenue,Seedlings Nursery,Grant Payment
Peterborough City Council,Education,Early Years & Quality Improvement,Services,08/05/2019,30226878,16896.95,Revenue,Duke Of Bedford Pre-School,Grant Payment
Peterborough City Council,Education,Early Years & Quality Improvement,Services,08/05/2019,30226881,14402.38,Revenue,The Owls' Nest Pre-School,Grant Payment
Peterborough City Council,Education,Early Years & Quality Improvement,Services,08/05/2019,30226883,20528.63,Revenue,Little Poppets Day Nursery,Grant Payment
Peterborough City Council,Adults,Independent Sector Placements,Services,08/05/2019,30226884,641.94,Revenue,Park Vista Care Home,Residential Care
Peterborough City Council,Education,Early Years & Quality Improvement,Services,08/05/2019,30226889,35303.58,Revenue,Peterborough High School Nursery,Grant Payment
Peterborough City Council,Commissioning and Commercial Operations,Clare Lodge,Agency Staff,08/05/2019,30226933,593.34,Revenue,Reed Specialist Recruitment Limited,External Temporary Staff
Peterborough City Council,Commissioning and Commercial Operations,Clare Lodge,Agency Staff,08/05/2019,30226934,575.36,Revenue,Reed Specialist Recruitment Limited,External Temporary Staff
Peterborough City Council,Commissioning and Commercial Operations,Clare Lodge,Agency Staff,08/05/2019,30226935,575.36,Revenue,Reed Specialist Recruitment Limited,External Temporary Staff
Peterborough City Council,Commissioning and Commercial Operations,Clare Lodge,Agency Staff,08/05/2019,30226936,692.23,Revenue,Reed Specialist Recruitment Limited,External Temporary Staff
Peterborough City Council,Commissioning and Commercial Operations,Clare Lodge,Agency Staff,08/05/2019,30226937,1085.92,Revenue,Reed Specialist Recruitment Limited,External Temporary Staff
Peterborough City Council,Commissioning and Commercial Operations,Access to Resources & Specialist Commissioning,Services,08/05/2019,30226939,934.71,Revenue,PCH Integration Services Ltd,Boarding Out Fees
Peterborough City Council,Westcombe Engineering,Westcombe Engineering,"Tools, Equipment, Furniture & Materials",08/05/2019,30226957,665.4,Revenue,Perkins Engines Co Ltd,Materials
Peterborough City Council,Peterborough Highway Services,Network and Traffic Management,Services,08/05/2019,30226958,13236,Revenue,PITNEY BOWES SOFTWARE EUROPE LTD,Training
Peterborough City Council,Commissioning and Commercial Operations,Access to Resources & Specialist Commissioning,Services,08/05/2019,30226970,16607.01,Revenue,Cambian Childcare Ltd,Boarding Out Fees
Peterborough City Council,Adults,Independent Sector Placements,Services,08/05/2019,30226982,838.51,Revenue,Allied Healthcare (UK) Ltd,Home Care
Peterborough City Council,Adults,Independent Sector Placements,Services,08/05/2019,30226983,1500.24,Revenue,Merit Home Care Ltd,Home Care
Peterborough City Council,Communities,Housing,Services,08/05/2019,30226994,2975,Revenue,Singh and Sons Property Management Ltd,Temporary Accommodation Costs
Peterborough City Council,Communities,Housing,Services,08/05/2019,30226996,3150,Revenue,Singh and Sons Property Management Ltd,Temporary Accommodation Costs
Peterborough City Council,Communities,Housing,Services,08/05/2019,30226998,3220,Revenue,Singh and Sons Property Management Ltd,Temporary Accommodation Costs
Peterborough City Council,Communities,Housing,Services,08/05/2019,30227000,2275,Revenue,Singh and Sons Property Management Ltd,Temporary Accommodation Costs
Peterborough City Council,Commissioning and Commercial Operations,Commissioning,Services,08/05/2019,30227016,2970.85,Revenue,BDP Social Care Ltd,Hired Services
Peterborough City Council,Adults,Independent Sector Placements,Services,08/05/2019,30227053,657.09,Revenue,Hales Group Ltd,Home Care
Peterborough City Council,Communities,Housing,Services,08/05/2019,30227056,1639.32,Revenue,Cross Keys Homes,Financial Assistance
Peterborough City Council,Adults,Therapy/Reablement/Community Equipment,"Tools, Equipment, Furniture & Materials",08/05/2019,30227084,995.55,Revenue,Sovereign Property Services Ltd,Occupational Therapy Equipment
Peterborough City Council,Legal Services,Legal Services,Services,08/05/2019,30227100,785,Revenue,"Hunt, Miss Alison",Legal Costs
Peterborough City Council,Adults,Community Team,Agency Staff,08/05/2019,30227129,1221,Revenue,HCL Social Care Ltd,External Temporary Staff
Peterborough City Council,Education,HTS & CSC Transport,Contract Hire and Operating Leases,08/05/2019,8000142159,1974,Revenue,Eames Minibuses Ltd,Hired Transport
Peterborough City Council,Education,HTS & CSC Transport,Contract Hire and Operating Leases,08/05/2019,8000142160,2595.6,Revenue,Eames Minibuses Ltd,Hired Transport
Peterborough City Council,Education,HTS & CSC Transport,Contract Hire and Operating Leases,08/05/2019,8000142163,1579.2,Revenue,King Carz Ltd,Hired Transport
Peterborough City Council,Education,HTS & CSC Transport,Contract Hire and Operating Leases,08/05/2019,8000142164,1050,Revenue,King Carz Ltd,Hired Transport
Peterborough City Council,Education,HTS & CSC Transport,Contract Hire and Operating Leases,08/05/2019,8000142165,840,Revenue,King Carz Ltd,Hired Transport
Peterborough City Council,Education,HTS & CSC Transport,Contract Hire and Operating Leases,08/05/2019,8000142170,1700,Revenue,City Cabs Pboro Ltd,Hired Transport
Peterborough City Council,Adults,Independent Sector Placements,Social Services,08/05/2019,8000142196,2814.08,Revenue,Redacted Personal Data ,Direct Payments
Peterborough City Council,Adults,Independent Sector Placements,Social Services,08/05/2019,8000142197,1339.6,Revenue,Redacted Personal Data ,Direct Payments
Peterborough City Council,Adults,Independent Sector Placements,Social Services,08/05/2019,8000142198,1218.48,Revenue,Redacted Personal Data ,Direct Payments
Peterborough City Council,Adults,Independent Sector Placements,Social Services,08/05/2019,8000142200,1599.6,Revenue,Redacted Personal Data ,Direct Payments
Peterborough City Council,Adults,Independent Sector Placements,Social Services,08/05/2019,8000142201,1187.96,Revenue,Redacted Personal Data ,Direct Payments
Peterborough City Council,Adults,Independent Sector Placements,Social Services,08/05/2019,8000142202,1390.12,Revenue,Redacted Personal Data ,Direct Payments
Peterborough City Council,Adults,Independent Sector Placements,Social Services,08/05/2019,8000142203,1003.04,Revenue,Redacted Personal Data ,Direct Payments
Peterborough City Council,Adults,Independent Sector Placements,Social Services,08/05/2019,8000142205,4033.4,Revenue,Redacted Personal Data ,Direct Payments
Peterborough City Council,Adults,Independent Sector Placements,Social Services,08/05/2019,8000142207,1037.84,Revenue,Redacted Personal Data ,Direct Payments
Peterborough City Council,Adults,Independent Sector Placements,Social Services,08/05/2019,8000142208,830.56,Revenue,Redacted Personal Data ,Direct Payments
Peterborough City Council,Adults,Independent Sector Placements,Social Services,08/05/2019,8000142209,1605.6,Revenue,Redacted Personal Data ,Direct Payments
Peterborough City Council,Adults,Independent Sector Placements,Social Services,08/05/2019,8000142211,1146.92,Revenue,Redacted Personal Data ,Direct Payments
Peterborough City Council,Adults,Independent Sector Placements,Social Services,08/05/2019,8000142212,2092.36,Revenue,Redacted Personal Data ,Direct Payments
Peterborough City Council,Adults,Independent Sector Placements,Social Services,08/05/2019,8000142213,808.52,Revenue,Redacted Personal Data ,Direct Payments
Peterborough City Council,Adults,Independent Sector Placements,Social Services,08/05/2019,8000142215,1578.48,Revenue,Redacted Personal Data ,Direct Payments
Peterborough City Council,Adults,Independent Sector Placements,Social Services,08/05/2019,8000142216,544.8,Revenue,Redacted Personal Data ,Direct Payments
Peterborough City Council,Adults,Independent Sector Placements,Social Services,08/05/2019,8000142217,706.48,Revenue,Redacted Personal Data ,Direct Payments
Peterborough City Council,Adults,Independent Sector Placements,Social Services,08/05/2019,8000142218,938.28,Revenue,Redacted Personal Data ,Direct Payments
Peterborough City Council,Adults,Independent Sector Placements,Social Services,08/05/2019,8000142219,1289.52,Revenue,Redacted Personal Data ,Direct Payments
Peterborough City Council,Adults,Independent Sector Placements,Social Services,08/05/2019,8000142221,546.48,Revenue,Redacted Personal Data ,Direct Payments
Peterborough City Council,Adults,Independent Sector Placements,Social Services,08/05/2019,8000142222,6124.16,Revenue,Redacted Personal Data ,Direct Payments
Peterborough City Council,Adults,Independent Sector Placements,Social Services,08/05/2019,8000142224,2358.88,Revenue,Redacted Personal Data ,Direct Payments
Peterborough City Council,Adults,Independent Sector Placements,Social Services,08/05/2019,8000142225,777.56,Revenue,Redacted Personal Data ,Direct Payments
Peterborough City Council,Adults,Independent Sector Placements,Social Services,08/05/2019,8000142226,684.56,Revenue,Redacted Personal Data ,Direct Payments
Peterborough City Council,Adults,Independent Sector Placements,Social Services,08/05/2019,8000142227,1886.48,Revenue,Redacted Personal Data ,Direct Payments
Peterborough City Council,Adults,Independent Sector Placements,Social Services,08/05/2019,8000142228,552.48,Revenue,Redacted Personal Data ,Direct Payments
Peterborough City Council,Adults,Independent Sector Placements,Social Services,08/05/2019,8000142230,1251.04,Revenue,Redacted Personal Data ,Direct Payments
Peterborough City Council,Adults,Independent Sector Placements,Social Services,08/05/2019,8000142231,868,Revenue,Redacted Personal Data ,Direct Payments
Peterborough City Council,Adults,Independent Sector Placements,Social Services,08/05/2019,8000142232,992.28,Revenue,Redacted Personal Data ,Direct Payments
Peterborough City Council,Adults,Independent Sector Placements,Social Services,08/05/2019,8000142233,922.02,Revenue,Redacted Personal Data ,Direct Payments
Peterborough City Council,Adults,Independent Sector Placements,Social Services,08/05/2019,8000142234,514.12,Revenue,Redacted Personal Data ,Direct Payments
Peterborough City Council,Adults,Independent Sector Placements,Social Services,08/05/2019,8000142241,774.24,Revenue,Redacted Personal Data ,Direct Payments
Peterborough City Council,Adults,Independent Sector Placements,Social Services,08/05/2019,8000142244,590.08,Revenue,Redacted Personal Data ,Direct Payments
Peterborough City Council,Adults,Independent Sector Placements,Social Services,08/05/2019,8000142246,870.44,Revenue,Redacted Personal Data ,Direct Payments
Peterborough City Council,Adults,Independent Sector Placements,Social Services,08/05/2019,8000142248,7123.48,Revenue,Redacted Personal Data ,Direct Payments
Peterborough City Council,Adults,Independent Sector Placements,Social Services,08/05/2019,8000142249,7506.08,Revenue,Redacted Personal Data ,Direct Payments
Peterborough City Council,Adults,Independent Sector Placements,Social Services,08/05/2019,8000142250,671.08,Revenue,Redacted Personal Data ,Direct Payments
Peterborough City Council,Adults,Independent Sector Placements,Social Services,08/05/2019,8000142251,8281.8,Revenue,Redacted Personal Data ,Direct Payments
Peterborough City Council,Adults,Independent Sector Placements,Social Services,08/05/2019,8000142252,892.08,Revenue,Redacted Personal Data ,Direct Payments
Peterborough City Council,Adults,Independent Sector Placements,Social Services,08/05/2019,8000142253,509.2,Revenue,Redacted Personal Data ,Direct Payments
Peterborough City Council,Adults,Independent Sector Placements,Social Services,08/05/2019,8000142254,777.08,Revenue,Redacted Personal Data ,Direct Payments
Peterborough City Council,Adults,Independent Sector Placements,Social Services,08/05/2019,8000142255,3753.12,Revenue,Redacted Personal Data ,Direct Payments
Peterborough City Council,Adults,Independent Sector Placements,Social Services,08/05/2019,8000142256,670.6,Revenue,Redacted Personal Data ,Direct Payments
Peterborough City Council,Adults,Independent Sector Placements,Social Services,08/05/2019,8000142257,1268.88,Revenue,Redacted Personal Data ,Direct Payments
Peterborough City Council,Adults,Independent Sector Placements,Social Services,08/05/2019,8000142258,592.92,Revenue,Redacted Personal Data ,Direct Payments
Peterborough City Council,Adults,Independent Sector Placements,Social Services,08/05/2019,8000142259,6806.37,Revenue,Redacted Personal Data ,Direct Payments
Peterborough City Council,Adults,Independent Sector Placements,Social Services,08/05/2019,8000142260,2128.36,Revenue,Redacted Personal Data ,Direct Payments
Peterborough City Council,Adults,Independent Sector Placements,Social Services,08/05/2019,8000142261,593.6,Revenue,Redacted Personal Data ,Direct Payments
Peterborough City Council,Adults,Independent Sector Placements,Social Services,08/05/2019,8000142262,988.68,Revenue,Redacted Personal Data ,Direct Payments
Peterborough City Council,Adults,Independent Sector Placements,Social Services,08/05/2019,8000142263,900.48,Revenue,Redacted Personal Data ,Direct Payments
Peterborough City Council,Adults,Independent Sector Placements,Social Services,08/05/2019,8000142264,1035.08,Revenue,Redacted Personal Data ,Direct Payments
Peterborough City Council,Adults,Independent Sector Placements,Social Services,08/05/2019,8000142266,602.72,Revenue,Redacted Personal Data ,Direct Payments
Peterborough City Council,Adults,Independent Sector Placements,Social Services,08/05/2019,8000142267,4158.48,Revenue,Redacted Personal Data ,Direct Payments
Peterborough City Council,Adults,Independent Sector Placements,Social Services,08/05/2019,8000142268,1262.88,Revenue,Redacted Personal Data ,Direct Payments
Peterborough City Council,Adults,Independent Sector Placements,Social Services,08/05/2019,8000142271,779.56,Revenue,Redacted Personal Data ,Direct Payments
Peterborough City Council,Adults,Independent Sector Placements,Social Services,08/05/2019,8000142272,1167.48,Revenue,Redacted Personal Data ,Direct Payments
Peterborough City Council,Adults,Independent Sector Placements,Social Services,08/05/2019,8000142273,1142.88,Revenue,Redacted Personal Data ,Direct Payments
Peterborough City Council,Adults,Independent Sector Placements,Social Services,08/05/2019,8000142274,500,Revenue,Redacted Personal Data ,Direct Payments
Peterborough City Council,Adults,Independent Sector Placements,Social Services,08/05/2019,8000142275,2978.52,Revenue,Redacted Personal Data ,Direct Payments
Peterborough City Council,Adults,Independent Sector Placements,Social Services,08/05/2019,8000142276,1282.96,Revenue,Redacted Personal Data ,Direct Payments
Peterborough City Council,Adults,Independent Sector Placements,Social Services,08/05/2019,8000142278,3488,Revenue,Redacted Personal Data ,Direct Payments
Peterborough City Council,Adults,Independent Sector Placements,Social Services,08/05/2019,8000142279,3155.68,Revenue,Redacted Personal Data ,Direct Payments
Peterborough City Council,Adults,Independent Sector Placements,Social Services,08/05/2019,8000142280,542.28,Revenue,Redacted Personal Data ,Direct Payments
Peterborough City Council,Adults,Independent Sector Placements,Social Services,08/05/2019,8000142281,816,Revenue,Redacted Personal Data ,Direct Payments
Peterborough City Council,Adults,Independent Sector Placements,Social Services,08/05/2019,8000142282,1120,Revenue,Redacted Personal Data ,Direct Payments
Peterborough City Council,Adults,Independent Sector Placements,Social Services,08/05/2019,8000142283,814.4,Revenue,Redacted Personal Data ,Direct Payments
Peterborough City Council,Adults,Independent Sector Placements,Social Services,08/05/2019,8000142284,587.2,Revenue,Redacted Personal Data ,Direct Payments
Peterborough City Council,Adults,Independent Sector Placements,Social Services,08/05/2019,8000142285,672,Revenue,Redacted Personal Data ,Direct Payments
Peterborough City Council,Adults,Independent Sector Placements,Social Services,08/05/2019,8000142286,1041.76,Revenue,Redacted Personal Data ,Direct Payments
Peterborough City Council,Adults,Independent Sector Placements,Social Services,08/05/2019,8000142287,9322.6,Revenue,Redacted Personal Data ,Direct Payments
Peterborough City Council,Adults,Independent Sector Placements,Social Services,08/05/2019,8000142290,1571.11,Revenue,Redacted Personal Data ,Direct Payments
Peterborough City Council,Adults,Independent Sector Placements,Social Services,08/05/2019,8000142291,1682.28,Revenue,Redacted Personal Data ,Direct Payments
Peterborough City Council,Adults,Independent Sector Placements,Social Services,08/05/2019,8000142292,954.48,Revenue,Redacted Personal Data ,Direct Payments
Peterborough City Council,Adults,Independent Sector Placements,Social Services,08/05/2019,8000142293,560.06,Revenue,Redacted Personal Data ,Direct Payments
Peterborough City Council,Adults,Independent Sector Placements,Social Services,08/05/2019,8000142294,547.32,Revenue,Redacted Personal Data ,Direct Payments
Peterborough City Council,Adults,Independent Sector Placements,Social Services,08/05/2019,8000142296,792.84,Revenue,Redacted Personal Data ,Direct Payments
Peterborough City Council,Adults,Independent Sector Placements,Social Services,08/05/2019,8000142297,1427.68,Revenue,Redacted Personal Data ,Direct Payments
Peterborough City Council,Adults,Independent Sector Placements,Social Services,08/05/2019,8000142298,1576.24,Revenue,Redacted Personal Data ,Direct Payments
Peterborough City Council,Adults,Independent Sector Placements,Social Services,08/05/2019,8000142301,1818.48,Revenue,Redacted Personal Data ,Direct Payments
Peterborough City Council,Adults,Independent Sector Placements,Social Services,08/05/2019,8000142302,566.68,Revenue,Redacted Personal Data ,Direct Payments
Peterborough City Council,Adults,Independent Sector Placements,Social Services,08/05/2019,8000142303,3317.24,Revenue,Redacted Personal Data ,Direct Payments
Peterborough City Council,Adults,Independent Sector Placements,Social Services,08/05/2019,8000142306,1898.48,Revenue,Redacted Personal Data ,Direct Payments
Peterborough City Council,Adults,Independent Sector Placements,Social Services,08/05/2019,8000142308,1033.04,Revenue,Redacted Personal Data ,Direct Payments
Peterborough City Council,Adults,Independent Sector Placements,Social Services,08/05/2019,8000142309,2052.92,Revenue,Redacted Personal Data ,Direct Payments
Peterborough City Council,Adults,Independent Sector Placements,Social Services,08/05/2019,8000142311,762.48,Revenue,Redacted Personal Data ,Direct Payments
Peterborough City Council,Adults,Independent Sector Placements,Social Services,08/05/2019,8000142312,2274.48,Revenue,Redacted Personal Data ,Direct Payments
Peterborough City Council,Adults,Independent Sector Placements,Social Services,08/05/2019,8000142316,1554.48,Revenue,Redacted Personal Data ,Direct Payments
Peterborough City Council,Adults,Independent Sector Placements,Social Services,08/05/2019,8000142318,963.36,Revenue,Redacted Personal Data ,Direct Payments
Peterborough City Council,Adults,Independent Sector Placements,Social Services,08/05/2019,8000142319,3411.04,Revenue,Redacted Personal Data ,Direct Payments
Peterborough City Council,Adults,Independent Sector Placements,Social Services,08/05/2019,8000142320,1549.4,Revenue,Redacted Personal Data ,Direct Payments
Peterborough City Council,Adults,Independent Sector Placements,Social Services,08/05/2019,8000142322,2034.48,Revenue,Redacted Personal Data ,Direct Payments
Peterborough City Council,Adults,Independent Sector Placements,Social Services,08/05/2019,8000142323,849.28,Revenue,Redacted Personal Data ,Direct Payments
Peterborough City Council,Adults,Independent Sector Placements,Social Services,08/05/2019,8000142324,858.56,Revenue,Redacted Personal Data ,Direct Payments
Peterborough City Council,Adults,Independent Sector Placements,Social Services,08/05/2019,8000142327,1476.96,Revenue,Redacted Personal Data ,Direct Payments
Peterborough City Council,Adults,Independent Sector Placements,Social Services,08/05/2019,8000142330,640.04,Revenue,Redacted Personal Data ,Direct Payments
Peterborough City Council,Adults,Independent Sector Placements,Social Services,08/05/2019,8000142332,1413.92,Revenue,Redacted Personal Data ,Direct Payments
Peterborough City Council,Adults,Independent Sector Placements,Social Services,08/05/2019,8000142333,1098.48,Revenue,Redacted Personal Data ,Direct Payments
Peterborough City Council,Adults,Independent Sector Placements,Social Services,08/05/2019,8000142337,998.48,Revenue,Redacted Personal Data ,Direct Payments
Peterborough City Council,Adults,Independent Sector Placements,Social Services,08/05/2019,8000142340,668.48,Revenue,Redacted Personal Data ,Direct Payments
Peterborough City Council,Adults,Independent Sector Placements,Social Services,08/05/2019,8000142341,794.68,Revenue,Redacted Personal Data ,Direct Payments
Peterborough City Council,Adults,Independent Sector Placements,Social Services,08/05/2019,8000142342,633.6,Revenue,Redacted Personal Data ,Direct Payments
Peterborough City Council,Adults,Independent Sector Placements,Social Services,08/05/2019,8000142344,602.48,Revenue,Redacted Personal Data ,Direct Payments
Peterborough City Council,Adults,Independent Sector Placements,Social Services,08/05/2019,8000142346,689.84,Revenue,Redacted Personal Data ,Direct Payments
Peterborough City Council,Adults,Independent Sector Placements,Social Services,08/05/2019,8000142347,1523.28,Revenue,Redacted Personal Data ,Direct Payments
Peterborough City Council,Adults,Independent Sector Placements,Social Services,08/05/2019,8000142348,1950.48,Revenue,Redacted Personal Data ,Direct Payments
Peterborough City Council,Adults,Independent Sector Placements,Social Services,08/05/2019,8000142349,510.76,Revenue,Redacted Personal Data ,Direct Payments
Peterborough City Council,Adults,Independent Sector Placements,Social Services,08/05/2019,8000142350,2335.12,Revenue,Redacted Personal Data ,Direct Payments
Peterborough City Council,Adults,Independent Sector Placements,Social Services,08/05/2019,8000142351,571.28,Revenue,Redacted Personal Data ,Direct Payments
Peterborough City Council,Adults,Independent Sector Placements,Social Services,08/05/2019,8000142352,796.39,Revenue,Redacted Personal Data ,Direct Payments
Peterborough City Council,Adults,Independent Sector Placements,Social Services,08/05/2019,8000142354,1830.44,Revenue,Redacted Personal Data ,Direct Payments
Peterborough City Council,Adults,Independent Sector Placements,Social Services,08/05/2019,8000142355,1110.48,Revenue,Redacted Personal Data ,Direct Payments
Peterborough City Council,Adults,Independent Sector Placements,Social Services,08/05/2019,8000142356,793.28,Revenue,Redacted Personal Data ,Direct Payments
Peterborough City Council,Adults,Independent Sector Placements,Social Services,08/05/2019,8000142357,2118.36,Revenue,Redacted Personal Data ,Direct Payments
Peterborough City Council,Adults,Independent Sector Placements,Social Services,08/05/2019,8000142358,541.24,Revenue,Redacted Personal Data ,Direct Payments
Peterborough City Council,Adults,Independent Sector Placements,Social Services,08/05/2019,8000142362,668.48,Revenue,Redacted Personal Data ,Direct Payments
Peterborough City Council,Adults,Independent Sector Placements,Social Services,08/05/2019,8000142363,1319.68,Revenue,Redacted Personal Data ,Direct Payments
Peterborough City Council,Adults,Independent Sector Placements,Social Services,08/05/2019,8000142365,718.48,Revenue,Redacted Personal Data ,Direct Payments
Peterborough City Council,Adults,Independent Sector Placements,Social Services,08/05/2019,8000142367,1277.68,Revenue,Redacted Personal Data ,Direct Payments
Peterborough City Council,Adults,Independent Sector Placements,Social Services,08/05/2019,8000142368,690.8,Revenue,Redacted Personal Data ,Direct Payments
Peterborough City Council,Adults,Independent Sector Placements,Social Services,08/05/2019,8000142369,639.56,Revenue,Redacted Personal Data ,Direct Payments
Peterborough City Council,Adults,Independent Sector Placements,Social Services,08/05/2019,8000142372,504,Revenue,Redacted Personal Data ,Direct Payments
Peterborough City Council,Adults,Independent Sector Placements,Social Services,08/05/2019,8000142373,594.48,Revenue,Redacted Personal Data ,Direct Payments
Peterborough City Council,Adults,Independent Sector Placements,Social Services,08/05/2019,8000142374,939.72,Revenue,Redacted Personal Data ,Direct Payments
Peterborough City Council,Adults,Independent Sector Placements,Social Services,08/05/2019,8000142377,946.48,Revenue,Redacted Personal Data ,Direct Payments
Peterborough City Council,Adults,Independent Sector Placements,Social Services,08/05/2019,8000142379,858.48,Revenue,Redacted Personal Data ,Direct Payments
Peterborough City Council,Adults,Independent Sector Placements,Social Services,08/05/2019,8000142380,738.48,Revenue,Redacted Personal Data ,Direct Payments
Peterborough City Council,Adults,Independent Sector Placements,Social Services,08/05/2019,8000142381,630.48,Revenue,Redacted Personal Data ,Direct Payments
Peterborough City Council,Adults,Independent Sector Placements,Social Services,08/05/2019,8000142382,900.48,Revenue,Redacted Personal Data ,Direct Payments
Peterborough City Council,Adults,Independent Sector Placements,Social Services,08/05/2019,8000142383,546.48,Revenue,Redacted Personal Data ,Direct Payments
Peterborough City Council,Adults,Independent Sector Placements,Social Services,08/05/2019,8000142384,2299.28,Revenue,Redacted Personal Data ,Direct Payments
Peterborough City Council,Adults,Independent Sector Placements,Social Services,08/05/2019,8000142387,1415.04,Revenue,Redacted Personal Data ,Direct Payments
Peterborough City Council,Adults,Independent Sector Placements,Social Services,08/05/2019,8000142391,1475.28,Revenue,Redacted Personal Data ,Direct Payments
Peterborough City Council,Adults,Independent Sector Placements,Social Services,08/05/2019,8000142393,546.48,Revenue,Redacted Personal Data ,Direct Payments
Peterborough City Council,Adults,Independent Sector Placements,Social Services,08/05/2019,8000142396,617.2,Revenue,Redacted Personal Data ,Direct Payments
Peterborough City Council,Adults,Independent Sector Placements,Social Services,08/05/2019,8000142398,905.04,Revenue,Redacted Personal Data ,Direct Payments
Peterborough City Council,Adults,Independent Sector Placements,Social Services,08/05/2019,8000142402,738.48,Revenue,Redacted Personal Data ,Direct Payments
Peterborough City Council,Adults,Independent Sector Placements,Social Services,08/05/2019,8000142403,875.76,Revenue,Redacted Personal Data ,Direct Payments
Peterborough City Council,Adults,Independent Sector Placements,Social Services,08/05/2019,8000142404,1403.76,Revenue,Redacted Personal Data ,Direct Payments
Peterborough City Council,Adults,Independent Sector Placements,Social Services,08/05/2019,8000142405,1008,Revenue,Redacted Personal Data ,Direct Payments
Peterborough City Council,Adults,Independent Sector Placements,Social Services,08/05/2019,8000142407,978.48,Revenue,Redacted Personal Data ,Direct Payments
Peterborough City Council,Adults,Independent Sector Placements,Social Services,08/05/2019,8000142408,1026.48,Revenue,Redacted Personal Data ,Direct Payments
Peterborough City Council,Adults,Independent Sector Placements,Social Services,08/05/2019,8000142411,642.48,Revenue,Redacted Personal Data ,Direct Payments
Peterborough City Council,Adults,Independent Sector Placements,Social Services,08/05/2019,8000142414,1161.44,Revenue,Redacted Personal Data ,Direct Payments
Peterborough City Council,Adults,Independent Sector Placements,Social Services,08/05/2019,8000142415,508.48,Revenue,Redacted Personal Data ,Direct Payments
Peterborough City Council,Adults,Independent Sector Placements,Social Services,08/05/2019,8000142420,765.64,Revenue,Redacted Personal Data ,Direct Payments
Peterborough City Council,Adults,Independent Sector Placements,Social Services,08/05/2019,8000142421,1575.36,Revenue,Redacted Personal Data ,Direct Payments
Peterborough City Council,Adults,Independent Sector Placements,Social Services,08/05/2019,8000142422,7317.68,Revenue,Redacted Personal Data ,Direct Payments
Peterborough City Council,Adults,Independent Sector Placements,Social Services,08/05/2019,8000142423,1231.84,Revenue,Redacted Personal Data ,Direct Payments
Peterborough City Council,Adults,Independent Sector Placements,Social Services,08/05/2019,8000142424,1407.52,Revenue,Redacted Personal Data ,Direct Payments
Peterborough City Council,Adults,Independent Sector Placements,Social Services,08/05/2019,8000142426,519.36,Revenue,Redacted Personal Data ,Direct Payments
Peterborough City Council,Adults,Independent Sector Placements,Social Services,08/05/2019,8000142427,763.56,Revenue,Redacted Personal Data ,Direct Payments
Peterborough City Council,Adults,Independent Sector Placements,Social Services,08/05/2019,8000142428,978.4,Revenue,Redacted Personal Data ,Direct Payments
Peterborough City Council,Adults,Independent Sector Placements,Social Services,08/05/2019,8000142429,677.8,Revenue,Redacted Personal Data ,Direct Payments
Peterborough City Council,Adults,Independent Sector Placements,Social Services,08/05/2019,8000142432,2573.28,Revenue,Redacted Personal Data ,Direct Payments
Peterborough City Council,Adults,Independent Sector Placements,Social Services,08/05/2019,8000142433,885.84,Revenue,Redacted Personal Data ,Direct Payments
Peterborough City Council,Adults,Independent Sector Placements,Social Services,08/05/2019,8000142435,3514.48,Revenue,Redacted Personal Data ,Direct Payments
Peterborough City Council,Adults,Independent Sector Placements,Social Services,08/05/2019,8000142436,1440.8,Revenue,Redacted Personal Data ,Direct Payments
Peterborough City Council,Adults,Independent Sector Placements,Social Services,08/05/2019,8000142437,9703.6,Revenue,Redacted Personal Data ,Direct Payments
Peterborough City Council,Adults,Independent Sector Placements,Social Services,08/05/2019,8000142438,5693.16,Revenue,Redacted Personal Data ,Direct Payments
Peterborough City Council,Adults,Independent Sector Placements,Social Services,08/05/2019,8000142439,6953.52,Revenue,Redacted Personal Data ,Direct Payments
Peterborough City Council,Adults,Independent Sector Placements,Social Services,08/05/2019,8000142441,1026.48,Revenue,Redacted Personal Data ,Direct Payments
Peterborough City Council,Adults,Independent Sector Placements,Social Services,08/05/2019,8000142442,2107.12,Revenue,Redacted Personal Data ,Direct Payments
Peterborough City Council,Adults,Independent Sector Placements,Social Services,08/05/2019,8000142443,7683.52,Revenue,Redacted Personal Data ,Direct Payments
Peterborough City Council,Adults,Independent Sector Placements,Social Services,08/05/2019,8000142444,2570.76,Revenue,Redacted Personal Data ,Direct Payments
Peterborough City Council,Adults,Independent Sector Placements,Social Services,08/05/2019,8000142445,1397.52,Revenue,Redacted Personal Data ,Direct Payments
Peterborough City Council,Adults,Independent Sector Placements,Social Services,08/05/2019,8000142447,999,Revenue,Redacted Personal Data ,Direct Payments
Peterborough City Council,Adults,Independent Sector Placements,Social Services,08/05/2019,8000142448,2418,Revenue,Redacted Personal Data ,Direct Payments
Peterborough City Council,Adults,Independent Sector Placements,Social Services,08/05/2019,8000142449,1166.52,Revenue,Redacted Personal Data ,Direct Payments
Peterborough City Council,Adults,Independent Sector Placements,Social Services,08/05/2019,8000142450,5760.68,Revenue,Redacted Personal Data ,Direct Payments
Peterborough City Council,Adults,Independent Sector Placements,Social Services,08/05/2019,8000142451,2743.64,Revenue,Redacted Personal Data ,Direct Payments
Peterborough City Council,Adults,Independent Sector Placements,Social Services,08/05/2019,8000142452,1278.84,Revenue,Redacted Personal Data ,Direct Payments
Peterborough City Council,Adults,Independent Sector Placements,Social Services,08/05/2019,8000142453,977,Revenue,Redacted Personal Data ,Direct Payments
Peterborough City Council,Adults,Independent Sector Placements,Social Services,08/05/2019,8000142455,3965.84,Revenue,Redacted Personal Data ,Direct Payments
Peterborough City Council,Adults,Independent Sector Placements,Social Services,08/05/2019,8000142456,1340.96,Revenue,Redacted Personal Data ,Direct Payments
Peterborough City Council,Adults,Independent Sector Placements,Social Services,08/05/2019,8000142457,636.72,Revenue,Redacted Personal Data ,Direct Payments
Peterborough City Council,Adults,Independent Sector Placements,Social Services,08/05/2019,8000142458,1340.4,Revenue,Redacted Personal Data ,Direct Payments
Peterborough City Council,Adults,Independent Sector Placements,Social Services,08/05/2019,8000142459,1560.48,Revenue,Redacted Personal Data ,Direct Payments
Peterborough City Council,Adults,Independent Sector Placements,Social Services,08/05/2019,8000142460,1973.84,Revenue,Redacted Personal Data ,Direct Payments
Peterborough City Council,Adults,Independent Sector Placements,Social Services,08/05/2019,8000142461,2569.4,Revenue,Redacted Personal Data ,Direct Payments
Peterborough City Council,Adults,Independent Sector Placements,Social Services,08/05/2019,8000142462,5058.48,Revenue,Redacted Personal Data ,Direct Payments
Peterborough City Council,Adults,Independent Sector Placements,Social Services,08/05/2019,8000142463,1617,Revenue,Redacted Personal Data ,Direct Payments
Peterborough City Council,Adults,Independent Sector Placements,Social Services,08/05/2019,8000142464,2706.6,Revenue,Redacted Personal Data ,Direct Payments
Peterborough City Council,Adults,Independent Sector Placements,Social Services,08/05/2019,8000142466,727.36,Revenue,Redacted Personal Data ,Direct Payments
Peterborough City Council,Adults,Independent Sector Placements,Social Services,08/05/2019,8000142467,654.4,Revenue,Redacted Personal Data ,Direct Payments
Peterborough City Council,Adults,Independent Sector Placements,Social Services,08/05/2019,8000142468,954.48,Revenue,Redacted Personal Data ,Direct Payments
Peterborough City Council,Adults,Independent Sector Placements,Social Services,08/05/2019,8000142470,1091.92,Revenue,Redacted Personal Data ,Direct Payments
Peterborough City Council,Adults,Independent Sector Placements,Social Services,08/05/2019,8000142471,2176,Revenue,Redacted Personal Data ,Direct Payments
Peterborough City Council,Adults,Independent Sector Placements,Social Services,08/05/2019,8000142472,1394.48,Revenue,Redacted Personal Data ,Direct Payments
Peterborough City Council,Adults,Independent Sector Placements,Social Services,08/05/2019,8000142473,611.08,Revenue,Redacted Personal Data ,Direct Payments
Peterborough City Council,Adults,Independent Sector Placements,Social Services,08/05/2019,8000142474,596.96,Revenue,Redacted Personal Data ,Direct Payments
Peterborough City Council,Adults,Independent Sector Placements,Social Services,08/05/2019,8000142475,639.12,Revenue,Redacted Personal Data ,Direct Payments
Peterborough City Council,Adults,Independent Sector Placements,Social Services,08/05/2019,8000142476,1819.56,Revenue,Redacted Personal Data ,Direct Payments
Peterborough City Council,Adults,Independent Sector Placements,Social Services,08/05/2019,8000142477,623.36,Revenue,Redacted Personal Data ,Direct Payments
Peterborough City Council,Adults,Independent Sector Placements,Social Services,08/05/2019,8000142478,530.84,Revenue,Redacted Personal Data ,Direct Payments
Peterborough City Council,Adults,Independent Sector Placements,Social Services,08/05/2019,8000142479,518.8,Revenue,Redacted Personal Data ,Direct Payments
Peterborough City Council,Adults,Independent Sector Placements,Social Services,08/05/2019,8000142480,1834.8,Revenue,Redacted Personal Data ,Direct Payments
Peterborough City Council,Adults,Independent Sector Placements,Social Services,08/05/2019,8000142483,2095.44,Revenue,Redacted Personal Data ,Direct Payments
Peterborough City Council,Adults,Independent Sector Placements,Social Services,08/05/2019,8000142484,762.48,Revenue,Redacted Personal Data ,Direct Payments
Peterborough City Council,Adults,Independent Sector Placements,Social Services,08/05/2019,8000142485,858.12,Revenue,Redacted Personal Data ,Direct Payments
Peterborough City Council,Adults,Independent Sector Placements,Social Services,08/05/2019,8000142487,760.88,Revenue,Redacted Personal Data ,Direct Payments
Peterborough City Council,Adults,Independent Sector Placements,Social Services,08/05/2019,8000142488,790.04,Revenue,Redacted Personal Data ,Direct Payments
Peterborough City Council,Adults,Independent Sector Placements,Social Services,08/05/2019,8000142489,890.48,Revenue,Redacted Personal Data ,Direct Payments
Peterborough City Council,Adults,Independent Sector Placements,Social Services,08/05/2019,8000142491,1149.6,Revenue,Redacted Personal Data ,Direct Payments
Peterborough City Council,Adults,Independent Sector Placements,Social Services,08/05/2019,8000142494,2737.4,Revenue,Redacted Personal Data ,Direct Payments
Peterborough City Council,Adults,Independent Sector Placements,Social Services,08/05/2019,8000142495,1472.68,Revenue,Redacted Personal Data ,Direct Payments
Peterborough City Council,Adults,Independent Sector Placements,Social Services,08/05/2019,8000142496,3485.88,Revenue,Redacted Personal Data ,Direct Payments
Peterborough City Council,Adults,Independent Sector Placements,Social Services,08/05/2019,8000142497,786.48,Revenue,Redacted Personal Data ,Direct Payments
Peterborough City Council,Adults,Independent Sector Placements,Social Services,08/05/2019,8000142498,1966.16,Revenue,Redacted Personal Data ,Direct Payments
Peterborough City Council,Adults,Independent Sector Placements,Social Services,08/05/2019,8000142499,5644.44,Revenue,Redacted Personal Data ,Direct Payments
Peterborough City Council,Adults,Independent Sector Placements,Social Services,08/05/2019,8000142500,1612.08,Revenue,Redacted Personal Data ,Direct Payments
Peterborough City Council,Adults,Independent Sector Placements,Social Services,08/05/2019,8000142501,4913.08,Revenue,Redacted Personal Data ,Direct Payments
Peterborough City Council,Adults,Independent Sector Placements,Social Services,08/05/2019,8000142502,6301.6,Revenue,Redacted Personal Data ,Direct Payments
Peterborough City Council,Adults,Independent Sector Placements,Social Services,08/05/2019,8000142504,7327.28,Revenue,Redacted Personal Data ,Direct Payments
Peterborough City Council,Adults,Independent Sector Placements,Social Services,08/05/2019,8000142506,3267.28,Revenue,Redacted Personal Data ,Direct Payments
Peterborough City Council,Adults,Independent Sector Placements,Social Services,08/05/2019,8000142508,834.48,Revenue,Redacted Personal Data ,Direct Payments
Peterborough City Council,Adults,Independent Sector Placements,Social Services,08/05/2019,8000142509,2608.68,Revenue,Redacted Personal Data ,Direct Payments
Peterborough City Council,Adults,Independent Sector Placements,Social Services,08/05/2019,8000142510,1748,Revenue,Redacted Personal Data ,Direct Payments
Peterborough City Council,Adults,Independent Sector Placements,Social Services,08/05/2019,8000142511,1875.2,Revenue,Redacted Personal Data ,Direct Payments
Peterborough City Council,Adults,Independent Sector Placements,Social Services,08/05/2019,8000142512,1196.44,Revenue,Redacted Personal Data ,Direct Payments
Peterborough City Council,Adults,Independent Sector Placements,Social Services,08/05/2019,8000142513,2263.76,Revenue,Redacted Personal Data ,Direct Payments
Peterborough City Council,Adults,Independent Sector Placements,Social Services,08/05/2019,8000142514,2169.8,Revenue,Redacted Personal Data ,Direct Payments
Peterborough City Council,Adults,Independent Sector Placements,Social Services,08/05/2019,8000142515,2358.08,Revenue,Redacted Personal Data ,Direct Payments
Peterborough City Council,Adults,Independent Sector Placements,Social Services,08/05/2019,8000142517,1170.68,Revenue,Redacted Personal Data ,Direct Payments
Peterborough City Council,Adults,Independent Sector Placements,Social Services,08/05/2019,8000142519,764.4,Revenue,Redacted Personal Data ,Direct Payments
Peterborough City Council,Adults,Independent Sector Placements,Social Services,08/05/2019,8000142521,762.48,Revenue,Redacted Personal Data ,Direct Payments
Peterborough City Council,Adults,Independent Sector Placements,Social Services,08/05/2019,8000142522,576,Revenue,Redacted Personal Data ,Direct Payments
Peterborough City Council,Adults,Independent Sector Placements,Social Services,08/05/2019,8000142523,9762.48,Revenue,Redacted Personal Data ,Direct Payments
Peterborough City Council,Adults,Independent Sector Placements,Social Services,08/05/2019,8000142524,1218.48,Revenue,Redacted Personal Data ,Direct Payments
Peterborough City Council,Adults,Independent Sector Placements,Social Services,08/05/2019,8000142525,6418.88,Revenue,Redacted Personal Data ,Direct Payments
Peterborough City Council,Adults,Independent Sector Placements,Social Services,08/05/2019,8000142526,2384.48,Revenue,Redacted Personal Data ,Direct Payments
Peterborough City Council,Adults,Independent Sector Placements,Social Services,08/05/2019,8000142527,1067,Revenue,Redacted Personal Data ,Direct Payments
Peterborough City Council,Adults,Independent Sector Placements,Social Services,08/05/2019,8000142528,1188.76,Revenue,Redacted Personal Data ,Direct Payments
Peterborough City Council,Adults,Independent Sector Placements,Social Services,08/05/2019,8000142529,10172.08,Revenue,Redacted Personal Data ,Direct Payments
Peterborough City Council,Adults,Independent Sector Placements,Social Services,08/05/2019,8000142530,3618.48,Revenue,Redacted Personal Data ,Direct Payments
Peterborough City Council,Adults,Independent Sector Placements,Social Services,08/05/2019,8000142533,1367.28,Revenue,Redacted Personal Data ,Direct Payments
Peterborough City Council,Adults,Independent Sector Placements,Social Services,08/05/2019,8000142534,3059.24,Revenue,Redacted Personal Data ,Direct Payments
Peterborough City Council,Adults,Independent Sector Placements,Social Services,08/05/2019,8000142535,1266.48,Revenue,Redacted Personal Data ,Direct Payments
Peterborough City Council,Adults,Independent Sector Placements,Social Services,08/05/2019,8000142536,6518.4,Revenue,Redacted Personal Data ,Direct Payments
Peterborough City Council,Adults,Independent Sector Placements,Social Services,08/05/2019,8000142537,716.8,Revenue,Redacted Personal Data ,Direct Payments
Peterborough City Council,Adults,Independent Sector Placements,Social Services,08/05/2019,8000142538,9929.2,Revenue,Redacted Personal Data ,Direct Payments
Peterborough City Council,Adults,Independent Sector Placements,Social Services,08/05/2019,8000142540,1348.56,Revenue,Redacted Personal Data ,Direct Payments
Peterborough City Council,Adults,Independent Sector Placements,Social Services,08/05/2019,8000142541,2083.08,Revenue,Redacted Personal Data ,Direct Payments
Peterborough City Council,Adults,Independent Sector Placements,Social Services,08/05/2019,8000142542,1338.48,Revenue,Redacted Personal Data ,Direct Payments
Peterborough City Council,Adults,Independent Sector Placements,Social Services,08/05/2019,8000142543,3888.2,Revenue,Redacted Personal Data ,Direct Payments
Peterborough City Council,Adults,Independent Sector Placements,Social Services,08/05/2019,8000142544,6801.88,Revenue,Redacted Personal Data ,Direct Payments
Peterborough City Council,Adults,Independent Sector Placements,Social Services,08/05/2019,8000142545,4758.48,Revenue,Redacted Personal Data ,Direct Payments
Peterborough City Council,Adults,Independent Sector Placements,Social Services,08/05/2019,8000142546,1303.32,Revenue,Redacted Personal Data ,Direct Payments
Peterborough City Council,Adults,Independent Sector Placements,Social Services,08/05/2019,8000142547,7046.48,Revenue,Redacted Personal Data ,Direct Payments
Peterborough City Council,Adults,Independent Sector Placements,Social Services,08/05/2019,8000142548,3973.68,Revenue,Redacted Personal Data ,Direct Payments
Peterborough City Council,Adults,Independent Sector Placements,Social Services,08/05/2019,8000142550,6201,Revenue,Redacted Personal Data ,Direct Payments
Peterborough City Council,Adults,Independent Sector Placements,Social Services,08/05/2019,8000142551,6055.8,Revenue,Redacted Personal Data ,Direct Payments
Peterborough City Council,Adults,Independent Sector Placements,Social Services,08/05/2019,8000142552,1025.08,Revenue,Redacted Personal Data ,Direct Payments
Peterborough City Council,Adults,Independent Sector Placements,Social Services,08/05/2019,8000142553,3266.6,Revenue,Redacted Personal Data ,Direct Payments
Peterborough City Council,Adults,Independent Sector Placements,Social Services,08/05/2019,8000142554,12715.44,Revenue,Redacted Personal Data ,Direct Payments
Peterborough City Council,Adults,Independent Sector Placements,Social Services,08/05/2019,8000142555,6724.08,Revenue,Redacted Personal Data ,Direct Payments
Peterborough City Council,Adults,Independent Sector Placements,Social Services,08/05/2019,8000142557,4034.56,Revenue,Redacted Personal Data ,Direct Payments
Peterborough City Council,Adults,Independent Sector Placements,Social Services,08/05/2019,8000142559,738.44,Revenue,Redacted Personal Data ,Direct Payments
Peterborough City Council,Adults,Independent Sector Placements,Social Services,08/05/2019,8000142560,795.32,Revenue,Redacted Personal Data ,Direct Payments
Peterborough City Council,Adults,Independent Sector Placements,Social Services,08/05/2019,8000142562,602.88,Revenue,Redacted Personal Data ,Direct Payments
Peterborough City Council,Adults,Independent Sector Placements,Social Services,08/05/2019,8000142563,3024.48,Revenue,Redacted Personal Data ,Direct Payments
Peterborough City Council,Adults,Independent Sector Placements,Social Services,08/05/2019,8000142564,1141.88,Revenue,Redacted Personal Data ,Direct Payments
Peterborough City Council,Adults,Independent Sector Placements,Social Services,08/05/2019,8000142565,4273.48,Revenue,Redacted Personal Data ,Direct Payments
Peterborough City Council,Adults,Independent Sector Placements,Social Services,08/05/2019,8000142566,1734.92,Revenue,Redacted Personal Data ,Direct Payments
Peterborough City Council,Adults,Independent Sector Placements,Social Services,08/05/2019,8000142567,574.4,Revenue,Redacted Personal Data ,Direct Payments
Peterborough City Council,Adults,Independent Sector Placements,Social Services,08/05/2019,8000142568,5569.12,Revenue,Redacted Personal Data ,Direct Payments
Peterborough City Council,Adults,Independent Sector Placements,Social Services,08/05/2019,8000142569,872.2,Revenue,Redacted Personal Data ,Direct Payments
Peterborough City Council,Adults,Independent Sector Placements,Social Services,08/05/2019,8000142570,2528.24,Revenue,Redacted Personal Data ,Direct Payments
Peterborough City Council,Adults,Independent Sector Placements,Social Services,08/05/2019,8000142571,1818.4,Revenue,Redacted Personal Data ,Direct Payments
Peterborough City Council,Adults,Independent Sector Placements,Social Services,08/05/2019,8000142574,1002.48,Revenue,Redacted Personal Data ,Direct Payments
Peterborough City Council,Adults,Independent Sector Placements,Social Services,08/05/2019,8000142575,677.52,Revenue,Redacted Personal Data ,Direct Payments
Peterborough City Council,Adults,Independent Sector Placements,Social Services,08/05/2019,8000142576,6572.16,Revenue,Redacted Personal Data ,Direct Payments
Peterborough City Council,Adults,Independent Sector Placements,Social Services,08/05/2019,8000142577,606.48,Revenue,Redacted Personal Data ,Direct Payments
Peterborough City Council,Adults,Independent Sector Placements,Social Services,08/05/2019,8000142578,5731.64,Revenue,Redacted Personal Data ,Direct Payments
Peterborough City Council,Adults,Independent Sector Placements,Social Services,08/05/2019,8000142579,2231.13,Revenue,Redacted Personal Data ,Direct Payments
Peterborough City Council,Adults,Independent Sector Placements,Social Services,08/05/2019,8000142580,9174,Revenue,Redacted Personal Data ,Direct Payments
Peterborough City Council,Adults,Independent Sector Placements,Social Services,08/05/2019,8000142581,6481.28,Revenue,Redacted Personal Data ,Direct Payments
Peterborough City Council,Adults,Independent Sector Placements,Social Services,08/05/2019,8000142582,627.48,Revenue,Redacted Personal Data ,Direct Payments
Peterborough City Council,Adults,Independent Sector Placements,Social Services,08/05/2019,8000142583,692.12,Revenue,Redacted Personal Data ,Direct Payments
Peterborough City Council,Adults,Independent Sector Placements,Social Services,08/05/2019,8000142584,1416.48,Revenue,Redacted Personal Data ,Direct Payments
Peterborough City Council,Adults,Independent Sector Placements,Social Services,08/05/2019,8000142586,2330.48,Revenue,Redacted Personal Data ,Direct Payments
Peterborough City Council,Adults,Independent Sector Placements,Social Services,08/05/2019,8000142589,1960,Revenue,Redacted Personal Data ,Direct Payments
Peterborough City Council,Adults,Independent Sector Placements,Social Services,08/05/2019,8000142591,1180.96,Revenue,Redacted Personal Data ,Direct Payments
Peterborough City Council,Adults,Independent Sector Placements,Social Services,08/05/2019,8000142592,1619.36,Revenue,Redacted Personal Data ,Direct Payments
Peterborough City Council,Adults,Independent Sector Placements,Social Services,08/05/2019,8000142593,2154.48,Revenue,Redacted Personal Data ,Direct Payments
Peterborough City Council,Adults,Independent Sector Placements,Social Services,08/05/2019,8000142594,3307.84,Revenue,Redacted Personal Data ,Direct Payments
Peterborough City Council,Adults,Independent Sector Placements,Social Services,08/05/2019,8000142595,3026.88,Revenue,Redacted Personal Data ,Direct Payments
Peterborough City Council,Adults,Independent Sector Placements,Social Services,08/05/2019,8000142596,1432.48,Revenue,Redacted Personal Data ,Direct Payments
Peterborough City Council,Adults,Independent Sector Placements,Social Services,08/05/2019,8000142597,677,Revenue,Redacted Personal Data ,Direct Payments
Peterborough City Council,Adults,Independent Sector Placements,Social Services,08/05/2019,8000142598,540,Revenue,Redacted Personal Data ,Direct Payments
Peterborough City Council,Adults,Independent Sector Placements,Social Services,08/05/2019,8000142599,1542.6,Revenue,Redacted Personal Data ,Direct Payments
Peterborough City Council,Adults,Independent Sector Placements,Social Services,08/05/2019,8000142600,542.88,Revenue,Redacted Personal Data,Direct Payments
Peterborough City Council,Adults,Independent Sector Placements,Social Services,08/05/2019,8000142601,893.38,Revenue,Redacted Personal Data ,Direct Payments
Peterborough City Council,Adults,Independent Sector Placements,Social Services,08/05/2019,8000142602,2847.36,Revenue,Redacted Personal Data ,Direct Payments
Peterborough City Council,Adults,Independent Sector Placements,Social Services,08/05/2019,8000142603,582.24,Revenue,Redacted Personal Data ,Direct Payments
Peterborough City Council,Adults,Independent Sector Placements,Social Services,08/05/2019,8000142604,703.45,Revenue,Redacted Personal Data ,Direct Payments
Peterborough City Council,Adults,Independent Sector Placements,Social Services,08/05/2019,8000142608,963.76,Revenue,Redacted Personal Data ,Direct Payments
Peterborough City Council,Adults,Independent Sector Placements,Social Services,08/05/2019,8000142609,2928.64,Revenue,Redacted Personal Data ,Direct Payments
Peterborough City Council,Adults,Independent Sector Placements,Social Services,08/05/2019,8000142610,558.2,Revenue,Redacted Personal Data ,Direct Payments
Peterborough City Council,Adults,Independent Sector Placements,Social Services,08/05/2019,8000142611,9881.44,Revenue,Redacted Personal Data ,Direct Payments
Peterborough City Council,Adults,Independent Sector Placements,Social Services,08/05/2019,8000142612,1083.16,Revenue,Redacted Personal Data ,Direct Payments
Peterborough City Council,Adults,Independent Sector Placements,Social Services,08/05/2019,8000142613,1830.96,Revenue,Redacted Personal Data ,Direct Payments
Peterborough City Council,Adults,Independent Sector Placements,Social Services,08/05/2019,8000142614,1920.28,Revenue,Redacted Personal Data ,Direct Payments
Peterborough City Council,Adults,Independent Sector Placements,Social Services,08/05/2019,8000142616,1352.24,Revenue,Redacted Personal Data ,Direct Payments
Peterborough City Council,Adults,Independent Sector Placements,Social Services,08/05/2019,8000142617,1295.16,Revenue,Redacted Personal Data ,Direct Payments
Peterborough City Council,Adults,Independent Sector Placements,Social Services,08/05/2019,8000142619,658.88,Revenue,Redacted Personal Data ,Direct Payments
Peterborough City Council,Adults,Independent Sector Placements,Social Services,08/05/2019,8000142620,2482.64,Revenue,Redacted Personal Data ,Direct Payments
Peterborough City Council,Adults,Independent Sector Placements,Social Services,08/05/2019,8000142622,2466.08,Revenue,Redacted Personal Data ,Direct Payments
Peterborough City Council,Adults,Independent Sector Placements,Social Services,08/05/2019,8000142623,888.4,Revenue,Redacted Personal Data ,Direct Payments
Peterborough City Council,Adults,Independent Sector Placements,Social Services,08/05/2019,8000142624,2130.88,Revenue,Redacted Personal Data ,Direct Payments
Peterborough City Council,Adults,Independent Sector Placements,Social Services,08/05/2019,8000142625,2629.68,Revenue,Redacted Personal Data ,Direct Payments
Peterborough City Council,Adults,Independent Sector Placements,Social Services,08/05/2019,8000142626,1434.48,Revenue,Redacted Personal Data ,Direct Payments
Peterborough City Council,Adults,Independent Sector Placements,Social Services,08/05/2019,8000142627,1394.2,Revenue,Redacted Personal Data ,Direct Payments
Peterborough City Council,Adults,Independent Sector Placements,Social Services,08/05/2019,8000142629,2479.8,Revenue,Redacted Personal Data ,Direct Payments
Peterborough City Council,Adults,Independent Sector Placements,Social Services,08/05/2019,8000142631,1449.72,Revenue,Redacted Personal Data ,Direct Payments
Peterborough City Council,Adults,Independent Sector Placements,Social Services,08/05/2019,8000142632,1208.64,Revenue,Redacted Personal Data ,Direct Payments
Peterborough City Council,Adults,Independent Sector Placements,Social Services,08/05/2019,8000142634,1208.64,Revenue,Redacted Personal Data ,Direct Payments
Peterborough City Council,Adults,Independent Sector Placements,Social Services,08/05/2019,8000142636,3834.48,Revenue,Redacted Personal Data ,Direct Payments
Peterborough City Council,Adults,Independent Sector Placements,Social Services,08/05/2019,8000142637,1227.12,Revenue,Redacted Personal Data ,Direct Payments
Peterborough City Council,Adults,Independent Sector Placements,Social Services,08/05/2019,8000142638,744,Revenue,Redacted Personal Data ,Direct Payments
Peterborough City Council,Adults,Independent Sector Placements,Social Services,08/05/2019,8000142639,1053.48,Revenue,Redacted Personal Data ,Direct Payments
Peterborough City Council,Adults,Independent Sector Placements,Social Services,08/05/2019,8000142640,1886.48,Revenue,Redacted Personal Data ,Direct Payments
Peterborough City Council,Adults,Independent Sector Placements,Social Services,08/05/2019,8000142642,522.48,Revenue,Redacted Personal Data ,Direct Payments
Peterborough City Council,Adults,Independent Sector Placements,Social Services,08/05/2019,8000142643,849.28,Revenue,Redacted Personal Data ,Direct Payments
Peterborough City Council,Adults,Independent Sector Placements,Social Services,08/05/2019,8000142644,985.68,Revenue,Redacted Personal Data ,Direct Payments
Peterborough City Council,Adults,Independent Sector Placements,Social Services,08/05/2019,8000142645,1448.92,Revenue,Redacted Personal Data ,Direct Payments
Peterborough City Council,Adults,Independent Sector Placements,Social Services,08/05/2019,8000142646,3358.92,Revenue,Redacted Personal Data ,Direct Payments
Peterborough City Council,Adults,Independent Sector Placements,Social Services,08/05/2019,8000142647,3358.92,Revenue,Redacted Personal Data ,Direct Payments
Peterborough City Council,Adults,Independent Sector Placements,Social Services,08/05/2019,8000142648,4525.4,Revenue,Redacted Personal Data ,Direct Payments
Peterborough City Council,Adults,Independent Sector Placements,Social Services,08/05/2019,8000142649,1307.6,Revenue,Redacted Personal Data ,Direct Payments
Peterborough City Council,Adults,Independent Sector Placements,Social Services,08/05/2019,8000142650,1397.48,Revenue,Redacted Personal Data ,Direct Payments
Peterborough City Council,Adults,Independent Sector Placements,Social Services,08/05/2019,8000142652,720.48,Revenue,Redacted Personal Data ,Direct Payments
Peterborough City Council,Adults,Independent Sector Placements,Social Services,08/05/2019,8000142659,3880.28,Revenue,Redacted Personal Data ,Direct Payments
Peterborough City Council,Adults,Independent Sector Placements,Social Services,08/05/2019,8000142662,895.12,Revenue,Redacted Personal Data ,Direct Payments
Peterborough City Council,Adults,Independent Sector Placements,Social Services,08/05/2019,8000142664,3766,Revenue,Redacted Personal Data ,Direct Payments
Peterborough City Council,Adults,Independent Sector Placements,Social Services,08/05/2019,8000142665,622.32,Revenue,Redacted Personal Data ,Direct Payments
Peterborough City Council,Adults,Independent Sector Placements,Social Services,08/05/2019,8000142666,2508.56,Revenue,Redacted Personal Data ,Direct Payments
Peterborough City Council,Adults,Independent Sector Placements,Social Services,08/05/2019,8000142668,720.8,Revenue,Redacted Personal Data ,Direct Payments
Peterborough City Council,Adults,Independent Sector Placements,Social Services,08/05/2019,8000142670,769.28,Revenue,Redacted Personal Data ,Direct Payments
Peterborough City Council,Adults,Independent Sector Placements,Social Services,08/05/2019,8000142671,2612.96,Revenue,Redacted Personal Data ,Direct Payments
Peterborough City Council,Adults,Independent Sector Placements,Social Services,08/05/2019,8000142672,616.28,Revenue,Redacted Personal Data ,Direct Payments
Peterborough City Council,Adults,Independent Sector Placements,Social Services,08/05/2019,8000142673,978.48,Revenue,Redacted Personal Data ,Direct Payments
Peterborough City Council,Adults,Independent Sector Placements,Social Services,08/05/2019,8000142675,599.32,Revenue,Redacted Personal Data ,Direct Payments
Peterborough City Council,Adults,Independent Sector Placements,Social Services,08/05/2019,8000142677,1002,Revenue,Redacted Personal Data ,Direct Payments
Peterborough City Council,Adults,Independent Sector Placements,Social Services,08/05/2019,8000142678,1897.08,Revenue,Redacted Personal Data ,Direct Payments
Peterborough City Council,Adults,Independent Sector Placements,Social Services,08/05/2019,8000142679,1039.48,Revenue,Redacted Personal Data ,Direct Payments
Peterborough City Council,Adults,Independent Sector Placements,Social Services,08/05/2019,8000142681,9741.6,Revenue,Redacted Personal Data ,Direct Payments
Peterborough City Council,Adults,Independent Sector Placements,Social Services,08/05/2019,8000142682,3746.48,Revenue,Redacted Personal Data ,Direct Payments
Peterborough City Council,Adults,Independent Sector Placements,Social Services,08/05/2019,8000142686,3213.64,Revenue,Redacted Personal Data ,Direct Payments
Peterborough City Council,Adults,Independent Sector Placements,Social Services,08/05/2019,8000142687,1030.92,Revenue,Redacted Personal Data ,Direct Payments
Peterborough City Council,Adults,Independent Sector Placements,Social Services,08/05/2019,8000142689,1629.24,Revenue,Redacted Personal Data ,Direct Payments
Peterborough City Council,Adults,Independent Sector Placements,Social Services,08/05/2019,8000142691,1437,Revenue,Redacted Personal Data ,Direct Payments
Peterborough City Council,Adults,Independent Sector Placements,Social Services,08/05/2019,8000142692,1880,Revenue,Redacted Personal Data ,Direct Payments
Peterborough City Council,Adults,Independent Sector Placements,Social Services,08/05/2019,8000142694,1826.48,Revenue,Redacted Personal Data ,Direct Payments
Peterborough City Council,Adults,Independent Sector Placements,Social Services,08/05/2019,8000142695,827.8,Revenue,Redacted Personal Data ,Direct Payments
Peterborough City Council,Adults,Independent Sector Placements,Social Services,08/05/2019,8000142696,1205.6,Revenue,Redacted Personal Data ,Direct Payments
Peterborough City Council,Adults,Independent Sector Placements,Social Services,08/05/2019,8000142698,1998.32,Revenue,Redacted Personal Data ,Direct Payments
Peterborough City Council,Adults,Independent Sector Placements,Social Services,08/05/2019,8000142700,540,Revenue,Redacted Personal Data ,Direct Payments
Peterborough City Council,Adults,Independent Sector Placements,Social Services,08/05/2019,8000142701,680.88,Revenue,Redacted Personal Data ,Direct Payments
Peterborough City Council,Adults,Independent Sector Placements,Social Services,08/05/2019,8000142702,739.96,Revenue,Redacted Personal Data ,Direct Payments
Peterborough City Council,Adults,Independent Sector Placements,Social Services,08/05/2019,8000142703,8506.44,Revenue,Redacted Personal Data ,Direct Payments
Peterborough City Council,Adults,Independent Sector Placements,Social Services,08/05/2019,8000142705,788.4,Revenue,Redacted Personal Data ,Direct Payments
Peterborough City Council,Education,HTS & CSC Transport,Contract Hire and Operating Leases,08/05/2019,8000142848,964.87,Revenue,Redacted Personal Data ,Hired Transport
Peterborough City Council,Education,HTS & CSC Transport,Contract Hire and Operating Leases,08/05/2019,8000142849,579,Revenue,Redacted Personal Data ,Hired Transport
Peterborough City Council,Education,HTS & CSC Transport,Contract Hire and Operating Leases,08/05/2019,8000142850,970.11,Revenue,Redacted Personal Data ,Hired Transport
Peterborough City Council,Education,HTS & CSC Transport,Contract Hire and Operating Leases,08/05/2019,8000142852,727.12,Revenue,Redacted Personal Data ,Hired Transport
Peterborough City Council,Education,HTS & CSC Transport,Contract Hire and Operating Leases,08/05/2019,8000142853,661.87,Revenue,Redacted Personal Data ,Hired Transport
Peterborough City Council,Education,HTS & CSC Transport,Contract Hire and Operating Leases,08/05/2019,8000142855,1674.91,Revenue,Redacted Personal Data ,Hired Transport
Peterborough City Council,Education,HTS & CSC Transport,Contract Hire and Operating Leases,08/05/2019,8000142859,1208.66,Revenue,Redacted Personal Data ,Hired Transport
Peterborough City Council,Corporate,Corporate,Non Revenue,09/05/2019,8000143924,201000,Capital,HS Lawyers Ltd,Land/Building Acquisition
Peterborough City Council,Communities,Targeted Youth Service,Services,10/05/2019,30224251,1144,Revenue,Family Voice Peterborough,Education Expenses
Peterborough City Council,Adults,Independent Sector Placements,Services,10/05/2019,30224659,3061.8,Revenue,A Quality Care Service Ltd,Home Care
Peterborough City Council,Commissioning and Commercial Operations,Access to Resources & Specialist Commissioning,Services,10/05/2019,30224967,3333.3,Revenue,Fostering Solutions Limited,Boarding Out Fees
Peterborough City Council,Commissioning and Commercial Operations,Access to Resources & Specialist Commissioning,Services,10/05/2019,30224969,3504,Revenue,Fostering Solutions Limited,Boarding Out Fees
Peterborough City Council,Commissioning and Commercial Operations,Access to Resources & Specialist Commissioning,Services,10/05/2019,30224971,3504,Revenue,Fostering Solutions Limited,Boarding Out Fees
Peterborough City Council,Commissioning and Commercial Operations,Access to Resources & Specialist Commissioning,Services,10/05/2019,30224972,3433.8,Revenue,Fostering Solutions Limited,Boarding Out Fees
Peterborough City Council,Commissioning and Commercial Operations,Access to Resources & Specialist Commissioning,Services,10/05/2019,30224973,3427.2,Revenue,Fostering Solutions Limited,Boarding Out Fees
Peterborough City Council,Commissioning and Commercial Operations,Access to Resources & Specialist Commissioning,Services,10/05/2019,30224974,3427.2,Revenue,Fostering Solutions Limited,Boarding Out Fees
Peterborough City Council,Commissioning and Commercial Operations,Access to Resources & Specialist Commissioning,Services,10/05/2019,30224977,3427.2,Revenue,Fostering Solutions Limited,Boarding Out Fees
Peterborough City Council,Commissioning and Commercial Operations,Access to Resources & Specialist Commissioning,Services,10/05/2019,30224978,3504,Revenue,Fostering Solutions Limited,Boarding Out Fees
Peterborough City Council,Commissioning and Commercial Operations,Access to Resources & Specialist Commissioning,Services,10/05/2019,30224979,3433.8,Revenue,Fostering Solutions Limited,Boarding Out Fees
Peterborough City Council,Commissioning and Commercial Operations,Access to Resources & Specialist Commissioning,Services,10/05/2019,30224980,2768.49,Revenue,Fostering Solutions Limited,Boarding Out Fees
Peterborough City Council,Commissioning and Commercial Operations,Access to Resources & Specialist Commissioning,Services,10/05/2019,30224981,5815.8,Revenue,Fostering Solutions Limited,Boarding Out Fees
Peterborough City Council,Commissioning and Commercial Operations,Access to Resources & Specialist Commissioning,Services,10/05/2019,30224983,3504,Revenue,Fostering Solutions Limited,Boarding Out Fees
Peterborough City Council,Commissioning and Commercial Operations,Access to Resources & Specialist Commissioning,Services,10/05/2019,30225030,3882.56,Revenue,Fostering Solutions Limited,Boarding Out Fees
Peterborough City Council,Commissioning and Commercial Operations,Access to Resources & Specialist Commissioning,Services,10/05/2019,30225033,3441.3,Revenue,Foster Care Associates Ltd FCA,Boarding Out Fees
Peterborough City Council,Commissioning and Commercial Operations,Access to Resources & Specialist Commissioning,Services,10/05/2019,30225034,3441,Revenue,Foster Care Associates Ltd FCA,Boarding Out Fees
Peterborough City Council,Commissioning and Commercial Operations,Access to Resources & Specialist Commissioning,Services,10/05/2019,30225035,2952.64,Revenue,Foster Care Associates Ltd FCA,Boarding Out Fees
Peterborough City Council,Commissioning and Commercial Operations,Access to Resources & Specialist Commissioning,Services,10/05/2019,30225036,3441.3,Revenue,Foster Care Associates Ltd FCA,Boarding Out Fees
Peterborough City Council,Commissioning and Commercial Operations,Access to Resources & Specialist Commissioning,Services,10/05/2019,30225037,4239,Revenue,Foster Care Associates Ltd FCA,Boarding Out Fees
Peterborough City Council,Commissioning and Commercial Operations,Access to Resources & Specialist Commissioning,Services,10/05/2019,30225038,3012.9,Revenue,Foster Care Associates Ltd FCA,Boarding Out Fees
Peterborough City Council,Commissioning and Commercial Operations,Access to Resources & Specialist Commissioning,Services,10/05/2019,30225039,3509.7,Revenue,Foster Care Associates Ltd FCA,Boarding Out Fees
Peterborough City Council,Commissioning and Commercial Operations,Access to Resources & Specialist Commissioning,Services,10/05/2019,30225041,2952.64,Revenue,Foster Care Associates Ltd FCA,Boarding Out Fees
Peterborough City Council,Adults,Independent Sector Placements,Services,10/05/2019,30225215,920.44,Revenue,Craegmoor Conquest Lodge Priory,Residential Care
Peterborough City Council,Adults,Independent Sector Placements,Services,10/05/2019,30225216,4531.4,Revenue,Craegmoor Conquest Lodge Priory,Residential Care
Peterborough City Council,Adults,Independent Sector Placements,Services,10/05/2019,30225217,3121.2,Revenue,Craegmoor Conquest Lodge Priory,Residential Care
Peterborough City Council,Adults,Independent Sector Placements,Services,10/05/2019,30225220,3018.92,Revenue,Craegmoor Conquest Lodge Priory,Residential Care
Peterborough City Council,Adults,Independent Sector Placements,Services,10/05/2019,30225221,4756,Revenue,Craegmoor Conquest Lodge Priory,Residential Care
Peterborough City Council,Adults,Independent Sector Placements,Services,10/05/2019,30225223,4448.44,Revenue,Craegmoor Conquest Lodge Priory,Residential Care
Peterborough City Council,Adults,Independent Sector Placements,Services,10/05/2019,30225231,649.7,Revenue,Merit Home Care Ltd,Home Care
Peterborough City Council,Adults,Independent Sector Placements,Services,10/05/2019,30225268,777.75,Revenue,Caring Crew Ltd,Home Care
Peterborough City Council,Adults,Independent Sector Placements,Services,10/05/2019,30225336,1169.28,Revenue,ABBEY COURT PRIORY,Residential Care
Peterborough City Council,Adults,Independent Sector Placements,Services,10/05/2019,30225353,5613.49,Revenue,The Bancroft Residential Home Limited,Residential Care
Peterborough City Council,Marketing & Communications,Marketing & Communications,Services,10/05/2019,30225439,635,Revenue,Fisherprint Ltd,Printing
Peterborough City Council,Marketing & Communications,Marketing & Communications,Services,10/05/2019,30225440,658,Revenue,Fisherprint Ltd,Printing
Peterborough City Council,Education,PFI,Services,10/05/2019,30225444,3767.62,Revenue,IIC by Education (P'boro) Ltd,Service Charge
Peterborough City Council,Education,PFI,Services,10/05/2019,30225445,28259.4,Revenue,IIC by Education (P'boro) Ltd,Service Charge
Peterborough City Council,Commissioning and Commercial Operations,Access to Resources & Specialist Commissioning,Services,10/05/2019,30225448,1980,Revenue,Florinee Homes Ltd,Boarding Out Fees
Peterborough City Council,Commissioning and Commercial Operations,Access to Resources & Specialist Commissioning,Services,10/05/2019,30225449,1980,Revenue,Florinee Homes Ltd,Boarding Out Fees
Peterborough City Council,Communities,Housing,Services,10/05/2019,30225455,8747.66,Revenue,DA Rosalia Hotel,Temporary Accommodation Costs
Peterborough City Council,Peterborough Highway Services,Network and Traffic Management,Services,10/05/2019,30225468,4214.06,Revenue,Dynniq UK Ltd,Infrastructure Maintenance
Peterborough City Council,Adults,Block Contracts,Third Party Payments,10/05/2019,30225523,5826.24,Revenue,Axiom Housing Association Ltd,Third Party Payments - Contract
Peterborough City Council,Adults,Block Contracts,Third Party Payments,10/05/2019,30225524,5826.24,Revenue,Axiom Housing Association Ltd,Third Party Payments - Contract
Peterborough City Council,Adults,Block Contracts,Third Party Payments,10/05/2019,30225525,5826.24,Revenue,Axiom Housing Association Ltd,Third Party Payments - Contract
Peterborough City Council,Adults,Block Contracts,Third Party Payments,10/05/2019,30225526,2056.32,Revenue,Axiom Housing Association Ltd,Third Party Payments - Contract
Peterborough City Council,Adults,Block Contracts,Third Party Payments,10/05/2019,30225527,2056.32,Revenue,Axiom Housing Association Ltd,Third Party Payments - Contract
Peterborough City Council,Adults,Block Contracts,Third Party Payments,10/05/2019,30225528,2056.32,Revenue,Axiom Housing Association Ltd,Third Party Payments - Contract
Peterborough City Council,Adults,Independent Sector Placements,Services,10/05/2019,30225535,1269.48,Revenue,Goldcare Homes t/a The Tudors Care Home,Residential Care
Peterborough City Council,Adults,Independent Sector Placements,Services,10/05/2019,30225536,1701.72,Revenue,Goldcare Homes t/a The Tudors Care Home,Residential Care
Peterborough City Council,Commissioning and Commercial Operations,Access to Resources & Specialist Commissioning,Services,10/05/2019,30225544,780.01,Revenue,Swiis Foster Care Ltd,Boarding Out Fees
Peterborough City Council,Commissioning and Commercial Operations,Access to Resources & Specialist Commissioning,Services,10/05/2019,30225547,5528.57,Revenue,Fostering Innovations Ltd,Boarding Out Fees
Peterborough City Council,Commissioning and Commercial Operations,Access to Resources & Specialist Commissioning,Services,10/05/2019,30225548,3381.43,Revenue,Fostering Innovations Ltd,Boarding Out Fees
Peterborough City Council,City Centre Management,"Markets, Tourism & Events",Services,10/05/2019,30225568,6350,Revenue,Perfect Motion,Administration Expenses
Peterborough City Council,Commissioning and Commercial Operations,Access to Resources & Specialist Commissioning,Services,10/05/2019,30225576,3858,Revenue,Next Step Fostering Services Limited,Boarding Out Fees
Peterborough City Council,Education,PFI,Services,10/05/2019,30225581,19936.8,Revenue,IIC by Education (P'boro) Ltd,Service Charge
Peterborough City Council,"Cemeteries, Cremation & Registrars",Bereavement Service,"Tools, Equipment, Furniture & Materials",10/05/2019,30225602,536.1,Revenue,Scribes Ltd,Memorials
Peterborough City Council,Marketing & Communications,Marketing & Communications,"Tools, Equipment, Furniture & Materials",10/05/2019,30225618,1003.5,Revenue,Prestige Giftware Ltd,Materials
Peterborough City Council,ICT,ICT,Services,10/05/2019,30225623,1487.5,Revenue,Omnico Group UK Limited,Consultants Fees
Peterborough City Council,Peterborough Highway Services,Highway & Drainage Control,"Tools, Equipment, Furniture & Materials",10/05/2019,30225627,875,Revenue,Verdant Fields Limited,Materials
Peterborough City Council,Commissioning and Commercial Operations,Access to Resources & Specialist Commissioning,Services,10/05/2019,30225633,1980,Revenue,Florinee Homes Ltd,Boarding Out Fees
Peterborough City Council,Commissioning and Commercial Operations,Access to Resources & Specialist Commissioning,Services,10/05/2019,30225733,2952.64,Revenue,Foster Care Associates Ltd FCA,Boarding Out Fees
Peterborough City Council,Commissioning and Commercial Operations,Access to Resources & Specialist Commissioning,Services,10/05/2019,30225734,4111.83,Revenue,Foster Care Associates Ltd FCA,Boarding Out Fees
Peterborough City Council,Commissioning and Commercial Operations,Access to Resources & Specialist Commissioning,Services,10/05/2019,30225736,2952.64,Revenue,Foster Care Associates Ltd FCA,Boarding Out Fees
Peterborough City Council,Commissioning and Commercial Operations,Access to Resources & Specialist Commissioning,Services,10/05/2019,30225737,4154.22,Revenue,Foster Care Associates Ltd FCA,Boarding Out Fees
Peterborough City Council,Commissioning and Commercial Operations,Access to Resources & Specialist Commissioning,Services,10/05/2019,30225738,3099,Revenue,Foster Care Associates Ltd FCA,Boarding Out Fees
Peterborough City Council,Commissioning and Commercial Operations,Access to Resources & Specialist Commissioning,Services,10/05/2019,30225739,3195,Revenue,Foster Care Associates Ltd FCA,Boarding Out Fees
Peterborough City Council,Westcombe Engineering,Westcombe Engineering,"Tools, Equipment, Furniture & Materials",10/05/2019,30225916,925.92,Revenue,Barron Clark Castings Ltd,Materials
Peterborough City Council,Peterborough Serco Strategic Partnership,PSSP Retained Services,Services,10/05/2019,30225955,2363.37,Revenue,Whistl UK Ltd,Postage
Peterborough City Council,Adults,Independent Sector Placements,Services,10/05/2019,30226026,1842.45,Revenue,Atlas Care Services Ltd,Home Care
Peterborough City Council,Adults,Independent Sector Placements,Services,10/05/2019,30226027,1495.97,Revenue,Atlas Care Services Ltd,Home Care
Peterborough City Council,Adults,Independent Sector Placements,Services,10/05/2019,30226028,643.97,Revenue,Atlas Care Services Ltd,Home Care
Peterborough City Council,Adults,Independent Sector Placements,Services,10/05/2019,30226029,1610.99,Revenue,Atlas Care Services Ltd,Home Care
Peterborough City Council,Adults,Independent Sector Placements,Services,10/05/2019,30226111,511.9,Revenue,Anchor Homes,Residential Care
Peterborough City Council,Communities,Housing,Services,10/05/2019,30226150,9164.19,Revenue,Eastfield Guesthouse,Temporary Accommodation Costs
Peterborough City Council,Communities,Housing,Services,10/05/2019,30226152,12711.24,Revenue,Eastfield Guesthouse,Temporary Accommodation Costs
Peterborough City Council,Adults,Mental Capacity Act & DoLs,Services,10/05/2019,30226173,764,Revenue,Raj Medical Consultancy Limited,Hired Services
Peterborough City Council,Commissioning and Commercial Operations,Access to Resources & Specialist Commissioning,Services,10/05/2019,30226255,3882.56,Revenue,Fostering Solutions Limited,Boarding Out Fees
Peterborough City Council,Commissioning and Commercial Operations,Access to Resources & Specialist Commissioning,Services,10/05/2019,30226258,780.01,Revenue,Swiis Foster Care Ltd,Boarding Out Fees
Peterborough City Council,Adults,Independent Sector Placements,Services,10/05/2019,30226312,3767.2,Revenue,Community Care Solutions Ltd,Residential Care
Peterborough City Council,Adults,Independent Sector Placements,Services,10/05/2019,30226313,3784,Revenue,Community Care Solutions Ltd,Residential Care
Peterborough City Council,Adults,Independent Sector Placements,Services,10/05/2019,30226314,3767.2,Revenue,Community Care Solutions Ltd,Residential Care
Peterborough City Council,Adults,Independent Sector Placements,Services,10/05/2019,30226315,3767.2,Revenue,Community Care Solutions Ltd,Residential Care
Peterborough City Council,Adults,Independent Sector Placements,Services,10/05/2019,30226316,3767.2,Revenue,Community Care Solutions Ltd,Residential Care
Peterborough City Council,Adults,Independent Sector Placements,Services,10/05/2019,30226317,5600,Revenue,Community Care Solutions Ltd,Residential Care
Peterborough City Council,Adults,Independent Sector Placements,Services,10/05/2019,30226318,8049.72,Revenue,Community Care Solutions Ltd,Residential Care
Peterborough City Council,Communities,Cohesion,Services,10/05/2019,30226457,2740.83,Revenue,Solutions 4 Health Ltd,Hired Services
Peterborough City Council,Adults,Finance,Third Party Payments,10/05/2019,30226621,1350,Revenue,Cross Keys Homes,Third Party Payments - Contract
Peterborough City Council,HR,HR WFD & Training,Services,10/05/2019,30226643,1800,Revenue,Pat Curtis,Training
Peterborough City Council,Adults,Other Services,Third Party Payments,10/05/2019,30226681,10416,Revenue,P'Boro Council For Voluntary Srvs (PCVS),Third Party Payments - Contract
Peterborough City Council,Programme Management Office,Programme Management Office,Agency Staff,10/05/2019,30226722,4782.82,Revenue,Reed Specialist Recruitment Limited,External Temporary Staff
Peterborough City Council,Programme Management Office,Programme Management Office,Agency Staff,10/05/2019,30226731,3826.25,Revenue,Reed Specialist Recruitment Limited,External Temporary Staff
Peterborough City Council,Programme Management Office,Programme Management Office,Agency Staff,10/05/2019,30226733,3826.25,Revenue,Reed Specialist Recruitment Limited,External Temporary Staff
Peterborough City Council,Commissioning and Commercial Operations,Commissioning Team,Agency Staff,10/05/2019,30226743,1794.88,Revenue,Reed Specialist Recruitment Limited,External Temporary Staff
Peterborough City Council,Children's & Safeguarding,Early Help ASC/CSC,Agency Staff,10/05/2019,30226825,582.52,Revenue,Reed Specialist Recruitment Limited,External Temporary Staff
Peterborough City Council,Regulatory Services,Regulatory Services,Agency Staff,10/05/2019,30226840,1356.84,Revenue,Reed Specialist Recruitment Limited,External Temporary Staff
Peterborough City Council,ICT,ICT,Agency Staff,10/05/2019,30226841,1814.88,Revenue,Reed Specialist Recruitment Limited,External Temporary Staff
Peterborough City Council,Communities,Performance & Information,Agency Staff,10/05/2019,30226842,1017.28,Revenue,Reed Specialist Recruitment Limited,External Temporary Staff
Peterborough City Council,Adults,Strategic Commissioning - Management,Agency Staff,10/05/2019,30226848,1181.44,Revenue,Reed Specialist Recruitment Limited,External Temporary Staff
Peterborough City Council,Development and Construction,Building Control,Agency Staff,10/05/2019,30226849,1075.05,Revenue,Reed Specialist Recruitment Limited,External Temporary Staff
Peterborough City Council,Commissioning and Commercial Operations,Commissioning Team,Agency Staff,10/05/2019,30226854,653.06,Revenue,Reed Specialist Recruitment Limited,External Temporary Staff
Peterborough City Council,Adults,Independent Sector Placements,Services,10/05/2019,30226855,1434.69,Revenue,Merit Home Care Ltd,Home Care
Peterborough City Council,Adults,Independent Sector Placements,Services,10/05/2019,30226862,769,Revenue,Merit Home Care Ltd,Home Care
Peterborough City Council,"Director, OP & JV",Growth HoS,Third Party Payments,10/05/2019,30227070,870155.49,Revenue & Capital,Skanska Construction UK Ltd,Third Party Payments - Contract
Peterborough City Council,Communities,Housing,Services,10/05/2019,30227139,1000,Revenue,Redacted Personal Data,Financial Assistance
Peterborough City Council,Commissioning and Commercial Operations,Access to Resources & Specialist Commissioning,Services,10/05/2019,30227147,668.17,Revenue,Key2 Futures Limited,Boarding Out Fees
Peterborough City Council,Adults,Block Contracts,Third Party Payments,10/05/2019,30227152,4836.07,Revenue,ABOUT ME CARE AND SUPPORT LTD,Third Party Payments - Contract
Peterborough City Council,ICT,ICT,Services,10/05/2019,30227166,4359.22,Revenue,Amazon Web Services Inc.,Computer Software
Peterborough City Council,Development and Construction,Development Management,Agency Staff,10/05/2019,30227169,939.18,Revenue,Reed Specialist Recruitment Limited,External Temporary Staff
Peterborough City Council,Adults,Community Team,Agency Staff,10/05/2019,30227180,1221,Revenue,HCL Social Care Ltd,External Temporary Staff
Peterborough City Council,Corporate,Corporate,Non Revenue,10/05/2019,30227189,3906.51,Capital,P F S Builders & Contractors,Grant Payment
Peterborough City Council,Corporate,Corporate,Non Revenue,10/05/2019,30227199,7178.47,Capital,Sovereign Property Services Ltd,Grant Payment
Peterborough City Council,Adults,Independent Sector Placements,Services,10/05/2019,30227215,546.9,Revenue,MEARS GROUP,Home Care
Peterborough City Council,Corporate,Corporate,Non Revenue,10/05/2019,30227260,365379.23,Capital,Kier Construction Ltd,Building And Site Works
Peterborough City Council,Adults,Independent Sector Placements,Services,10/05/2019,30227266,1214.92,Revenue,Caring Crew Ltd,Home Care
Peterborough City Council,Public Health,PH Commissioning,Third Party Payments,10/05/2019,30227267,5395.98,Revenue,Boroughbury Medical Centre,Third Party Payments - Contract
Peterborough City Council,Public Health,PH Commissioning,Third Party Payments,10/05/2019,30227277,15008.82,Revenue,Thorney Medical Practice,Third Party Payments - Contract
Peterborough City Council,Adults,Independent Sector Placements,Services,10/05/2019,30227279,554.38,Revenue,Better Healthcare Services,Home Care
Peterborough City Council,Adults,Independent Sector Placements,Services,10/05/2019,30227280,1690.44,Revenue,Better Healthcare Services,Home Care
Peterborough City Council,Adults,Independent Sector Placements,Services,10/05/2019,30227281,1238.8,Revenue,Better Healthcare Services,Home Care
Peterborough City Council,Adults,Independent Sector Placements,Services,10/05/2019,30227282,600.4,Revenue,Better Healthcare Services,Home Care
Peterborough City Council,Adults,Independent Sector Placements,Services,10/05/2019,30227284,1451.1,Revenue,Better Healthcare Services,Home Care
Peterborough City Council,Westcombe Engineering,Westcombe Engineering,Services,10/05/2019,30227295,1603,Revenue,Data Interchange,Hired Services
Peterborough City Council,Public Health,PH Commissioning,Third Party Payments,10/05/2019,30227300,4205.5,Revenue,Boroughbury Medical Centre,Third Party Payments - Contract
Peterborough City Council,Public Health,PH Commissioning,Third Party Payments,10/05/2019,30227301,1518,Revenue,Central Medical Centre,Third Party Payments - Contract
Peterborough City Council,Public Health,PH Commissioning,Third Party Payments,10/05/2019,30227309,2997.5,Revenue,Paston Health Centre,Third Party Payments - Contract
Peterborough City Council,Public Health,PH Commissioning,Third Party Payments,10/05/2019,30227310,4449,Revenue,Thorney Medical Practice,Third Party Payments - Contract
Peterborough City Council,Public Health,PH Commissioning,Third Party Payments,10/05/2019,30227314,2806,Revenue,Old Fletton Surgery,Third Party Payments - Contract
Peterborough City Council,Commissioning and Commercial Operations,Access to Resources & Specialist Commissioning,Services,10/05/2019,30227322,16900,Revenue,Horizon Care & Education Group,Boarding Out Fees
Peterborough City Council,Legal Services,Legal Services,Services,10/05/2019,30227334,7442.6,Revenue,Psychology Clinic of East Anglia,Expert Witnesses
Peterborough City Council,Education,HTS & CSC Transport,Contract Hire and Operating Leases,10/05/2019,30227340,630,Revenue,Cambridgeshire County Council,Hired Transport
Peterborough City Council,"Waste, Cleansing and Open Spaces",Waste Management,Services,10/05/2019,30227346,353289.82,Revenue,Viridor Peterborough Ltd,Waste Disposal
Peterborough City Council,Education,Special Educational Needs / Inclusion,Services,10/05/2019,30227363,596.07,Revenue,Children's Therapy Solutions Ltd,Occupational Health
Peterborough City Council,Education,Special Educational Needs / Inclusion,Services,10/05/2019,30227364,653.57,Revenue,Children's Therapy Solutions Ltd,Occupational Health
Peterborough City Council,Education,Special Educational Needs / Inclusion,Services,10/05/2019,30227365,521.24,Revenue,Children's Therapy Solutions Ltd,Occupational Health
Peterborough City Council,Adults,Strategic Commissioning - Management,Agency Staff,10/05/2019,30227395,528.91,Revenue,Reed Specialist Recruitment Limited,External Temporary Staff
Peterborough City Council,Children's & Safeguarding,Children's Social Care,Agency Staff,10/05/2019,30227396,1333.68,Revenue,Reed Specialist Recruitment Limited,External Temporary Staff
Peterborough City Council,Commissioning and Commercial Operations,Commissioning Team,Agency Staff,10/05/2019,30227398,653.06,Revenue,Reed Specialist Recruitment Limited,External Temporary Staff
Peterborough City Council,Education,HTS & CSC Transport,Contract Hire and Operating Leases,10/05/2019,30227407,504,Revenue,Blueline Taxi,Hired Transport
Peterborough City Council,Adults,Therapy/Reablement/Community Equipment,"Tools, Equipment, Furniture & Materials",10/05/2019,30227409,780.36,Revenue,Action on Hearing Loss (Equipment),Occupational Therapy Equipment
Peterborough City Council,Public Health,PH Commissioning,Third Party Payments,10/05/2019,30227451,514.63,Revenue,Botolph Bridge Pharmacy,Third Party Payments - Contract
Peterborough City Council,Public Health,PH Commissioning,Third Party Payments,10/05/2019,30227452,1137.36,Revenue,Lloyds Pharmacy,Third Party Payments - Contract
Peterborough City Council,Education,Early Years & Quality Improvement,Services,10/05/2019,30227455,615,Revenue,Brookside Playgroup,Grant Payment
Peterborough City Council,Education,Early Years & Quality Improvement,Services,10/05/2019,30227456,615,Revenue,Belsize Day Nursery,Grant Payment
Peterborough City Council,Education,Early Years & Quality Improvement,Services,10/05/2019,30227458,1573,Revenue,Anna-Ca-Soo Day Nursery,Grant Payment
Peterborough City Council,Education,Early Years & Quality Improvement,Services,10/05/2019,30227461,2535,Revenue,Beeches Pre-School,Grant Payment
Peterborough City Council,Education,Early Years & Quality Improvement,Services,10/05/2019,30227463,5070,Revenue,Little Tigers Day Nursery,Grant Payment
Peterborough City Council,Education,Early Years & Quality Improvement,Services,10/05/2019,30227465,845,Revenue,Family Action,Grant Payment
Peterborough City Council,Education,Early Years & Quality Improvement,Services,10/05/2019,30227467,2197,Revenue,Bright Star's day Nursery,Grant Payment
Peterborough City Council,Education,Early Years & Quality Improvement,Services,10/05/2019,30227468,1056.25,Revenue,Bretton Community Pre-School,Grant Payment
Peterborough City Council,Education,Early Years & Quality Improvement,Services,10/05/2019,30227471,3591.25,Revenue,Acorn Academy Day Nursery Ltd,Grant Payment
Peterborough City Council,Education,Early Years & Quality Improvement,Services,10/05/2019,30227493,615,Revenue,Longthorpe Playgroup,Grant Payment
Peterborough City Council,Westcombe Engineering,Westcombe Engineering,"Tools, Equipment, Furniture & Materials",10/05/2019,30227496,10317.38,Revenue,BWC Aluminium Ltd,Materials
Peterborough City Council,Children's & Safeguarding,External Education Placements,Services,10/05/2019,30227504,1093.33,Revenue,Stamford Endowed Schools,Out Of Area Education Costs
Peterborough City Council,Communities,Cultural Services,Services,10/05/2019,30227575,990,Revenue,Thomas Deacon Academy,Hired Services
Peterborough City Council,Adults,Independent Sector Placements,Services,10/05/2019,8000141478,518.3,Revenue,Merit Home Care Ltd,Home Care
Peterborough City Council,Adults,Independent Sector Placements,Services,10/05/2019,8000141481,978.2,Revenue,Merit Home Care Ltd,Home Care
Peterborough City Council,Adults,Independent Sector Placements,Services,10/05/2019,8000141482,2044,Revenue,Merit Home Care Ltd,Home Care
Peterborough City Council,Adults,Independent Sector Placements,Services,10/05/2019,8000141484,730,Revenue,Merit Home Care Ltd,Home Care
Peterborough City Council,Adults,Independent Sector Placements,Services,10/05/2019,8000141487,1430.8,Revenue,Merit Home Care Ltd,Home Care
Peterborough City Council,Adults,Independent Sector Placements,Services,10/05/2019,8000141494,1019.81,Revenue,Merit Home Care Ltd,Home Care
Peterborough City Council,Adults,Independent Sector Placements,Services,10/05/2019,8000141495,927.1,Revenue,Merit Home Care Ltd,Home Care
Peterborough City Council,Adults,Independent Sector Placements,Services,10/05/2019,8000141496,919.8,Revenue,Merit Home Care Ltd,Home Care
Peterborough City Council,Adults,Independent Sector Placements,Services,10/05/2019,8000141499,609.55,Revenue,Merit Home Care Ltd,Home Care
Peterborough City Council,Adults,Independent Sector Placements,Services,10/05/2019,8000141500,1022,Revenue,Merit Home Care Ltd,Home Care
Peterborough City Council,Adults,Independent Sector Placements,Services,10/05/2019,8000141502,759.2,Revenue,Merit Home Care Ltd,Home Care
Peterborough City Council,Adults,Independent Sector Placements,Services,10/05/2019,8000141508,2570.96,Revenue,Merit Home Care Ltd,Home Care
Peterborough City Council,Adults,Independent Sector Placements,Services,10/05/2019,8000141510,600.63,Revenue,Merit Home Care Ltd,Home Care
Peterborough City Council,Adults,Independent Sector Placements,Services,10/05/2019,8000141514,642.6,Revenue,Merit Home Care Ltd,Home Care
Peterborough City Council,Adults,Independent Sector Placements,Services,10/05/2019,8000141519,3404.8,Revenue,Merit Home Care Ltd,Home Care
Peterborough City Council,Adults,Independent Sector Placements,Services,10/05/2019,8000141520,1430.8,Revenue,Merit Home Care Ltd,Home Care
Peterborough City Council,Adults,Independent Sector Placements,Services,10/05/2019,8000141523,642.6,Revenue,Merit Home Care Ltd,Home Care
Peterborough City Council,Adults,Independent Sector Placements,Services,10/05/2019,8000141527,975.54,Revenue,Merit Home Care Ltd,Home Care
Peterborough City Council,Adults,Independent Sector Placements,Services,10/05/2019,8000141547,640.5,Revenue,Caring Crew Ltd,Home Care
Peterborough City Council,Adults,Independent Sector Placements,Services,10/05/2019,8000141548,1560.58,Revenue,Caring Crew Ltd,Home Care
Peterborough City Council,Adults,Independent Sector Placements,Services,10/05/2019,8000141550,1189.5,Revenue,Caring Crew Ltd,Home Care
Peterborough City Council,Adults,Independent Sector Placements,Services,10/05/2019,8000141552,854,Revenue,Caring Crew Ltd,Home Care
Peterborough City Council,Adults,Independent Sector Placements,Services,10/05/2019,8000141553,732,Revenue,Caring Crew Ltd,Home Care
Peterborough City Council,Adults,Independent Sector Placements,Services,10/05/2019,8000141554,2391.96,Revenue,Caring Crew Ltd,Home Care
Peterborough City Council,Adults,Independent Sector Placements,Services,10/05/2019,8000141555,558.4,Revenue,Caring Crew Ltd,Home Care
Peterborough City Council,Adults,Independent Sector Placements,Services,10/05/2019,8000141556,1220,Revenue,Caring Crew Ltd,Home Care
Peterborough City Council,Adults,Independent Sector Placements,Services,10/05/2019,8000141558,4270,Revenue,Caring Crew Ltd,Home Care
Peterborough City Council,Adults,Independent Sector Placements,Services,10/05/2019,8000141560,2360.7,Revenue,Caring Crew Ltd,Home Care
Peterborough City Council,Adults,Independent Sector Placements,Services,10/05/2019,8000141561,966.34,Revenue,Caring Crew Ltd,Home Care
Peterborough City Council,Adults,Independent Sector Placements,Services,10/05/2019,8000141565,640.5,Revenue,Caring Crew Ltd,Home Care
Peterborough City Council,Adults,Independent Sector Placements,Services,10/05/2019,8000141567,581.28,Revenue,Caring Crew Ltd,Home Care
Peterborough City Council,Adults,Independent Sector Placements,Services,10/05/2019,8000141569,777.75,Revenue,Caring Crew Ltd,Home Care
Peterborough City Council,Adults,Independent Sector Placements,Services,10/05/2019,8000141572,2167.28,Revenue,Caring Crew Ltd,Home Care
Peterborough City Council,Adults,Independent Sector Placements,Services,10/05/2019,8000141573,2422.21,Revenue,Caring Crew Ltd,Home Care
Peterborough City Council,Adults,Independent Sector Placements,Services,10/05/2019,8000141574,1290.15,Revenue,Caring Crew Ltd,Home Care
Peterborough City Council,Adults,Independent Sector Placements,Services,10/05/2019,8000141576,2989,Revenue,Caring Crew Ltd,Home Care
Peterborough City Council,Adults,Independent Sector Placements,Services,10/05/2019,8000141577,640.5,Revenue,Caring Crew Ltd,Home Care
Peterborough City Council,Adults,Independent Sector Placements,Services,10/05/2019,8000141578,533.75,Revenue,Caring Crew Ltd,Home Care
Peterborough City Council,Adults,Independent Sector Placements,Services,10/05/2019,8000141579,710.4,Revenue,Caring Crew Ltd,Home Care
Peterborough City Council,Adults,Independent Sector Placements,Services,10/05/2019,8000141580,8645,Revenue,Caring Crew Ltd,Home Care
Peterborough City Council,Adults,Independent Sector Placements,Services,10/05/2019,8000141582,610,Revenue,Caring Crew Ltd,Home Care
Peterborough City Council,Adults,Independent Sector Placements,Services,10/05/2019,8000141639,1018.45,Revenue,Caring Crew Ltd,Home Care
Peterborough City Council,Adults,Independent Sector Placements,Services,10/05/2019,8000141640,960.75,Revenue,Caring Crew Ltd,Home Care
Peterborough City Council,Adults,Independent Sector Placements,Services,10/05/2019,8000141644,1430.2,Revenue,Caring Crew Ltd,Home Care
Peterborough City Council,Adults,Independent Sector Placements,Services,10/05/2019,8000141694,8519.15,Revenue,CambridgeshireHome Care,Home Care
Peterborough City Council,Adults,Independent Sector Placements,Services,10/05/2019,8000141946,18018,Revenue,Atlas Care Services Ltd,Home Care
Peterborough City Council,Adults,Independent Sector Placements,Services,10/05/2019,8000141949,1111.39,Revenue,Atlas Care Services Ltd,Home Care
Peterborough City Council,Adults,Independent Sector Placements,Services,10/05/2019,8000141953,1765.53,Revenue,Atlas Care Services Ltd,Home Care
Peterborough City Council,Adults,Independent Sector Placements,Services,10/05/2019,8000141954,771.06,Revenue,Atlas Care Services Ltd,Home Care
Peterborough City Council,Adults,Independent Sector Placements,Services,10/05/2019,8000141956,1937.35,Revenue,Atlas Care Services Ltd,Home Care
Peterborough City Council,Adults,Independent Sector Placements,Services,10/05/2019,8000141957,571.08,Revenue,Atlas Care Services Ltd,Home Care
Peterborough City Council,Adults,Independent Sector Placements,Services,10/05/2019,8000141958,2555.53,Revenue,Atlas Care Services Ltd,Home Care
Peterborough City Council,Adults,Independent Sector Placements,Services,10/05/2019,8000141959,596.64,Revenue,Atlas Care Services Ltd,Home Care
Peterborough City Council,Adults,Independent Sector Placements,Services,10/05/2019,8000141960,549.54,Revenue,Atlas Care Services Ltd,Home Care
Peterborough City Council,Adults,Independent Sector Placements,Services,10/05/2019,8000141962,662.67,Revenue,Atlas Care Services Ltd,Home Care
Peterborough City Council,Adults,Independent Sector Placements,Services,10/05/2019,8000141964,806.56,Revenue,Atlas Care Services Ltd,Home Care
Peterborough City Council,Adults,Independent Sector Placements,Services,10/05/2019,8000141967,1008.44,Revenue,Atlas Care Services Ltd,Home Care
Peterborough City Council,Adults,Independent Sector Placements,Services,10/05/2019,8000141968,1767.66,Revenue,Atlas Care Services Ltd,Home Care
Peterborough City Council,Adults,Independent Sector Placements,Services,10/05/2019,8000141970,920.87,Revenue,Atlas Care Services Ltd,Home Care
Peterborough City Council,Adults,Independent Sector Placements,Services,10/05/2019,8000141981,557.07,Revenue,Atlas Care Services Ltd,Home Care
Peterborough City Council,Adults,Independent Sector Placements,Services,10/05/2019,8000141985,1367.95,Revenue,Atlas Care Services Ltd,Home Care
Peterborough City Council,Adults,Independent Sector Placements,Services,10/05/2019,8000142031,598.6,Revenue,Merit Home Care Ltd,Home Care
Peterborough City Council,Adults,Independent Sector Placements,Services,10/05/2019,8000142134,850.11,Revenue,Atlas Care Services Ltd,Home Care
Peterborough City Council,Adults,Independent Sector Placements,Services,10/05/2019,8000142137,1301.19,Revenue,Atlas Care Services Ltd,Home Care
Peterborough City Council,Adults,Independent Sector Placements,Services,10/05/2019,8000142138,751.18,Revenue,Atlas Care Services Ltd,Home Care
Peterborough City Council,Adults,Independent Sector Placements,Services,10/05/2019,8000142139,784.08,Revenue,Atlas Care Services Ltd,Home Care
Peterborough City Council,Adults,Independent Sector Placements,Services,10/05/2019,8000142140,652.37,Revenue,Atlas Care Services Ltd,Home Care
Peterborough City Council,Adults,Independent Sector Placements,Services,10/05/2019,8000142899,1925.31,Revenue,Caring Crew Ltd,Home Care
Peterborough City Council,Adults,Independent Sector Placements,Services,10/05/2019,8000142900,967.61,Revenue,Caring Crew Ltd,Home Care
Peterborough City Council,Adults,Independent Sector Placements,Services,10/05/2019,8000142901,1728.59,Revenue,Caring Crew Ltd,Home Care
Peterborough City Council,Adults,Independent Sector Placements,Services,10/05/2019,8000142903,2348.5,Revenue,Caring Crew Ltd,Home Care
Peterborough City Council,Adults,Independent Sector Placements,Services,10/05/2019,8000142904,1052.25,Revenue,Caring Crew Ltd,Home Care
Peterborough City Council,Adults,Independent Sector Placements,Services,10/05/2019,8000142905,1852.88,Revenue,Caring Crew Ltd,Home Care
Peterborough City Council,Adults,Independent Sector Placements,Services,10/05/2019,8000142962,685.44,Revenue,Axiom Housing Association Ltd,Home Care
Peterborough City Council,Adults,Independent Sector Placements,Services,10/05/2019,8000143009,2341.18,Revenue,Merit Home Care Ltd,Home Care
Peterborough City Council,Commissioning and Commercial Operations,Permanency Service,Third Party Payments,10/05/2019,8000143924,459880.08,Revenue,IAS TACT,Third Party Payments - Contract
Peterborough City Council,Commissioning and Commercial Operations,Permanency Service,Services,10/05/2019,8000143924,5000,Revenue,RSM Risk Assurance Services LLP,Professional Fees
Peterborough City Council,Other - Exclude,Other,"Other Grants, reimbursements and contributions",13/05/2019,30224630,1622.41,Revenue,Peakirk Parish Council,Grant Payment
Peterborough City Council,"Waste, Cleansing and Open Spaces",Waste Management,Services,13/05/2019,30225023,3841.76,Revenue,Invixon Limited,Waste Disposal
Peterborough City Council,Communities,Targeted Youth Service,Services,13/05/2019,30225129,2770,Revenue,Kingswood Learning & Leisure Grp Ltd,Youth Programmes
Peterborough City Council,ICT,ICT,Services,13/05/2019,30225277,8473.8,Revenue,Serco Ltd,Computer Software
Peterborough City Council,Constitutional Services,Elections,Services,13/05/2019,30225280,3361.69,Revenue,Serco Ltd,Ict Maintenance
Peterborough City Council,Corporate,Corporate,Non Revenue,13/05/2019,30225283,197660.03,Capital,Serco Ltd,Computer Software
Peterborough City Council,ICT,ICT,Services,13/05/2019,30225287,5033.25,Revenue,Serco Ltd,Computer Software
Peterborough City Council,Communities,Housing,"Tools, Equipment, Furniture & Materials",13/05/2019,30225288,915.1,Revenue,Serco Ltd,Equipment
Peterborough City Council,ICT,ICT,Services,13/05/2019,30225319,1330.58,Revenue,Serco Ltd,Computer Software
Peterborough City Council,ICT,ICT,Services,13/05/2019,30225320,10388.18,Revenue,Serco Ltd,Computer Software
Peterborough City Council,Peterborough Highway Services,Highway Services - HoS,Services,13/05/2019,30225321,533.8,Revenue,Serco Ltd,Mobile Telephones
Peterborough City Council,Various,Various,Services,13/05/2019,30225322,19581.45,Revenue,Serco Ltd,Mobile Telephones
Peterborough City Council,ICT,ICT,Services,13/05/2019,30225323,1464.36,Revenue,Serco Ltd,Computer Software
Peterborough City Council,ICT,ICT,Services,13/05/2019,30225328,40025.53,Revenue,Serco Ltd,Computer Software
Peterborough City Council,Legal Services,Legal Services,Agency Staff,13/05/2019,30225339,2754,Revenue,Venn Group Ltd,External Temporary Staff
Peterborough City Council,Legal Services,Legal Services,Agency Staff,13/05/2019,30225340,1551.42,Revenue,Venn Group Ltd,External Temporary Staff
Peterborough City Council,Legal Services,Legal Services,Agency Staff,13/05/2019,30225341,1912.5,Revenue,Venn Group Ltd,External Temporary Staff
Peterborough City Council,Legal Services,Legal Services,Agency Staff,13/05/2019,30225342,2062.5,Revenue,Venn Group Ltd,External Temporary Staff
Peterborough City Council,Legal Services,Legal Services,Agency Staff,13/05/2019,30225343,603.41,Revenue,Venn Group Ltd,External Temporary Staff
Peterborough City Council,Adults,Block Contracts,Third Party Payments,13/05/2019,30225348,2303.28,Revenue,Hales Group Ltd,Third Party Payments - Contract
Peterborough City Council,Adults,Block Contracts,Third Party Payments,13/05/2019,30225349,2303.28,Revenue,Hales Group Ltd,Third Party Payments - Contract
Peterborough City Council,Adults,Independent Sector Placements,Services,13/05/2019,30225350,9168.6,Revenue,Autism Care (UK) Ltd,Residential Care
Peterborough City Council,Adults,Independent Sector Placements,Services,13/05/2019,30225351,9168.6,Revenue,Autism Care (UK) Ltd,Residential Care
Peterborough City Council,Commissioning and Commercial Operations,Access to Resources & Specialist Commissioning,Services,13/05/2019,30225423,34833.33,Revenue,Acorn Care & Education Ltd,Boarding Out Fees
Peterborough City Council,Regulatory Services,Regulatory Services,Services,13/05/2019,30225533,2000,Revenue,Mr Cameron Crowe,Legal Costs
Peterborough City Council,Adults,Independent Sector Placements,Services,13/05/2019,30225537,1150,Revenue,Goldcare Homes t/a The Tudors Care Home,Residential Care
Peterborough City Council,Commissioning and Commercial Operations,Access to Resources & Specialist Commissioning,Services,13/05/2019,30225551,5528.57,Revenue,Fostering Innovations Ltd,Boarding Out Fees
Peterborough City Council,Corporate,Corporate,Non Revenue,13/05/2019,30225792,635.97,Capital,Enterprise Managed Services Limited,Consultants Fees
Peterborough City Council,Corporate,Corporate,Non Revenue,13/05/2019,30225793,1628,Capital,Enterprise Managed Services Limited,Building And Site Works
Peterborough City Council,Corporate,Corporate,Non Revenue,13/05/2019,30225794,1621.77,Capital,Enterprise Managed Services Limited,Infrastructure
Peterborough City Council,Corporate,Corporate,Non Revenue,13/05/2019,30225797,918.04,Capital,Enterprise Managed Services Limited,Infrastructure
Peterborough City Council,Commissioning and Commercial Operations,Access to Resources & Specialist Commissioning,Services,13/05/2019,30225917,11703.94,Revenue,Favour Health LTD,Boarding Out Fees
Peterborough City Council,Commissioning and Commercial Operations,Access to Resources & Specialist Commissioning,Services,13/05/2019,30225918,5851.52,Revenue,Favour Health LTD,Boarding Out Fees
Peterborough City Council,Adults,Independent Sector Placements,Services,13/05/2019,30226242,1752.78,Revenue,Alysia Caring Ltd T/a Cherry Blossom care Home,Residential Care
Peterborough City Council,Westcombe Engineering,Westcombe Engineering,"Tools, Equipment, Furniture & Materials",13/05/2019,30226470,929.7,Revenue,Barron Clark Castings Ltd,Materials
Peterborough City Council,Westcombe Engineering,Westcombe Engineering,"Tools, Equipment, Furniture & Materials",13/05/2019,30226471,1003.08,Revenue,Barron Clark Castings Ltd,Materials
Peterborough City Council,Adults,Block Contracts,Third Party Payments,13/05/2019,30226487,6578.32,Revenue,Hales Group Ltd,Third Party Payments - Contract
Peterborough City Council,Peterborough Serco Strategic Partnership,PSSP Retained Services,Services,13/05/2019,30226634,5728.25,Revenue,Whistl UK Ltd,Postage
